Workbook

Sheet Energy Throughput
B2: Maximum Demand
D4: Central | F4: Fast | H4: High DER | J4: Slow
D5: MWs | E5: YoY Change | F5: MWs | G5: YoY Change | H5: MWs | I5: YoY Change | J5: MWs | K5: YoY Change
B6: 2021 | C6: SA | D6: 2901.65 | F6: 2862.32 | H6: 2861.91 | J6: 2621.01
B7: 2022 | C7: SA | D7: 2910.77 | E7: =(D7/D6)-1 -> 0.003143039305 | F7: 2872.87 | G7: =(F7/F6)-1 -> 0.003685821292 | H7: 2867.96 | I7: =(H7/H6)-1 -> 0.002113972836 | J7: 2671.59 | K7: =(J7/J6)-1 -> 0.01929790424
B8: 2023 | C8: SA | D8: 2941.44 | E8: =(D8/D7)-1 -> 0.01053673083 | F8: 2902.2 | G8: =(F8/F7)-1 -> 0.01020930289 | H8: 2902.28 | I8: =(H8/H7)-1 -> 0.0119666941 | J8: 2738.48 | K8: =(J8/J7)-1 -> 0.02503752447
B9: 2024 | C9: SA | D9: 2961.1 | E9: 0.006683801131 | F9: 2924.55 | G9: 0.007701054373 | H9: 2922.9 | I9: 0.007104759017 | J9: 2762.36 | K9: 0.008720165931
B10: 2025 | C10: SA | D10: 2949.63 | E10: -0.003873560501 | F10: 2926.87 | G10: 0.0007932844369 | H10: 2929.91 | I10: 0.002398303055 | J10: 2757.93 | K10: -0.001603701183
B11: 2026 | C11: SA | D11: 2954.23 | E11: 0.001559517634 | F11: 2930.49 | G11: 0.001236816121 | H11: 2934.81 | I11: 0.00167240632 | J11: 2743.67 | K11: -0.005170544575
B12: 2027 | C12: SA | D12: 2967.98 | E12: 0.004654343094 | F12: 2949.44 | G12: 0.006466495364 | H12: 2957.61 | I12: 0.00776881638 | J12: 2750.31 | K12: 0.002420116122
B13: 2028 | C13: SA | D13: 2973.8 | E13: 0.001960929656 | F13: 2963.67 | G13: 0.004824644678 | H13: 2975.15 | I13: 0.005930464125 | J13: 2752.49 | K13: 0.0007926379208
B14: Ave. | E14: =AVERAGE(E7:E13) -> 0.003523543022 | G14: =AVERAGE(G7:G13) -> 0.004988202737 | I14: =AVERAGE(I7:I13) -> 0.005565059404 | K14: =AVERAGE(K7:K13) -> 0.007070586133
D16: Central 10% POE | F16: Central 50% POE | H16: Central 90% POE
D17: MWs | E17: YoY Change | F17: MWs | G17: YoY Change | H17: MWs | I17: YoY Change
B18: 2021 | C18: SA | D18: 3244.67 | F18: 2901.65 | H18: 2635.36
B19: 2022 | C19: SA | D19: 3255.44 | E19: =(D19/D18)-1 -> 0.003319289789 | F19: 2910.77 | G19: =(F19/F18)-1 -> 0.003143039305 | H19: 2640.41 | I19: =(H19/H18)-1 -> 0.001916246737
B20: 2023 | C20: SA | D20: 3281.64 | E20: =(D20/D19)-1 -> 0.008048067235 | F20: 2941.44 | G20: =(F20/F19)-1 -> 0.01053673083 | H20: 2662.62 | I20: =(H20/H19)-1 -> 0.008411572445
B21: 2024 | C21: SA | D21: 3319.69 | E21: 0.01159481235 | F21: 2961.1 | G21: 0.006683801131 | H21: 2695.95 | I21: 0.01251774568
B22: 2025 | C22: SA | D22: 3319.69 | E22: 0 | F22: 2949.63 | G22: -0.003873560501 | H22: 2686.52 | I22: -0.003497839352
B23: 2026 | C23: SA | D23: 3308.42 | E23: -0.003394895306 | F23: 2954.23 | G23: 0.001559517634 | H23: 2680.39 | I23: -0.00228176228
B24: 2027 | C24: SA | D24: 3324.16 | E24: 0.004757557988 | F24: 2967.98 | G24: 0.004654343094 | H24: 2696.37 | I24: 0.005961818989
B25: 2028 | C25: SA | D25: 3313.05 | E25: -0.003342197728 | F25: 2973.8 | G25: 0.001960929656 | H25: 2702.03 | I25: 0.002099118444
B26: Ave. | E26: =AVERAGE(E19:E25) -> 0.00299751919 | G26: =AVERAGE(G19:G25) -> 0.003523543022 | I26: =AVERAGE(I19:I25) -> 0.003589557238
B28: Energy Throughput
D30: Central | F30: Fast | H30: High DER | J30: Slow
D31: GWhs | E31: YoY Change | F31: GWhs | G31: YoY Change | H31: GWhs | I31: YoY Change | J31: GWhs | K31: YoY Change
B32: 2021 | C32: SA | D32: 11584.42 | F32: 11584.4 | H32: 11532.96 | J32: 11252.75
B33: 2022 | C33: SA | D33: 11264.11 | E33: =(D33/D32)-1 -> -0.02765006794 | F33: 11257.47 | G33: =(F33/F32)-1 -> -0.02822157384 | H33: 11216.37 | I33: =(H33/H32)-1 -> -0.02745088858 | J33: 10855.59 | K33: =(J33/J32)-1 -> -0.03529448357
B34: 2023 | C34: SA | D34: 11270.78 | E34: =(D34/D33)-1 -> 0.000592146206 | F34: 11241.48 | G34: =(F34/F33)-1 -> -0.001420390194 | H34: 11197.32 | I34: =(H34/H33)-1 -> -0.001698410448 | J34: 10763.09 | K34: =(J34/J33)-1 -> -0.008520955563
B35: 2024 | C35: SA | D35: 11246.14 | E35: -0.002186184097 | F35: 11195.67 | G35: -0.004075086199 | H35: 11102.19 | I35: -0.008495782919 | J35: 10731.26 | K35: -0.002957329168
B36: 2025 | C36: SA | D36: 11144.9 | E36: -0.009002199866 | F36: 11082.45 | G36: -0.01011283827 | H36: 10931.57 | I36: -0.01536813908 | J36: 10690.13 | K36: -0.003832727937
B37: 2026 | C37: SA | D37: 11056.26 | E37: -0.007953413669 | F37: 10976 | G37: -0.009605276812 | H37: 10773.2 | I37: -0.01448739751 | J37: 10647.34 | K37: -0.004002757684
B38: 2027 | C38: SA | D38: 10979.74 | E38: -0.006920966041 | F38: 10904.08 | G38: -0.006552478134 | H38: 10654.92 | I38: -0.01097909628 | J38: 10599.79 | K38: -0.00446590416
B39: 2028 | C39: SA | D39: 10923.88 | E39: -0.005087552164 | F39: 10869.48 | G39: -0.003173124188 | H39: 10568.75 | I39: -0.008087343687 | J39: 10558.28 | K39: -0.003916115319
B40: Ave. | E40: =AVERAGE(E33:E39) -> -0.00831546251 | G40: =AVERAGE(G33:G39) -> -0.009022966805 | I40: =AVERAGE(I33:I39) -> -0.01236672264 | K40: =AVERAGE(K33:K39) -> -0.008998610486

Sheet Index
B1: AER opex model
B2: Index
B4: Model index
C6: Sheet Name | D6: Sheet Description
C7: Input | General | D7: Inputs NSP name, regulatory years for the prior and forecast regulatory control period etc.
C8: Input | Inflation | D8: Inputs inflation data.
C9: Input | Reported opex | D9: Inputs the reported operating expenditure (opex) from the prior regulatory control period.
C10: Input | Rate of change | D10: Inputs the cost escalation weights, cost escalation forecast, and inflation actuals and forecast
C11: Input | Step changes | D11: Inputs the operating expenditure (opex) data, including historical opex by category, one-off costs, step changes, demand forecasts, carbon costs, self insurance, network growth, and partial factor productivity
C12: Input | EBSS | D12: Inputs to EBSS calculation for the PTRM
C13: Calc | Opex Forecast | D13: Calculates the opex forecast
C14: Output | Models | D14: Outputs the forecasts needed as a post tax revenue model inputs
C15: Lookup | Tables | D15: Includes the lookup tables used within this opex model.
C16: Check | List | D16: Shows checks on the calculations within the model
B18: End

Sheet Assumptions
B2: Assumptions
B4: Scenario | Y4: 5.183149383 | Z4: 5.183149383 | AA4: 5.183149383 | AB4: 5.183149383 | AC4: 5.183149383
Y5: 1.5 | Z5: 1.5 | AA5: 1.5 | AB5: 1.5 | AC5: 1.5
C6: 3 | Y6: 0.7881573318 | Z6: 0.7881573318 | AA6: 0.7881573318 | AB6: 0.7881573318 | AC6: 0.7881573318
Y7: 7.216965283 | Z7: 7.216965283 | AA7: 7.216965283 | AB7: 7.216965283 | AC7: 7.216965283
B8: Scenario | C8: Description | Y8: 1.372043101 | Z8: 1.372043101 | AA8: 1.372043101 | AB8: 1.372043101 | AC8: 1.372043101
B9: Scenario 1 | C9: TBA | Y9: 9.350138719 | Z9: 9.350138719 | AA9: 9.350138719 | AB9: 9.350138719 | AC9: 9.350138719
B10: Scenario 2 | C10: TBA
B11: Revenue Proposal | C11: TBA
B12: Scenario 4 | C12: TBA
B13: Scenario 5 | C13: TBA
B15: Inflation
B17: Forecast current reg. period | C17: 0.0245
B18: Next Regulatory period 2024-28 | C18: 0.024
B20: Reported Opex
B22: Reported Opex | C22: Source | D22: Unit | E22: Basis | G22: 2019-06-01 | H22: 2020-06-01 | I22: 2021-06-01 | J22: 2022-06-01 | K22: 2023-06-01 | M22: Scenario 1 | N22: =IF(YEAR(N$61)>=FPFirstYear,IF(YEAR(N$61)<=FPLastYear,N$61,""),"") ->  | O22: =IF(YEAR(O$61)>=FPFirstYear,IF(YEAR(O$61)<=FPLastYear,O$61,""),"") ->  | P22: =IF(YEAR(P$61)>=FPFirstYear,IF(YEAR(P$61)<=FPLastYear,P$61,""),"") ->  | Q22: =IF(YEAR(Q$61)>=FPFirstYear,IF(YEAR(Q$61)<=FPLastYear,Q$61,""),"") ->  | R22: =IF(YEAR(R$61)>=FPFirstYear,IF(YEAR(R$61)<=FPLastYear,R$61,""),"") ->  | S22: Scenario 2 | Y22: Revenue Proposal | AE22: Scenario 4 | AK22: Scenario 5
B24: Routine Maintenance | C24: Business Plan | D24: $m | E24: Nominal | G24: =CHOOSE($C$6,M24,S24,Y24,AE24,AK24) -> 17.66464539 | H24: =CHOOSE($C$6,N24,T24,Z24,AF24,AL24) -> 17.93695678 | I24: 19.36513495 | J24: 19.18935095 | K24: 20.7428089 | Y24: 17.66464539 | Z24: 17.93695678 | AA24: 19.36513495 | AB24: 19.18935095 | AC24: 20.7428089
B25: Corrective Maintenance | C25: Business Plan | D25: $m | E25: Nominal | G25: =CHOOSE($C$6,M25,S25,Y25,AE25,AK25) -> 13.92662091 | H25: 12.37199733 | I25: 11.77869819 | J25: 11.56851199 | K25: 12.61665804 | Y25: 13.92662091 | Z25: 12.37199733 | AA25: 11.77869819 | AB25: 11.56851199 | AC25: 12.61665804
B26: Operational Refurbishment | C26: Business Plan | D26: $m | E26: Nominal | G26: 9.474519705 | H26: 9.65540423 | I26: 12.30859664 | J26: 13.39583128 | K26: 13.18425452 | Y26: 9.474519705 | Z26: 9.65540423 | AA26: 12.30859664 | AB26: 13.39583128 | AC26: 13.18425452
B27: Maintenance Support | C27: Business Plan | D27: $m | E27: Nominal | G27: 12.142888 | H27: 12.41092593 | I27: 12.85776146 | J27: 14.03180736 | K27: 13.77248801 | Y27: 12.142888 | Z27: 12.41092593 | AA27: 12.85776146 | AB27: 14.03180736 | AC27: 13.77248801
B28: Network Operations / Asset Management | C28: Business Plan | D28: $m | E28: Nominal | G28: 10.827446 | H28: 11.02588169 | I28: 9.81519172 | J28: 11.55189597 | K28: 10.51346385 | Y28: 10.827446 | Z28: 11.02588169 | AA28: 9.81519172 | AB28: 11.55189597 | AC28: 10.51346385
B29: Asset Management | C29: Business Plan | D29: $m | E29: Nominal | G29: 9.429272 | H29: 10.66270505 | I29: 9.7568339 | J29: 11.03966027 | K29: 10.45095433 | Y29: 9.429272 | Z29: 10.66270505 | AA29: 9.7568339 | AB29: 11.03966027 | AC29: 10.45095433
B30: Insurance | C30: Business Plan | D30: $m | E30: Nominal | G30: =CHOOSE($C$6,M30,S30,Y30,AE30,AK30) -> 2.823331 | H30: =CHOOSE($C$6,N30,T30,Z30,AF30,AL30) -> 3.74558757 | I30: =CHOOSE($C$6,O30,U30,AA30,AG30,AM30) -> 5.0815591 | J30: =CHOOSE($C$6,P30,V30,AB30,AH30,AN30) -> 6.3496047 | K30: =CHOOSE($C$6,Q30,W30,AC30,AI30,AO30) -> 5.443071251 | Y30: 2.823331 | Z30: 3.74558757 | AA30: 5.0815591 | AB30: 6.3496047 | AC30: 5.443071251
B31: Corporate Support | C31: Business Plan | D31: $m | E31: Nominal | G31: 7.194081 | H31: 10.0383695 | I31: 6.67189947 | J31: 3.22114663 | K31: 7.146551576 | Y31: 7.194081 | Z31: 10.0383695 | AA31: 6.67189947 | AB31: 3.22114663 | AC31: 7.146551576
B32: Self Insurance | C32: Business Plan | D32: $m | E32: Nominal | G32: 1.463164 | H32: 1.49863637 | I32: 1.52147927 | J32: 1.577251257 | K32: 1.62972031 | Y32: 1.463164 | Z32: 1.49863637 | AA32: 1.52147927 | AB32: 1.577251257 | AC32: 1.62972031
B33: Network Support | C33: Business Plan | D33: $m | E33: Nominal | G33: 8.396486 | H33: 10.52590409 | I33: 10.58526658 | J33: 11.20312952 | K33: 9.453894011 | Y33: 8.396486 | Z33: 10.52590409 | AA33: 10.58526658 | AB33: 11.20312952 | AC33: 9.453894011
M34: =SUM(M24:M33) -> 0 | N34: =SUM(N24:N33) -> 0 | O34: =SUM(O24:O33) -> 0 | P34: =SUM(P24:P33) -> 0 | Q34: =SUM(Q24:Q33) -> 0 | S34: =SUM(S24:S33) -> 0 | T34: 0 | U34: 0 | V34: 0 | W34: 0 | Y34: =SUM(Y24:Y33) -> 93.342454 | Z34: =SUM(Z24:Z33) -> 99.87236854 | AA34: 99.74242128 | AB34: 103.1281899 | AC34: 104.9538648
B35: Total opex | G35: =SUM(G24:G33) -> 93.342454 | H35: =SUM(H24:H33) -> 99.87236854 | I35: =SUM(I24:I33) -> 99.74242128 | J35: =SUM(J24:J33) -> 103.1281899 | K35: =SUM(K24:K33) -> 104.9538648
B37: Expenditure related to category specific forecasts | C37: =C22 -> Source | D37: =D22 -> Unit | E37: =E22 -> Basis | G37: =G22 -> 2019-06-01 | H37: =H22 -> 2020-06-01 | I37: =I22 -> 2021-06-01 | J37: =J22 -> 2022-06-01 | K37: =K22 -> 2023-06-01 | M37: =M22 -> Scenario 1 | N37: =IF(YEAR(N$61)>=FPFirstYear,IF(YEAR(N$61)<=FPLastYear,N$61,""),"") ->  | O37: =IF(YEAR(O$61)>=FPFirstYear,IF(YEAR(O$61)<=FPLastYear,O$61,""),"") ->  | P37: =IF(YEAR(P$61)>=FPFirstYear,IF(YEAR(P$61)<=FPLastYear,P$61,""),"") ->  | Q37: =IF(YEAR(Q$61)>=FPFirstYear,IF(YEAR(Q$61)<=FPLastYear,Q$61,""),"") ->  | R37: =IF(YEAR(R$61)>=FPFirstYear,IF(YEAR(R$61)<=FPLastYear,R$61,""),"") ->  | S37: Scenario 2 | Y37: Revenue Proposal | AE37: Scenario 4 | AK37: Scenario 5
B39: Remove debt raising costs | C39: RIN | D39: $m | E39: Nominal | G39: =CHOOSE($C$6,M39,S39,Y39,AE39,AK39) -> 0 | H39: =CHOOSE($C$6,N39,T39,Z39,AF39,AL39) -> 0 | I39: 0 | J39: 0 | K39: 0 | Y39: 0 | Z39: 0 | AA39: 0 | AB39: 0 | AC39: 0
B40: Remove network support costs | C40: RIN | D40: $m | E40: Nominal | G40: =CHOOSE($C$6,M40,S40,Y40,AE40,AK40) -> 0 | H40: 0 | I40: -10.58526658 | J40: 0 | K40: 0 | Y40: 0 | Z40: 0 | AA40: =-AA33 -> -10.58526658 | AB40: 0 | AC40: 0
B41: Remove movement in provisions | C41: RIN | D41: $m | E41: Nominal | G41: 0 | H41: 0 | I41: 0 | J41: 0 | K41: 0 | Y41: 0 | Z41: 0 | AA41: 0 | AB41: 0 | AC41: 0
B42: Remove Management Lease Costs | C42: RIN | D42: $m | E42: Nominal | G42: 0 | H42: 0 | I42: -0.841635 | J42: 0 | K42: 0 | Y42: 0 | Z42: 0 | AA42: -0.841635 | AB42: 0 | AC42: 0
B43: Add MGSS Incremental Opex - Robertstown | C43: RIN | D43: $m | E43: Nominal | G43: =CHOOSE($C$6,M43,S43,Y43,AE43,AK43) -> 0 | H43: =CHOOSE($C$6,N43,T43,Z43,AF43,AL43) -> 0 | I43: =CHOOSE($C$6,O43,U43,AA43,AG43,AM43) -> 0.2325275878 | J43: =CHOOSE($C$6,P43,V43,AB43,AH43,AN43) -> 0 | K43: =CHOOSE($C$6,Q43,W43,AC43,AI43,AO43) -> 0 | Y43: 0 | Z43: 0 | AA43: 0.2325275878 | AB43: 0 | AC43: 0
B44: Add PEC Incremental Opex | C44: RIN | D44: $m | E44: Nominal | G44: 0 | H44: 0 | I44: 0.2517141486 | J44: 0 | K44: 0 | Y44: 0 | Z44: 0 | AA44: 0.2517141486 | AB44: 0 | AC44: 0
B45: Net movement in provisions | C45: RIN | D45: $m | E45: Nominal | G45: =CHOOSE($C$6,M45,S45,Y45,AE45,AK45) -> 0.6580905236 | H45: =CHOOSE($C$6,N45,T45,Z45,AF45,AL45) -> -0.5736013346 | I45: =CHOOSE($C$6,O45,U45,AA45,AG45,AM45) -> -0.2768979593 | J45: =CHOOSE($C$6,P45,V45,AB45,AH45,AN45) -> -0.2768979593 | K45: =CHOOSE($C$6,Q45,W45,AC45,AI45,AO45) -> -0.2768979593 | Y45: 0.6580905236 | Z45: -0.5736013346 | AA45: -0.2768979593 | AB45: -0.2768979593 | AC45: -0.2768979593
B47: Total opex, categories forecast specifically | G47: =SUM(G39:G45) -> 0.6580905236 | H47: -0.5736013346 | I47: -11.2195578 | J47: -0.2768979593 | K47: -0.2768979593
B49: Input Assumptions | M49: Scenario 1 | N49: =IF(YEAR(N$61)>=FPFirstYear,IF(YEAR(N$61)<=FPLastYear,N$61,""),"") ->  | O49: =IF(YEAR(O$61)>=FPFirstYear,IF(YEAR(O$61)<=FPLastYear,O$61,""),"") ->  | P49: =IF(YEAR(P$61)>=FPFirstYear,IF(YEAR(P$61)<=FPLastYear,P$61,""),"") ->  | Q49: =IF(YEAR(Q$61)>=FPFirstYear,IF(YEAR(Q$61)<=FPLastYear,Q$61,""),"") ->  | R49: =IF(YEAR(R$61)>=FPFirstYear,IF(YEAR(R$61)<=FPLastYear,R$61,""),"") ->  | S49: Scenario 2 | Y49: Revenue Proposal | AE49: Scenario 4 | AK49: Scenario 5
B51: Adjustment 1 | C51: External | D51: $m | E51: 2018-06-01 | K51: =CHOOSE($C$6,Q51,W51,AC51,AI51,AO51) -> 0 | Q51: 0 | W51: 0 | AC51: 0 | AI51: 0 | AO51: 0
B52: Adjustment 2 | C52: External | D52: $m | E52: 2018-06-01 | K52: =CHOOSE($C$6,Q52,W52,AC52,AI52,AO52) -> 0 | Q52: 0 | W52: 0 | AC52: 0 | AI52: 0 | AO52: 0
B53: Adjustment 3 | C53: External | D53: $m | E53: 2018-06-01 | K53: 0 | Q53: 0 | W53: 0 | AC53: 0 | AI53: 0 | AO53: 0
B54: Adjustment 4 | C54: External | D54: $m | E54: 2018-06-01 | K54: 0 | Q54: 0 | W54: 0 | AC54: 0 | AI54: 0 | AO54: 0
B55: Adjustment 5 | C55: External | D55: $m | E55: 2018-06-01 | K55: 0 | Q55: 0 | W55: 0 | AC55: 0 | AI55: 0 | AO55: 0
B57: Remove non-recurrent efficiency gain in the base year | C57: External | D57: $m | E57: 2018-06-01 | K57: =CHOOSE($C$6,Q57,W57,AC57,AI57,AO57) -> 0 | Q57: 0 | W57: 0 | AC57: 0 | AI57: 0 | AO57: 0
B59: Efficiency adjustment | C59: External | D59: Per cent | K59: =CHOOSE($C$6,Q59,W59,AC59,AI59,AO59) -> 0 | Q59: 0 | W59: 0 | AC59: 0 | AI59: 0 | AO59: 0
B61: Step Changes
B63: Step change | C63: Source | D63: Unit | E63: Basis | G63: =G83 -> 2024-06-01 | H63: =H83 -> 2025-06-01 | I63: 2026-06-01 | J63: 2027-06-01 | K63: =K83 -> 2028-06-01 | M63: Scenario 1 | N63: =IF(YEAR(N$61)>=FPFirstYear,IF(YEAR(N$61)<=FPLastYear,N$61,""),"") ->  | O63: =IF(YEAR(O$61)>=FPFirstYear,IF(YEAR(O$61)<=FPLastYear,O$61,""),"") ->  | P63: =IF(YEAR(P$61)>=FPFirstYear,IF(YEAR(P$61)<=FPLastYear,P$61,""),"") ->  | Q63: =IF(YEAR(Q$61)>=FPFirstYear,IF(YEAR(Q$61)<=FPLastYear,Q$61,""),"") ->  | R63: =IF(YEAR(R$61)>=FPFirstYear,IF(YEAR(R$61)<=FPLastYear,R$61,""),"") ->  | S63: Scenario 2 | Y63: Revenue Proposal | AE63: Scenario 4 | AK63: Scenario 5
B65: Cyber | C65: AER | D65: $millions | E65: 2023-06-01 | G65: =CHOOSE($C$6,M65,S65,Y65,AE65,AK65) -> 5.183149383 | H65: =CHOOSE($C$6,N65,T65,Z65,AF65,AL65) -> 5.183149383 | I65: 5.183149383 | J65: 5.183149383 | K65: 5.183149383 | Y65: 5.183149383 | Z65: 5.183149383 | AA65: 5.183149383 | AB65: 5.183149383 | AC65: 5.183149383
B66: Cloud | C66: AER | D66: $millions | E66: 2023-06-01 | G66: =CHOOSE($C$6,M66,S66,Y66,AE66,AK66) -> 1.79693299 | H66: 1.79693299 | I66: 1.79693299 | J66: 1.79693299 | K66: 1.79693299 | Y66: 1.79693299 | Z66: 1.79693299 | AA66: 1.79693299 | AB66: 1.79693299 | AC66: 1.79693299
B67: Rule Change | C67: AER | D67: $millions | E67: 2023-06-01 | G67: 0.7881573318 | H67: 0.7881573318 | I67: 0.7881573318 | J67: 0.7881573318 | K67: 0.7881573318 | Y67: 0.7881573318 | Z67: 0.7881573318 | AA67: 0.7881573318 | AB67: 0.7881573318 | AC67: 0.7881573318
B68: Insurance / Self Insurance | C68: AER | D68: $millions | E68: 2023-06-01 | G68: 6.046446145 | H68: 6.046446145 | I68: 6.046446145 | J68: 6.046446145 | K68: 6.046446145 | Y68: 6.046446145 | Z68: 6.046446145 | AA68: 6.046446145 | AB68: 6.046446145 | AC68: 6.046446145
B69: IFRS Implementation | C69: AER | D69: $millions | E69: 2023-06-01 | G69: 9.350138719 | H69: 9.350138719 | I69: 9.350138719 | J69: 9.350138719 | K69: 9.350138719 | Y69: 9.350138719 | Z69: 9.350138719 | AA69: 9.350138719 | AB69: 9.350138719 | AC69: 9.350138719
C70: AER | D70: $millions | E70: 2023-06-01 | G70: 0 | H70: 0 | I70: 0 | J70: 0 | K70: 0
C71: AER | D71: $millions | E71: 2023-06-01 | G71: 0 | H71: 0 | I71: 0 | J71: 0 | K71: 0
C72: AER | D72: $millions | E72: 2023-06-01 | G72: 0 | H72: 0 | I72: 0 | J72: 0 | K72: 0
C73: AER | D73: $millions | E73: 2023-06-01 | G73: 0 | H73: 0 | I73: 0 | J73: 0 | K73: 0
B75: Category Specific Forecasts | M75: Scenario 1 | N75: =IF(YEAR(N$61)>=FPFirstYear,IF(YEAR(N$61)<=FPLastYear,N$61,""),"") ->  | O75: =IF(YEAR(O$61)>=FPFirstYear,IF(YEAR(O$61)<=FPLastYear,O$61,""),"") ->  | P75: =IF(YEAR(P$61)>=FPFirstYear,IF(YEAR(P$61)<=FPLastYear,P$61,""),"") ->  | Q75: =IF(YEAR(Q$61)>=FPFirstYear,IF(YEAR(Q$61)<=FPLastYear,Q$61,""),"") ->  | S75: Scenario 2 | Y75: Revenue Proposal | AE75: Scenario 4 | AK75: Scenario 5
C77: AER | D77: $millions | E77: 2023-06-01 | G77: =CHOOSE($C$6,M77,S77,Y77,AE77,AK77) -> 0 | H77: =CHOOSE($C$6,N77,T77,Z77,AF77,AL77) -> 0 | I77: 0 | J77: 0 | K77: 0
C78: AER | D78: $millions | E78: 2023-06-01 | G78: =CHOOSE($C$6,M78,S78,Y78,AE78,AK78) -> 0 | H78: 0 | I78: 0 | J78: 0 | K78: 0
C79: AER | D79: $millions | E79: 2023-06-01 | G79: 0 | H79: 0 | I79: 0 | J79: 0 | K79: 0
B81: Rate of Change Assumptions | AB81: 5975169.24
AA82: =AB82/1000000 -> 6.046446145 | AB82: =AB81*(1+0.024)^0.5 -> 6046446.145
B83: Forecast price change | C83: Source | D83: Unit | G83: =G106 -> 2024-06-01 | H83: 2025-06-01 | I83: 2026-06-01 | J83: 2027-06-01 | K83: 2028-06-01 | L83: =IF(YEAR(L$61)>=FPFirstYear,IF(YEAR(L$61)<=FPLastYear,L$61,""),"") ->  | M83: Scenario 1 | N83: =IF(YEAR(N$61)>=FPFirstYear,IF(YEAR(N$61)<=FPLastYear,N$61,""),"") ->  | O83: =IF(YEAR(O$61)>=FPFirstYear,IF(YEAR(O$61)<=FPLastYear,O$61,""),"") ->  | P83: =IF(YEAR(P$61)>=FPFirstYear,IF(YEAR(P$61)<=FPLastYear,P$61,""),"") ->  | Q83: =IF(YEAR(Q$61)>=FPFirstYear,IF(YEAR(Q$61)<=FPLastYear,Q$61,""),"") ->  | R83: =IF(YEAR(R$61)>=FPFirstYear,IF(YEAR(R$61)<=FPLastYear,R$61,""),"") ->  | S83: Scenario 2 | Y83: Revenue Proposal | AE83: Scenario 4 | AK83: Scenario 5
M84: 2024 | N84: 2025 | O84: 2026 | P84: 2027 | Q84: 2028 | S84: 2024 | T84: 2025 | U84: 2026 | V84: 2027 | W84: 2028 | Y84: 2024 | Z84: 2025 | AA84: 2026 | AB84: 2027 | AC84: 2028 | AE84: 2024 | AF84: 2025 | AG84: 2026 | AH84: 2027 | AI84: 2028 | AK84: 2024 | AL84: 2025 | AM84: 2026 | AN84: 2027 | AO84: 2028
B85: WPI - DAE (SAPN 20-25 Determination) | C85: external | D85: =percent -> Per cent | G85: =CHOOSE($C$6,M85,S85,Y85,AE85,AK85) -> 0 | H85: =CHOOSE($C$6,N85,T85,Z85,AF85,AL85) -> 0 | I85: 0 | J85: 0 | K85: 0
B86: WPI - BIS (SAPN 20-25 Determination) | C86: external | D86: Per cent | G86: =CHOOSE($C$6,M86,S86,Y86,AE86,AK86) -> 0 | H86: 0 | I86: 0 | J86: 0 | K86: 0
B87: WPI - average of DAE and CIE | C87: external | D87: Per cent | G87: 0.0045 | H87: 0.006 | I87: 0.0065 | J87: 0.004 | K87: 0.003 | Y87: 0.0045 | Z87: 0.006 | AA87: 0.0065 | AB87: 0.004 | AC87: 0.003
C88: external | D88: Per cent | G88: 0 | H88: 0 | I88: 0 | J88: 0 | K88: 0
C89: external | D89: Per cent | G89: 0 | H89: 0 | I89: 0 | J89: 0 | K89: 0
C90: external | D90: Per cent | G90: 0 | H90: 0 | I90: 0 | J90: 0 | K90: 0
C91: external | D91: Per cent | G91: 0 | H91: 0 | I91: 0 | J91: 0 | K91: 0
B92: Real Materials Price Change | C92: external | D92: Per cent | G92: 0 | H92: =CHOOSE($C$6,N92,T92,Z92,AF92,AL92) -> 0 | I92: =CHOOSE($C$6,O92,U92,AA92,AG92,AM92) -> 0 | J92: =CHOOSE($C$6,P92,V92,AB92,AH92,AN92) -> 0 | K92: =CHOOSE($C$6,Q92,W92,AC92,AI92,AO92) -> 0 | Y92: 0 | Z92: 0 | AA92: 0 | AB92: 0 | AC92: 0
B94: Weights- Forecast Price Change | C94: Source | D94: Unit | G94: =G83 -> 2024-06-01 | H94: =H83 -> 2025-06-01 | I94: 2026-06-01 | J94: 2027-06-01 | K94: 2028-06-01 | L94: =IF(YEAR(L$61)>=FPFirstYear,IF(YEAR(L$61)<=FPLastYear,L$61,""),"") ->  | M94: Scenario 1 | N94: =IF(YEAR(N$61)>=FPFirstYear,IF(YEAR(N$61)<=FPLastYear,N$61,""),"") ->  | O94: =IF(YEAR(O$61)>=FPFirstYear,IF(YEAR(O$61)<=FPLastYear,O$61,""),"") ->  | P94: =IF(YEAR(P$61)>=FPFirstYear,IF(YEAR(P$61)<=FPLastYear,P$61,""),"") ->  | Q94: =IF(YEAR(Q$61)>=FPFirstYear,IF(YEAR(Q$61)<=FPLastYear,Q$61,""),"") ->  | R94: =IF(YEAR(R$61)>=FPFirstYear,IF(YEAR(R$61)<=FPLastYear,R$61,""),"") ->  | S94: Scenario 2 | Y94: Revenue Proposal | AE94: Scenario 4 | AK94: Scenario 5
M95: 2024 | N95: 2025 | O95: 2026 | P95: 2027 | Q95: 2028 | S95: 2024 | T95: 2025 | U95: 2026 | V95: 2027 | W95: 2028 | Y95: 2024 | Z95: 2025 | AA95: 2026 | AB95: 2027 | AC95: 2028 | AE95: 2024 | AF95: 2025 | AG95: 2026 | AH95: 2027 | AI95: 2028 | AK95: 2024 | AL95: 2025 | AM95: 2026 | AN95: 2027 | AO95: 2028
B96: =B83 -> Forecast price change | C96: external | D96: =percent -> Per cent | G96: =CHOOSE($C$6,M96,S96,Y96,AE96,AK96) -> 0 | H96: =CHOOSE($C$6,N96,T96,Z96,AF96,AL96) -> 0 | I96: 0 | J96: 0 | K96: 0 | Y96: 0 | Z96: 0 | AA96: 0 | AB96: 0 | AC96: 0
B97: 0 | C97: external | D97: Per cent | G97: =CHOOSE($C$6,M97,S97,Y97,AE97,AK97) -> 0 | H97: 0 | I97: 0 | J97: 0 | K97: 0 | Y97: 0 | Z97: 0 | AA97: 0 | AB97: 0 | AC97: 0
B98: WPI - DAE (SAPN 20-25 Determination) | C98: external | D98: Per cent | G98: 0.704 | H98: 0.704 | I98: 0.704 | J98: 0.704 | K98: 0.704 | Y98: 0.704 | Z98: 0.704 | AA98: 0.704 | AB98: 0.704 | AC98: 0.704
B99: WPI - BIS (SAPN 20-25 Determination) | C99: external | D99: Per cent | G99: 0 | H99: 0 | I99: 0 | J99: 0 | K99: 0
B100: WPI - average of DAE and CIE | C100: external | D100: Per cent | G100: 0 | H100: 0 | I100: 0 | J100: 0 | K100: 0
B101: 0 | C101: external | D101: Per cent | G101: 0 | H101: 0 | I101: 0 | J101: 0 | K101: 0
B102: 0 | C102: external | D102: Per cent | G102: 0 | H102: 0 | I102: 0 | J102: 0 | K102: 0
B103: Real Materials Price Change | C103: external | D103: Per cent | G103: 0.296 | H103: 0.296 | I103: 0.296 | J103: 0.296 | K103: 0.296 | Y103: 0.296 | Z103: 0.296 | AA103: 0.296 | AB103: 0.296 | AC103: 0.296
B104: Check | G104: =SUM(G96:G103) -> 1 | H104: =SUM(H96:H103) -> 1 | I104: 1 | J104: 1 | K104: 1 | M104: =SUM(M96:M103) -> 0 | N104: =SUM(N96:N103) -> 0 | O104: 0 | P104: 0 | Q104: 0 | S104: =SUM(S96:S103) -> 0 | T104: =SUM(T96:T103) -> 0 | U104: =SUM(U96:U103) -> 0 | V104: =SUM(V96:V103) -> 0 | W104: =SUM(W96:W103) -> 0 | Y104: =SUM(Y96:Y103) -> 1 | Z104: =SUM(Z96:Z103) -> 1 | AA104: =SUM(AA96:AA103) -> 1 | AB104: =SUM(AB96:AB103) -> 1 | AC104: =SUM(AC96:AC103) -> 1 | AE104: =SUM(AE96:AE103) -> 0 | AF104: =SUM(AF96:AF103) -> 0 | AG104: =SUM(AG96:AG103) -> 0 | AH104: =SUM(AH96:AH103) -> 0 | AI104: =SUM(AI96:AI103) -> 0 | AK104: =SUM(AK96:AK103) -> 0 | AL104: =SUM(AL96:AL103) -> 0 | AM104: =SUM(AM96:AM103) -> 0 | AN104: =SUM(AN96:AN103) -> 0 | AO104: =SUM(AO96:AO103) -> 0
B106: Output measures | C106: Source | D106: Unit | E106: Basis | F106: 2023-06-01 | G106: 2024-06-01 | H106: 2025-06-01 | I106: 2026-06-01 | J106: 2027-06-01 | K106: 2028-06-01 | M106: Scenario 1 | N106: =IF(YEAR(N$61)>=FPFirstYear,IF(YEAR(N$61)<=FPLastYear,N$61,""),"") ->  | O106: =IF(YEAR(O$61)>=FPFirstYear,IF(YEAR(O$61)<=FPLastYear,O$61,""),"") ->  | P106: =IF(YEAR(P$61)>=FPFirstYear,IF(YEAR(P$61)<=FPLastYear,P$61,""),"") ->  | Q106: =IF(YEAR(Q$61)>=FPFirstYear,IF(YEAR(Q$61)<=FPLastYear,Q$61,""),"") ->  | T106: Scenario 2 | U106: =IF(YEAR(U$61)>=FPFirstYear,IF(YEAR(U$61)<=FPLastYear,U$61,""),"") ->  | V106: =IF(YEAR(V$61)>=FPFirstYear,IF(YEAR(V$61)<=FPLastYear,V$61,""),"") ->  | W106: =IF(YEAR(W$61)>=FPFirstYear,IF(YEAR(W$61)<=FPLastYear,W$61,""),"") ->  | X106: =IF(YEAR(X$61)>=FPFirstYear,IF(YEAR(X$61)<=FPLastYear,X$61,""),"") ->  | AA106: Revenue Proposal | AB106: =IF(YEAR(AB$61)>=FPFirstYear,IF(YEAR(AB$61)<=FPLastYear,AB$61,""),"") ->  | AC106: =IF(YEAR(AC$61)>=FPFirstYear,IF(YEAR(AC$61)<=FPLastYear,AC$61,""),"") ->  | AD106: =IF(YEAR(AD$61)>=FPFirstYear,IF(YEAR(AD$61)<=FPLastYear,AD$61,""),"") ->  | AE106: =IF(YEAR(AE$61)>=FPFirstYear,IF(YEAR(AE$61)<=FPLastYear,AE$61,""),"") ->  | AH106: Scenario 4 | AI106: =IF(YEAR(AI$61)>=FPFirstYear,IF(YEAR(AI$61)<=FPLastYear,AI$61,""),"") ->  | AJ106: =IF(YEAR(AJ$61)>=FPFirstYear,IF(YEAR(AJ$61)<=FPLastYear,AJ$61,""),"") ->  | AK106: =IF(YEAR(AK$61)>=FPFirstYear,IF(YEAR(AK$61)<=FPLastYear,AK$61,""),"") ->  | AL106: =IF(YEAR(AL$61)>=FPFirstYear,IF(YEAR(AL$61)<=FPLastYear,AL$61,""),"") ->  | AO106: Scenario 5 | AP106: =IF(YEAR(AP$61)>=FPFirstYear,IF(YEAR(AP$61)<=FPLastYear,AP$61,""),"") ->  | AQ106: =IF(YEAR(AQ$61)>=FPFirstYear,IF(YEAR(AQ$61)<=FPLastYear,AQ$61,""),"") ->  | AR106: =IF(YEAR(AR$61)>=FPFirstYear,IF(YEAR(AR$61)<=FPLastYear,AR$61,""),"") ->  | AS106: =IF(YEAR(AS$61)>=FPFirstYear,IF(YEAR(AS$61)<=FPLastYear,AS$61,""),"") -> 
M107: 2023 | N107: 2024 | O107: 2025 | P107: 2026 | Q107: 2027 | R107: 2028 | T107: 2023 | U107: 2024 | V107: 2025 | W107: 2026 | X107: 2027 | Y107: 2028 | AA107: 2023 | AB107: 2024 | AC107: 2025 | AD107: 2026 | AE107: 2027 | AF107: 2028 | AH107: 2023 | AI107: 2024 | AJ107: 2025 | AK107: 2026 | AL107: 2027 | AM107: 2028 | AO107: 2023 | AP107: 2024 | AQ107: 2025 | AR107: 2026 | AS107: 2027 | AT107: 2028
B108: Energy | C108: external | D108: number | E108: n/a | F108: =CHOOSE($C$6,M108,T108,AA108,AH108,AO108) -> 10963.6 | G108: =CHOOSE($C$6,N108,U108,AB108,AI108,AP108) -> 10685.24 | H108: 10396 | I108: 10369.4 | J108: 10353.85 | K108: 10345.08 | AA108: 10963.6 | AB108: 10685.24 | AC108: 10396 | AD108: 10369.4 | AE108: 10353.85 | AF108: 10345.08
B109: Ratcheted maximum demand | C109: external | D109: number | E109: n/a | F109: =CHOOSE($C$6,M109,T109,AA109,AH109,AO109) -> 4403 | G109: 4403 | H109: 4403 | I109: 4403 | J109: 4403 | K109: 4403 | AA109: 4403 | AB109: 4403 | AC109: 4403 | AD109: 4403 | AE109: 4403 | AF109: 4403
B110: Customer numbers | C110: external | D110: number | E110: n/a | F110: 942766 | G110: 950069 | H110: 957324 | I110: 965939.916 | J110: 974633.3752 | K110: 983405.0756 | AA110: 942766 | AB110: 950069 | AC110: 957324 | AD110: 965939.916 | AE110: 974633.3752 | AF110: 983405.0756
B111: Circuit length | C111: external | D111: number | E111: n/a | F111: 5520 | G111: 5831 | H111: 6241 | I111: 6241 | J111: 6241 | K111: 6241 | AA111: 5520 | AB111: 5831 | AC111: 6241 | AD111: 6241 | AE111: 6241 | AF111: 6241
C112: external | D112: number | E112: n/a | F112: 0 | G112: 0 | H112: 0 | I112: 0 | J112: 0 | K112: 0
C113: external | D113: number | E113: n/a | F113: 0 | G113: 0 | H113: 0 | I113: 0 | J113: 0 | K113: 0
B115: Output Weights | C115: Source | D115: Unit | E115: Basis | F115: % | I115: =IF(YEAR(I$61)=PPLastYear,I$61,"") ->  | M115: Scenario 1 | N115: Scenario 2 | O115: Revenue Proposal | P115: Scenario 4 | Q115: Scenario 5
B117: =B108 -> Energy | C117: external | D117: number | E117: n/a | F117: =CHOOSE($C$6,M117,N117,O117,P117,Q117) -> 0.149 | O117: 0.149
B118: =B109 -> Ratcheted maximum demand | C118: external | D118: number | E118: n/a | F118: =CHOOSE($C$6,M118,N118,O118,P118,Q118) -> 0.247 | O118: 0.247
B119: Customer numbers | C119: external | D119: number | E119: n/a | F119: 0.076 | O119: 0.076
B120: Circuit length | C120: external | D120: number | E120: n/a | F120: 0.528 | O120: 0.528
C121: external | D121: number | E121: n/a | F121: 0
C122: external | D122: number | E122: n/a | F122: 0
B123: Check | F123: =SUM(F117:F122) -> 1 | M123: =SUM(M117:M122) -> 0 | N123: =SUM(N117:N122) -> 0 | O123: =SUM(O117:O122) -> 1 | P123: =SUM(P117:P122) -> 0 | Q123: =SUM(Q117:Q122) -> 0
B125: Partial factor productivity | C125: Source | D125: Unit | E125: Basis | F125: =F106 -> 2023-06-01 | G125: =G106 -> 2024-06-01 | H125: 2025-06-01 | I125: 2026-06-01 | J125: 2027-06-01 | K125: 2028-06-01 | L125: =IF(YEAR(L$61)>=FPFirstYear,IF(YEAR(L$61)<=FPLastYear,L$61,""),"") ->  | M125: Scenario 1 | N125: =IF(YEAR(N$61)>=FPFirstYear,IF(YEAR(N$61)<=FPLastYear,N$61,""),"") ->  | O125: =IF(YEAR(O$61)>=FPFirstYear,IF(YEAR(O$61)<=FPLastYear,O$61,""),"") ->  | P125: =IF(YEAR(P$61)>=FPFirstYear,IF(YEAR(P$61)<=FPLastYear,P$61,""),"") ->  | Q125: =IF(YEAR(Q$61)>=FPFirstYear,IF(YEAR(Q$61)<=FPLastYear,Q$61,""),"") ->  | S125: Scenario 2 | T125: =IF(YEAR(T$61)>=FPFirstYear,IF(YEAR(T$61)<=FPLastYear,T$61,""),"") ->  | U125: =IF(YEAR(U$61)>=FPFirstYear,IF(YEAR(U$61)<=FPLastYear,U$61,""),"") ->  | V125: =IF(YEAR(V$61)>=FPFirstYear,IF(YEAR(V$61)<=FPLastYear,V$61,""),"") ->  | W125: =IF(YEAR(W$61)>=FPFirstYear,IF(YEAR(W$61)<=FPLastYear,W$61,""),"") ->  | Y125: Revenue Proposal | Z125: =IF(YEAR(Z$61)>=FPFirstYear,IF(YEAR(Z$61)<=FPLastYear,Z$61,""),"") ->  | AA125: =IF(YEAR(AA$61)>=FPFirstYear,IF(YEAR(AA$61)<=FPLastYear,AA$61,""),"") ->  | AB125: =IF(YEAR(AB$61)>=FPFirstYear,IF(YEAR(AB$61)<=FPLastYear,AB$61,""),"") ->  | AC125: =IF(YEAR(AC$61)>=FPFirstYear,IF(YEAR(AC$61)<=FPLastYear,AC$61,""),"") ->  | AE125: Scenario 4 | AF125: =IF(YEAR(AF$61)>=FPFirstYear,IF(YEAR(AF$61)<=FPLastYear,AF$61,""),"") ->  | AG125: =IF(YEAR(AG$61)>=FPFirstYear,IF(YEAR(AG$61)<=FPLastYear,AG$61,""),"") ->  | AH125: =IF(YEAR(AH$61)>=FPFirstYear,IF(YEAR(AH$61)<=FPLastYear,AH$61,""),"") ->  | AI125: =IF(YEAR(AI$61)>=FPFirstYear,IF(YEAR(AI$61)<=FPLastYear,AI$61,""),"") ->  | AK125: Scenario 5 | AL125: =IF(YEAR(AL$61)>=FPFirstYear,IF(YEAR(AL$61)<=FPLastYear,AL$61,""),"") ->  | AM125: =IF(YEAR(AM$61)>=FPFirstYear,IF(YEAR(AM$61)<=FPLastYear,AM$61,""),"") ->  | AN125: =IF(YEAR(AN$61)>=FPFirstYear,IF(YEAR(AN$61)<=FPLastYear,AN$61,""),"") ->  | AO125: =IF(YEAR(AO$61)>=FPFirstYear,IF(YEAR(AO$61)<=FPLastYear,AO$61,""),"") -> 
M126: 2024 | N126: 2025 | O126: 2026 | P126: 2027 | Q126: 2028 | S126: 2024 | T126: 2025 | U126: 2026 | V126: 2027 | W126: 2028 | Y126: 2024 | Z126: 2025 | AA126: 2026 | AB126: 2027 | AC126: 2028 | AE126: 2024 | AF126: 2025 | AG126: 2026 | AH126: 2027 | AI126: 2028 | AK126: 2024 | AL126: 2025 | AM126: 2026 | AN126: 2027 | AO126: 2028
B127: Partial factor productivity | C127: external | D127: =percent -> Per cent | E127: n/a | G127: =CHOOSE($C$6,M127,S127,Y127,AE127,AK127) -> 0.003 | H127: =CHOOSE($C$6,N127,T127,Z127,AF127,AL127) -> 0.003 | I127: 0.003 | J127: 0.003 | K127: 0.003 | Y127: 0.003 | Z127: 0.003 | AA127: 0.003 | AB127: 0.003 | AC127: 0.003
C132: 0.0178 | D132: 0.0184 | E132: 0.0086 | F132: 0.0245 | G132: 0.0245 | H132: =$C$18 -> 0.024 | I132: =$C$18 -> 0.024 | J132: 0.024 | K132: 0.024 | L132: 0.024
B133: Escalator $ Real 2022-23 | C133: =D133/(1+C132) -> 0.9336588889 | D133: 0.9502780171 | E133: 0.9677631326 | F133: =G133/(1+F132) -> 0.9760858956 | G133: 1 | H133: =G133*(1+H132) -> 1.024 | I133: =H133*(1+I132) -> 1.048576 | J133: 1.073741824 | K133: 1.099511628 | L133: 1.125899907
B135: Live Case | Q135: Indicative Cost Breakdown Only
B137: $m Real 2022-23 (June end) | C137: 2019 | D137: 2020 | E137: 2021 | F137: 2022 | G137: 2023 | H137: 2024 | I137: 2025 | J137: 2026 | K137: 2027 | L137: 2028 | M137: Total 2019-23 | N137: Total 2024-28 | Q137: Cost Breakdown 2024-28
B138: Routine Maintenance | C138: =(C155/C$133)*(1+$C$18)^0.5 -> 20.11747163 | D138: =(D155/D$133)*(1+$C$18)^0.5 -> 19.2355078 | E138: 20.24889986 | F138: 19.89400518 | G138: 20.99024678 | H138: =H$149*Q138 -> 21.31763301 | I138: =I$149*R138 -> 22.03071314 | J138: 22.07153465 | K138: 22.07735086 | L138: 22.06987746 | M138: =SUM(C138:G138) -> 100.4861313 | N138: =SUM(H138:L138) -> 109.5671091 | Q138: 0.1764407308 | R138: 0.1775190337 | S138: 0.1775790392 | T138: 0.177587574 | U138: 0.1775766068
B139: Corrective Maintenance | C139: =(C156/C$133)*(1+$C$18)^0.5 -> 11.62111265 | D139: 11.11163505 | E139: 12.31624157 | F139: 11.99332057 | G139: 12.76716028 | H139: =H$149*Q139 -> 12.90143352 | I139: 13.33515917 | J139: 13.35998855 | K139: 13.36352621 | L139: 13.35898058 | M139: =SUM(C139:G139) -> 59.80947013 | N139: =SUM(H139:L139) -> 66.31908802 | Q139: 0.1067819471 | R139: 0.1074520173 | S139: 0.1074893055 | T139: 0.1074946091 | U139: 0.1074877939
B140: Operational Refurbishment | C140: 12.7698054 | D140: 12.20996832 | E140: 12.87032295 | F140: 13.88774105 | G140: 13.34152753 | H140: 13.48184144 | I140: 13.93507947 | J140: 13.96102587 | K140: 13.96472269 | L140: 13.95997255 | M140: 65.07936525 | N140: 69.30264201 | Q140: 0.1115858386 | R140: 0.1122860539 | S140: 0.1123250195 | T140: 0.1123305617 | U140: 0.11232344
B141: Maintenance Support | C141: 13.1608437 | D141: 13.21610496 | E141: 13.44454996 | F141: 14.54707088 | G141: 13.93677797 | H141: 14.66707144 | I141: 15.14053131 | J141: 15.16763534 | K141: 15.1714971 | L141: 15.16653503 | M141: 68.30534746 | N141: 75.31327022 | Q141: 0.1213956917 | R141: 0.1219993412 | S141: 0.1220329331 | T141: 0.122037711 | U141: 0.1220315714
B142: Network Operations / Asset Management | C142: 11.73512631 | D142: 11.74120372 | E142: 10.26312674 | F142: 11.97609439 | G142: 10.63887739 | H142: 10.75076731 | I142: 11.11219098 | J142: 11.13288131 | K142: 11.13582925 | L142: 11.13204137 | M142: 56.35442855 | N142: 55.26371023 | Q142: 0.08898141933 | R142: 0.08953978903 | S142: 0.08957086122 | T142: 0.08957528071 | U142: 0.08956960165
B143: Asset Management | C143: 10.21974138 | D143: 11.35446541 | E143: 10.20210565 | F143: 11.44504883 | G143: 10.57562221 | H143: 15.73863821 | I143: 16.09791298 | J143: 16.11848029 | K143: 16.1214107 | L143: 16.11764534 | M143: 53.79698348 | N143: 80.1940875 | Q143: 0.1302647825 | R143: 0.1297137292 | S143: 0.1296830641 | T143: 0.1296787025 | U143: 0.1296843072
B144: Insurance | C144: 3.060014883 | D144: 3.988588664 | E144: 5.313465753 | F144: 6.582769221 | G144: 5.508000838 | H144: 18.68409686 | I144: 18.92977544 | J144: 18.94383974 | K144: 18.9458436 | L144: 18.94326878 | M144: =SUM(C144:G144) -> 24.45283936 | N144: =SUM(H144:L144) -> 94.44682442 | Q144: 0.154643609 | R144: 0.1525323045 | S144: 0.1524148145 | T144: 0.1523981036 | U144: 0.1524195772
B145: Corporate Support | C145: 7.797171118 | D145: 10.68962507 | E145: 6.976384343 | F145: 3.339430704 | G145: 7.231801727 | H145: 11.61237507 | I145: 11.79949273 | J145: 11.81020461 | K145: 11.81173082 | L145: 11.80976975 | M145: 36.03441296 | N145: 58.84357298 | Q145: 0.09611273178 | R145: 0.09507792759 | S145: 0.09502034274 | T145: 0.09501215228 | U145: 0.09502267705
B146: Self Insurance | C146: 1.585823134 | D146: 1.595862845 | E146: 1.590914882 | F146: 1.635169671 | G146: 1.649161002 | H146: 1.666505359 | I146: 1.722530615 | J146: 1.725737878 | K146: 1.726194846 | L146: 1.725607676 | M146: 8.056931535 | N146: 8.566576374 | Q146: 0.01379324916 | R146: 0.01387980355 | S146: 0.01388462013 | T146: 0.01388530521 | U146: 0.01388442488
B147: Network Support | C147: 9.100375452 | D147: 11.20878926 | E147: 11.06834543 | F147: 11.61452085 | G147: 9.566668106 | H147: 0 | I147: 0 | J147: 0 | K147: 0 | L147: 0 | M147: 52.5586991 | N147: 0 | Q147: 0 | R147: 0 | S147: 0 | T147: 0 | U147: 0
Q148: =SUM(Q138:Q147) -> 1 | R148: =SUM(R138:R147) -> 1 | S148: 1 | T148: 1 | U148: 1
B149: Total Opex (ex. Category Specific) | C149: =SUM(C138:C147) -> 101.1674857 | D149: =SUM(D138:D147) -> 106.3517511 | E149: 104.2943571 | F149: 106.9151713 | G149: 106.2058438 | H149: =SUM('Output|Models'!O13) -> 120.8203622 | I149: =SUM('Output|Models'!P13) -> 124.1033858 | J149: =SUM('Output|Models'!Q13) -> 124.2913282 | K149: =SUM('Output|Models'!R13) -> 124.3181061 | L149: =SUM('Output|Models'!S13) -> 124.2836985 | M149: 524.9346091 | N149: 617.8168809
B150: Total Opex (ex. Network Support) | C150: =C149-C147 -> 92.06711021 | D150: 95.14296186 | E150: 93.22601171 | F150: 95.30065049 | G150: 96.63917573 | H150: =H149-H147 -> 120.8203622 | I150: =I149-I147 -> 124.1033858 | J150: 124.2913282 | K150: 124.3181061 | L150: 124.2836985 | M150: 472.37591 | N150: 617.8168809
B151: Category Specific Forecast | H151: 0 | I151: 0 | J151: 0 | K151: 0 | L151: 0 | M151: ='Output|Models'!T14 -> 0 | N151: 0
B152: TOTAL | C152: =C150+C151 -> 92.06711021 | D152: =D150+D151 -> 95.14296186 | E152: 93.22601171 | F152: 95.30065049 | G152: 96.63917573 | H152: 120.8203622 | I152: 124.1033858 | J152: 124.2913282 | K152: 124.3181061 | L152: 124.2836985 | M152: 472.37591 | N152: 617.8168809
B154: $m Nominal | C154: 2019 | D154: 2020 | E154: 2021 | F154: 2022 | G154: 2023 | H154: 2024 | I154: 2025 | J154: 2026 | K154: 2027 | L154: 2028 | M154: Total 2019-23 | N154: Total 2024-28
B155: Routine Maintenance | C155: 18.56143956 | D155: 18.06360219 | E155: 19.36513495 | F155: 19.18935095 | G155: 20.7428089 | H155: =H138*H$133 -> 21.8292562 | I155: =I138*I$133 -> 23.10087706 | J155: 23.69912987 | K155: 24.27430398 | L155: 24.84847298 | M155: =SUM(C155:G155) -> 95.92233655 | N155: =SUM(H155:L155) -> 117.7520401
B156: Corrective Maintenance | C156: 10.72225099 | D156: 10.43466891 | E156: 11.77869819 | F156: 11.56851199 | G156: 12.61665804 | H156: =H139*H$133 -> 13.21106793 | I156: 13.98292786 | J156: 14.34517847 | K156: 14.69335246 | L156: 15.04087499 | M156: =SUM(C156:G156) -> 57.12078812 | N156: =SUM(H156:L156) -> 71.2734017
B157: Operational Refurbishment | C157: 11.78209545 | D157: 11.46608724 | E157: 12.30859664 | F157: 13.39583128 | G157: 13.18425452 | H157: 13.80540563 | I157: 14.61198989 | J157: 14.99053738 | K157: 15.35437497 | L157: 15.7175318 | M157: 62.13686513 | N157: 74.47983967
B158: Maintenance Support | C158: 12.142888 | D158: 12.41092593 | E158: 12.85776146 | F158: 14.03180736 | G158: 13.77248801 | H158: 15.01908116 | I158: 15.87599776 | J158: 16.28612444 | K158: 16.68123747 | L158: 17.07600038 | M158: 65.21587076 | N158: 80.9384412
B159: Network Operations / Asset Management | C159: 10.827446 | D159: 11.02588169 | E159: 9.81519172 | F159: 11.55189597 | G159: 10.51346385 | H159: 11.00878573 | I159: 11.65197677 | J159: 11.95384029 | K159: 12.24397374 | L159: 12.53356434 | M159: 53.73387923 | N159: 59.39214087
B160: Asset Management | C160: 9.429272 | D160: 10.66270505 | E160: 9.7568339 | F160: 11.03966027 | G160: 10.45095433 | H160: 16.11636553 | I160: 16.8798852 | J160: 17.30708642 | K160: 17.72567852 | L160: 18.14685538 | M160: 51.33942555 | N160: 86.17587105
B161: Insurance | C161: 2.823331 | D161: 3.74558757 | E161: 5.0815591 | F161: 6.3496047 | G161: 5.443071251 | H161: 19.13251518 | I161: 19.84930821 | J161: 20.34079303 | K161: 20.83117534 | L161: 21.32822456 | M161: =SUM(C161:G161) -> 23.44315362 | N161: =SUM(H161:L161) -> 101.4820163
B162: Corporate Support | C162: 7.194081 | D162: 10.0383695 | E162: 6.67189947 | F162: 3.22114663 | G162: 7.146551576 | H162: 11.89107207 | I162: 12.37266489 | J162: 12.68111064 | K162: 12.98713539 | L162: 13.29661866 | M162: 34.27204818 | N162: 63.22860164
B163: Self Insurance | C163: 1.463164 | D163: 1.49863637 | E163: 1.52147927 | F163: 1.577251257 | G163: 1.62972031 | H163: 1.706501488 | I163: 1.806204262 | J163: 1.852996937 | K163: 1.897971305 | L163: 1.942861522 | M163: 7.690251208 | N163: 9.206535513
B164: Network Support | C164: 8.396486 | D164: 10.52590409 | E164: 10.58526658 | F164: 11.20312952 | G164: 9.453894011 | H164: 0 | I164: 0 | J164: 0 | K164: 0 | L164: 0 | M164: 50.1646802 | N164: 0
B166: Total Opex (ex. Category Specific) | C166: =SUM(C155:C164) -> 93.342454 | D166: =SUM(D155:D164) -> 99.87236854 | E166: 99.74242128 | F166: 103.1281899 | G166: 104.9538648 | H166: =SUM(H155:H164) -> 123.7200509 | I166: =SUM(I155:I164) -> 130.1318319 | J166: 133.4567975 | K166: 136.6892032 | L166: 139.9310046 | M166: 501.0392985 | N166: =SUM(H166:L166) -> 663.928888
B167: Total Opex (ex. Network Support, category specific) | C167: =C166-C164 -> 84.945968 | D167: =D166-D164 -> 89.34646445 | E167: 89.1571547 | F167: 91.92506041 | G167: 95.49997078 | H167: =H166-H164 -> 123.7200509 | I167: =I166-I164 -> 130.1318319 | J167: 133.4567975 | K167: 136.6892032 | L167: 139.9310046 | M167: =SUM(C167:G167) -> 450.8746183 | N167: =SUM(H167:L167) -> 663.928888
B168: Category Specific Forecast | H168: 0 | I168: 0 | J168: 0 | K168: 0 | L168: 0 | M168: 0 | N168: 0
B169: TOTAL | C169: =C167+C168 -> 84.945968 | D169: =D167+D168 -> 89.34646445 | E169: 89.1571547 | F169: 91.92506041 | G169: 95.49997078 | H169: 123.7200509 | I169: 130.1318319 | J169: 133.4567975 | K169: 136.6892032 | L169: 139.9310046 | M169: =SUM(C169:G169) -> 450.8746183 | N169: 663.928888

Sheet Input|General
B1: =Index!$B$1 -> AER opex model | J1: Back to Index | L1: Key: | M1: Input | N1: External Link | O1: Internal Link | R1: Worksheet check: | S1: =IF(COUNTA($S$5:$S$15)=COUNTIF($S5:$S16,"OK"),"OK","Check") -> OK | U1: Overall Check: | V1: ='Check|List'!$S$1 -> Ok
B2: =Index!$C$7 -> Input | General
B4: Input | General inputs
C6: Inputs | D6: Source | G6: Value
C7: NSP name | D7: NSP | G7: ElectraNet | S7: =IF(COUNTBLANK($G7),"Check","Ok") -> Ok
C8: Decision stage | D8: AER | G8: draft | S8: =IF(COUNTBLANK($G8),"Check","Ok") -> Ok
C9: Year ending | D9: NSP | G9: 2000-06-01 | S9: =IF(COUNTBLANK($G9),"Check","Ok") -> Ok
C10: Previous regulatory control period, first year | D10: NSP | G10: 2019 | S10: =IF(COUNTBLANK($G10),"Check","Ok") -> Ok
C11: Forecast base year | D11: NSP | G11: 2021 | S11: Ok
C12: Previous regulatory control period, last year | D12: NSP | G12: 2023 | S12: Ok
C13: Forecast regulatory control period, first year | D13: NSP | G13: 2024 | S13: Ok
C14: Forecast regulatory control period, last year | D14: NSP | G14: 2028 | S14: Ok
B16: End

Sheet Input|Inflation
B1: =Index!$B$1 -> AER opex model | K1: Back to Index | M1: Key: | N1: Input | O1: External Link | P1: Internal Link | S1: Worksheet check: | T1: =IF(COUNTA($T$5:$T$107)=COUNTIF($T5:$T108,"OK"),"OK","Check") -> OK | V1: Overall Check: | W1: ='Check|List'!$S$1 -> Ok
B2: =Index!$C$7 -> Input | General
B4: Input | General inputs
D6: Index value, new base | E6: Percentage Change from Corresponding Quarter of Previous Year | F6: Index value, new base | G6: Percentage Change from Corresponding Quarter of Previous Year
C7: Source | D7: ABS | E7: Calculated | F7: ABS | G7: Calculated
C8: Unit | D8: index | E8: Percent | F8: index | G8: Percent
C9: 2007-03-31 | D9: 155.6 | T9: =IF(C9>EOMONTH(DATE('Input|General'!$G$12,MONTH('Input|General'!$G$9),1),0),"Ok",IF(ISBLANK($D9),"Check","Ok")) -> Ok
C10: 2007-06-30 | D10: 157.5 | T10: =IF(C10>EOMONTH(DATE('Input|General'!$G$12,MONTH('Input|General'!$G$9),1),0),"Ok",IF(ISBLANK($D10),"Check","Ok")) -> Ok
C11: 2007-09-30 | D11: 158.6 | T11: =IF(C11>EOMONTH(DATE('Input|General'!$G$12,MONTH('Input|General'!$G$9),1),0),"Ok",IF(ISBLANK($D11),"Check","Ok")) -> Ok
C12: 2007-12-31 | D12: 160.1 | T12: =IF(C12>EOMONTH(DATE('Input|General'!$G$12,MONTH('Input|General'!$G$9),1),0),"Ok",IF(ISBLANK($D12),"Check","Ok")) -> Ok
C13: 2008-03-31 | D13: 162.2 | E13: =D13/D9-1 -> 0.04241645244 | T13: =IF(C13>EOMONTH(DATE('Input|General'!$G$12,MONTH('Input|General'!$G$9),1),0),"Ok",IF(ISBLANK($D13),"Check","Ok")) -> Ok
C14: 2008-06-30 | D14: 164.6 | E14: =D14/D10-1 -> 0.04507936508 | T14: =IF(C14>EOMONTH(DATE('Input|General'!$G$12,MONTH('Input|General'!$G$9),1),0),"Ok",IF(ISBLANK($D14),"Check","Ok")) -> Ok
C15: 2008-09-30 | D15: 166.5 | E15: 0.04981084489 | T15: =IF(C15>EOMONTH(DATE('Input|General'!$G$12,MONTH('Input|General'!$G$9),1),0),"Ok",IF(ISBLANK($D15),"Check","Ok")) -> Ok
C16: 2008-12-31 | D16: 166 | E16: 0.03685196752 | T16: =IF(C16>EOMONTH(DATE('Input|General'!$G$12,MONTH('Input|General'!$G$9),1),0),"Ok",IF(ISBLANK($D16),"Check","Ok")) -> Ok
C17: 2009-03-31 | D17: 166.2 | E17: 0.02466091245 | T17: =IF(C17>EOMONTH(DATE('Input|General'!$G$12,MONTH('Input|General'!$G$9),1),0),"Ok",IF(ISBLANK($D17),"Check","Ok")) -> Ok
C18: 2009-06-30 | D18: 167 | E18: 0.01458080194 | T18: =IF(C18>EOMONTH(DATE('Input|General'!$G$12,MONTH('Input|General'!$G$9),1),0),"Ok",IF(ISBLANK($D18),"Check","Ok")) -> Ok
C19: 2009-09-30 | D19: 168.6 | E19: 0.01261261261 | T19: =IF(C19>EOMONTH(DATE('Input|General'!$G$12,MONTH('Input|General'!$G$9),1),0),"Ok",IF(ISBLANK($D19),"Check","Ok")) -> Ok
C20: 2009-12-31 | D20: 169.5 | E20: 0.02108433735 | T20: =IF(C20>EOMONTH(DATE('Input|General'!$G$12,MONTH('Input|General'!$G$9),1),0),"Ok",IF(ISBLANK($D20),"Check","Ok")) -> Ok
C21: 2010-03-31 | D21: 171 | E21: 0.02888086643 | F21: 95.2 | T21: =IF(C21>EOMONTH(DATE('Input|General'!$G$12,MONTH('Input|General'!$G$9),1),0),"Ok",IF(ISBLANK($F21),"Check","Ok")) -> Ok
C22: 2010-06-30 | D22: 172.1 | E22: 0.03053892216 | F22: 95.8 | T22: =IF(C22>EOMONTH(DATE('Input|General'!$G$12,MONTH('Input|General'!$G$9),1),0),"Ok",IF(ISBLANK($F22),"Check","Ok")) -> Ok
C23: 2010-09-30 | D23: 173.3 | E23: 0.02787663108 | F23: 96.5 | T23: =IF(C23>EOMONTH(DATE('Input|General'!$G$12,MONTH('Input|General'!$G$9),1),0),"Ok",IF(ISBLANK($F23),"Check","Ok")) -> Ok
C24: 2010-12-31 | D24: 174 | E24: 0.02654867257 | F24: 96.9 | T24: =IF(C24>EOMONTH(DATE('Input|General'!$G$12,MONTH('Input|General'!$G$9),1),0),"Ok",IF(ISBLANK($F24),"Check","Ok")) -> Ok
C25: 2011-03-31 | D25: 176.7 | E25: 0.03333333333 | F25: 98.3 | G25: =IF(ISBLANK(F25),"",F25/F21-1) -> 0.03256302521 | T25: =IF(C25>EOMONTH(DATE('Input|General'!$G$12,MONTH('Input|General'!$G$9),1),0),"Ok",IF(ISBLANK($F25),"Check","Ok")) -> Ok
C26: 2011-06-30 | D26: 178.3 | E26: 0.03602556653 | F26: 99.2 | G26: =IF(ISBLANK(F26),"",F26/F22-1) -> 0.03549060543 | T26: =IF(C26>EOMONTH(DATE('Input|General'!$G$12,MONTH('Input|General'!$G$9),1),0),"Ok",IF(ISBLANK($F26),"Check","Ok")) -> Ok
C27: 2011-09-30 | D27: 179.4 | E27: 0.03519907675 | F27: 99.8 | G27: 0.03419689119 | T27: =IF(C27>EOMONTH(DATE('Input|General'!$G$12,MONTH('Input|General'!$G$9),1),0),"Ok",IF(ISBLANK($F27),"Check","Ok")) -> Ok
C28: 2011-12-31 | D28: 179.4 | E28: 0.03103448276 | F28: 99.8 | G28: 0.02992776058 | T28: =IF(C28>EOMONTH(DATE('Input|General'!$G$12,MONTH('Input|General'!$G$9),1),0),"Ok",IF(ISBLANK($F28),"Check","Ok")) -> Ok
C29: 2012-03-31 | D29: 179.5 | E29: 0.01584606678 | F29: 99.9 | G29: 0.01627670397 | T29: =IF(C29>EOMONTH(DATE('Input|General'!$G$12,MONTH('Input|General'!$G$9),1),0),"Ok",IF(ISBLANK($F29),"Check","Ok")) -> Ok
C30: 2012-06-30 | F30: 100.4 | G30: 0.01209677419 | T30: =IF(C30>EOMONTH(DATE('Input|General'!$G$12,MONTH('Input|General'!$G$9),1),0),"Ok",IF(ISBLANK($F30),"Check","Ok")) -> Ok
C31: 2012-09-30 | F31: 101.8 | G31: 0.02004008016 | T31: =IF(C31>EOMONTH(DATE('Input|General'!$G$12,MONTH('Input|General'!$G$9),1),0),"Ok",IF(ISBLANK($F31),"Check","Ok")) -> Ok
C32: 2012-12-31 | F32: 102 | G32: 0.02204408818 | T32: =IF(C32>EOMONTH(DATE('Input|General'!$G$12,MONTH('Input|General'!$G$9),1),0),"Ok",IF(ISBLANK($F32),"Check","Ok")) -> Ok
C33: 2013-03-31 | F33: 102.4 | G33: 0.02502502503 | T33: =IF(C33>EOMONTH(DATE('Input|General'!$G$12,MONTH('Input|General'!$G$9),1),0),"Ok",IF(ISBLANK($F33),"Check","Ok")) -> Ok
C34: 2013-06-30 | F34: 102.8 | G34: 0.02390438247 | T34: =IF(C34>EOMONTH(DATE('Input|General'!$G$12,MONTH('Input|General'!$G$9),1),0),"Ok",IF(ISBLANK($F34),"Check","Ok")) -> Ok
C35: 2013-09-30 | F35: 104 | G35: 0.02161100196 | T35: =IF(C35>EOMONTH(DATE('Input|General'!$G$12,MONTH('Input|General'!$G$9),1),0),"Ok",IF(ISBLANK($F35),"Check","Ok")) -> Ok
C36: 2013-12-31 | F36: 104.8 | G36: 0.02745098039 | T36: =IF(C36>EOMONTH(DATE('Input|General'!$G$12,MONTH('Input|General'!$G$9),1),0),"Ok",IF(ISBLANK($F36),"Check","Ok")) -> Ok
C37: 2014-03-31 | F37: 105.4 | G37: 0.029296875 | T37: =IF(C37>EOMONTH(DATE('Input|General'!$G$12,MONTH('Input|General'!$G$9),1),0),"Ok",IF(ISBLANK($F37),"Check","Ok")) -> Ok
C38: 2014-06-30 | F38: 105.9 | G38: 0.03015564202 | T38: =IF(C38>EOMONTH(DATE('Input|General'!$G$12,MONTH('Input|General'!$G$9),1),0),"Ok",IF(ISBLANK($F38),"Check","Ok")) -> Ok
C39: 2014-09-30 | F39: 106.4 | G39: 0.02307692308 | T39: =IF(C39>EOMONTH(DATE('Input|General'!$G$12,MONTH('Input|General'!$G$9),1),0),"Ok",IF(ISBLANK($F39),"Check","Ok")) -> Ok
C40: 2014-12-31 | F40: 106.6 | G40: 0.01717557252 | T40: =IF(C40>EOMONTH(DATE('Input|General'!$G$12,MONTH('Input|General'!$G$9),1),0),"Ok",IF(ISBLANK($F40),"Check","Ok")) -> Ok
C41: 2015-03-31 | F41: 106.8 | G41: 0.01328273245 | T41: =IF(C41>EOMONTH(DATE('Input|General'!$G$12,MONTH('Input|General'!$G$9),1),0),"Ok",IF(ISBLANK($F41),"Check","Ok")) -> Ok
C42: 2015-06-30 | F42: 107.5 | G42: 0.01510859301 | T42: =IF(C42>EOMONTH(DATE('Input|General'!$G$12,MONTH('Input|General'!$G$9),1),0),"Ok",IF(ISBLANK($F42),"Check","Ok")) -> Ok
C43: 2015-09-30 | F43: 108 | G43: 0.01503759398 | T43: =IF(C43>EOMONTH(DATE('Input|General'!$G$12,MONTH('Input|General'!$G$9),1),0),"Ok",IF(ISBLANK($F43),"Check","Ok")) -> Ok
C44: 2015-12-31 | F44: 108.4 | G44: 0.01688555347 | T44: =IF(C44>EOMONTH(DATE('Input|General'!$G$12,MONTH('Input|General'!$G$9),1),0),"Ok",IF(ISBLANK($F44),"Check","Ok")) -> Ok
C45: 2016-03-31 | F45: 108.2 | G45: 0.01310861423 | T45: =IF(C45>EOMONTH(DATE('Input|General'!$G$12,MONTH('Input|General'!$G$9),1),0),"Ok",IF(ISBLANK($F45),"Check","Ok")) -> Ok
C46: 2016-06-30 | F46: 108.6 | G46: 0.01023255814 | T46: =IF(C46>EOMONTH(DATE('Input|General'!$G$12,MONTH('Input|General'!$G$9),1),0),"Ok",IF(ISBLANK($F46),"Check","Ok")) -> Ok
C47: 2016-09-30 | F47: 109.4 | G47: 0.01296296296 | T47: =IF(C47>EOMONTH(DATE('Input|General'!$G$12,MONTH('Input|General'!$G$9),1),0),"Ok",IF(ISBLANK($F47),"Check","Ok")) -> Ok
C48: 2016-12-31 | F48: 110 | G48: 0.0147601476 | T48: =IF(C48>EOMONTH(DATE('Input|General'!$G$12,MONTH('Input|General'!$G$9),1),0),"Ok",IF(ISBLANK($F48),"Check","Ok")) -> Ok
C49: 2017-03-31 | F49: 110.5 | G49: 0.02125693161 | T49: =IF(C49>EOMONTH(DATE('Input|General'!$G$12,MONTH('Input|General'!$G$9),1),0),"Ok",IF(ISBLANK($F49),"Check","Ok")) -> Ok
C50: 2017-06-30 | F50: 110.7 | G50: 0.01933701657 | T50: =IF(C50>EOMONTH(DATE('Input|General'!$G$12,MONTH('Input|General'!$G$9),1),0),"Ok",IF(ISBLANK($F50),"Check","Ok")) -> Ok
C51: 2017-09-30 | F51: 111.4 | G51: 0.01828153565 | T51: =IF(C51>EOMONTH(DATE('Input|General'!$G$12,MONTH('Input|General'!$G$9),1),0),"Ok",IF(ISBLANK($F51),"Check","Ok")) -> Ok
C52: 2017-12-31 | F52: 112.1 | G52: 0.01909090909 | T52: =IF(C52>EOMONTH(DATE('Input|General'!$G$12,MONTH('Input|General'!$G$9),1),0),"Ok",IF(ISBLANK($F52),"Check","Ok")) -> Ok
C53: 2018-03-31 | F53: 112.6 | G53: 0.01900452489 | T53: =IF(C53>EOMONTH(DATE('Input|General'!$G$12,MONTH('Input|General'!$G$9),1),0),"Ok",IF(ISBLANK($F53),"Check","Ok")) -> Ok
C54: 2018-06-30 | F54: 113 | G54: 0.02077687444 | T54: =IF(C54>EOMONTH(DATE('Input|General'!$G$12,MONTH('Input|General'!$G$9),1),0),"Ok",IF(ISBLANK($F54),"Check","Ok")) -> Ok
C55: 2018-09-30 | F55: 113.5 | G55: 0.01885098743 | T55: =IF(C55>EOMONTH(DATE('Input|General'!$G$12,MONTH('Input|General'!$G$9),1),0),"Ok",IF(ISBLANK($F55),"Check","Ok")) -> Ok
C56: 2018-12-31 | F56: 114.1 | G56: 0.0178412132 | T56: =IF(C56>EOMONTH(DATE('Input|General'!$G$12,MONTH('Input|General'!$G$9),1),0),"Ok",IF(ISBLANK($F56),"Check","Ok")) -> Ok
C57: 2019-03-31 | F57: 114.1 | G57: 0.01332149201 | T57: =IF(C57>EOMONTH(DATE('Input|General'!$G$12,MONTH('Input|General'!$G$9),1),0),"Ok",IF(ISBLANK($F57),"Check","Ok")) -> Ok
C58: 2019-06-30 | F58: 114.8 | G58: 0.01592920354 | T58: =IF(C58>EOMONTH(DATE('Input|General'!$G$12,MONTH('Input|General'!$G$9),1),0),"Ok",IF(ISBLANK($F58),"Check","Ok")) -> Ok
C59: 2019-09-30 | F59: 115.4 | G59: 0.01674008811 | T59: =IF(C59>EOMONTH(DATE('Input|General'!$G$12,MONTH('Input|General'!$G$9),1),0),"Ok",IF(ISBLANK($F59),"Check","Ok")) -> Ok
C60: 2019-12-31 | F60: 116.2 | G60: 0.01840490798 | T60: =IF(C60>EOMONTH(DATE('Input|General'!$G$12,MONTH('Input|General'!$G$9),1),0),"Ok",IF(ISBLANK($F60),"Check","Ok")) -> Ok
C61: 2020-03-31 | F61: 116.6 | G61: 0.02191060473 | T61: =IF(C61>EOMONTH(DATE('Input|General'!$G$12,MONTH('Input|General'!$G$9),1),0),"Ok",IF(ISBLANK($F61),"Check","Ok")) -> Ok
C62: 2020-06-30 | F62: 114.4 | G62: -0.003484320557 | T62: =IF(C62>EOMONTH(DATE('Input|General'!$G$12,MONTH('Input|General'!$G$9),1),0),"Ok",IF(ISBLANK($F62),"Check","Ok")) -> Ok
C63: 2020-09-30 | F63: 116.2 | G63: 0.006932409012 | T63: =IF(C63>EOMONTH(DATE('Input|General'!$G$12,MONTH('Input|General'!$G$9),1),0),"Ok",IF(ISBLANK($F63),"Check","Ok")) -> Ok
C64: 2020-12-31 | F64: 117.2 | G64: 0.008605851979 | T64: =IF(C64>EOMONTH(DATE('Input|General'!$G$12,MONTH('Input|General'!$G$9),1),0),"Ok",IF(ISBLANK($F64),"Check","Ok")) -> Ok
C65: 2021-03-31 | F65: 117.9 | G65: 0.01114922813 | T65: =IF(C65>EOMONTH(DATE('Input|General'!$G$12,MONTH('Input|General'!$G$9),1),0),"Ok",IF(ISBLANK($F65),"Check","Ok")) -> Ok
C66: 2021-06-30 | F66: 118.8 | G66: 0.03846153846 | T66: =IF(C66>EOMONTH(DATE('Input|General'!$G$12,MONTH('Input|General'!$G$9),1),0),"Ok",IF(ISBLANK($F66),"Check","Ok")) -> Ok
C67: 2021-09-30 | F67: 119.7 | G67: 0.03012048193 | T67: =IF(C67>EOMONTH(DATE('Input|General'!$G$12,MONTH('Input|General'!$G$9),1),0),"Ok",IF(ISBLANK($F67),"Check","Ok")) -> Ok
C68: 2021-12-31 | F68: =F64*(1+Assumptions!$C$17) -> 120.0714 | G68: 0.0245 | T68: =IF(C68>EOMONTH(DATE('Input|General'!$G$12,MONTH('Input|General'!$G$9),1),0),"Ok",IF(ISBLANK($F68),"Check","Ok")) -> Ok
C69: 2022-03-31 | F69: =F65*(1+Assumptions!$C$17) -> 120.78855 | G69: 0.0245 | T69: =IF(C69>EOMONTH(DATE('Input|General'!$G$12,MONTH('Input|General'!$G$9),1),0),"Ok",IF(ISBLANK($F69),"Check","Ok")) -> Ok
C70: 2022-06-30 | F70: =F66*(1+Assumptions!$C$17) -> 121.7106 | G70: 0.0245 | T70: =IF(C70>EOMONTH(DATE('Input|General'!$G$12,MONTH('Input|General'!$G$9),1),0),"Ok",IF(ISBLANK($F70),"Check","Ok")) -> Ok
C71: 2022-09-30 | F71: =F67*(1+Assumptions!$C$17) -> 122.63265 | G71: 0.0245 | T71: =IF(C71>EOMONTH(DATE('Input|General'!$G$12,MONTH('Input|General'!$G$9),1),0),"Ok",IF(ISBLANK($F71),"Check","Ok")) -> Ok
C72: 2022-12-31 | F72: =F68*(1+Assumptions!$C$17) -> 123.0131493 | G72: 0.0245 | T72: =IF(C72>EOMONTH(DATE('Input|General'!$G$12,MONTH('Input|General'!$G$9),1),0),"Ok",IF(ISBLANK($F72),"Check","Ok")) -> Ok
C73: 2023-03-31 | F73: =F69*(1+Assumptions!$C$17) -> 123.7478695 | G73: 0.0245 | T73: =IF(C73>EOMONTH(DATE('Input|General'!$G$12,MONTH('Input|General'!$G$9),1),0),"Ok",IF(ISBLANK($F73),"Check","Ok")) -> Ok
C74: 2023-06-30 | F74: =F70*(1+Assumptions!$C$17) -> 124.6925097 | G74: 0.0245 | T74: =IF(C74>EOMONTH(DATE('Input|General'!$G$12,MONTH('Input|General'!$G$9),1),0),"Ok",IF(ISBLANK($F74),"Check","Ok")) -> Ok
C75: 2023-09-30 | F75: =F71*(1+Assumptions!$C$18) -> 125.5758336 | G75: 0.024 | T75: =IF(C75>EOMONTH(DATE('Input|General'!$G$12,MONTH('Input|General'!$G$9),1),0),"Ok",IF(ISBLANK($F75),"Check","Ok")) -> Ok
C76: 2023-12-31 | F76: =F72*(1+Assumptions!$C$18) -> 125.9654649 | G76: 0.024 | T76: =IF(C76>EOMONTH(DATE('Input|General'!$G$12,MONTH('Input|General'!$G$9),1),0),"Ok",IF(ISBLANK($F76),"Check","Ok")) -> Ok
C77: 2024-03-31 | F77: =F73*(1+Assumptions!$C$18) -> 126.7178183 | G77: 0.024 | T77: =IF(C77>EOMONTH(DATE('Input|General'!$G$12,MONTH('Input|General'!$G$9),1),0),"Ok",IF(ISBLANK($F77),"Check","Ok")) -> Ok
C78: 2024-06-30 | F78: =F74*(1+Assumptions!$C$18) -> 127.6851299 | G78: 0.024 | T78: =IF(C78>EOMONTH(DATE('Input|General'!$G$12,MONTH('Input|General'!$G$9),1),0),"Ok",IF(ISBLANK($F78),"Check","Ok")) -> Ok
C79: 2024-09-30 | F79: =F75*(1+Assumptions!$C$18) -> 128.5896536 | G79: 0.024 | T79: =IF(C79>EOMONTH(DATE('Input|General'!$G$12,MONTH('Input|General'!$G$9),1),0),"Ok",IF(ISBLANK($F79),"Check","Ok")) -> Ok
C80: 2024-12-31 | F80: =F76*(1+Assumptions!$C$18) -> 128.988636 | G80: 0.024 | T80: =IF(C80>EOMONTH(DATE('Input|General'!$G$12,MONTH('Input|General'!$G$9),1),0),"Ok",IF(ISBLANK($F80),"Check","Ok")) -> Ok
C81: 2025-03-31 | F81: =F77*(1+Assumptions!$C$18) -> 129.759046 | G81: 0.024 | T81: =IF(C81>EOMONTH(DATE('Input|General'!$G$12,MONTH('Input|General'!$G$9),1),0),"Ok",IF(ISBLANK($F81),"Check","Ok")) -> Ok
C82: 2025-06-30 | F82: =F78*(1+Assumptions!$C$18) -> 130.7495731 | G82: 0.024 | T82: =IF(C82>EOMONTH(DATE('Input|General'!$G$12,MONTH('Input|General'!$G$9),1),0),"Ok",IF(ISBLANK($F82),"Check","Ok")) -> Ok
C83: 2025-09-30 | F83: =F79*(1+Assumptions!$C$18) -> 131.6758053 | G83: 0.024 | T83: =IF(C83>EOMONTH(DATE('Input|General'!$G$12,MONTH('Input|General'!$G$9),1),0),"Ok",IF(ISBLANK($F83),"Check","Ok")) -> Ok
C84: 2025-12-31 | F84: =F80*(1+Assumptions!$C$18) -> 132.0843633 | G84: 0.024 | T84: =IF(C84>EOMONTH(DATE('Input|General'!$G$12,MONTH('Input|General'!$G$9),1),0),"Ok",IF(ISBLANK($F84),"Check","Ok")) -> Ok
C85: 2026-03-31 | F85: =F81*(1+Assumptions!$C$18) -> 132.8732631 | G85: 0.024 | T85: =IF(C85>EOMONTH(DATE('Input|General'!$G$12,MONTH('Input|General'!$G$9),1),0),"Ok",IF(ISBLANK($F85),"Check","Ok")) -> Ok
C86: 2026-06-30 | F86: =F82*(1+Assumptions!$C$18) -> 133.8875628 | G86: 0.024 | T86: =IF(C86>EOMONTH(DATE('Input|General'!$G$12,MONTH('Input|General'!$G$9),1),0),"Ok",IF(ISBLANK($F86),"Check","Ok")) -> Ok
C87: 2026-09-30 | F87: =F83*(1+Assumptions!$C$18) -> 134.8360246 | G87: 0.024 | T87: =IF(C87>EOMONTH(DATE('Input|General'!$G$12,MONTH('Input|General'!$G$9),1),0),"Ok",IF(ISBLANK($F87),"Check","Ok")) -> Ok
C88: 2026-12-31 | F88: =F84*(1+Assumptions!$C$18) -> 135.254388 | G88: 0.024 | T88: =IF(C88>EOMONTH(DATE('Input|General'!$G$12,MONTH('Input|General'!$G$9),1),0),"Ok",IF(ISBLANK($F88),"Check","Ok")) -> Ok
C89: 2027-03-31 | F89: =F85*(1+Assumptions!$C$18) -> 136.0622214 | G89: 0.024 | T89: =IF(C89>EOMONTH(DATE('Input|General'!$G$12,MONTH('Input|General'!$G$9),1),0),"Ok",IF(ISBLANK($F89),"Check","Ok")) -> Ok
C90: 2027-06-30 | F90: =F86*(1+Assumptions!$C$18) -> 137.1008643 | G90: =IF(ISBLANK(F90),"",F90/F86-1) -> 0.024 | T90: =IF(C90>EOMONTH(DATE('Input|General'!$G$12,MONTH('Input|General'!$G$9),1),0),"Ok",IF(ISBLANK($F90),"Check","Ok")) -> Ok
C91: 2027-09-30 | F91: =F87*(1+Assumptions!$C$18) -> 138.0720892 | G91: 0.024 | T91: =IF(C91>EOMONTH(DATE('Input|General'!$G$12,MONTH('Input|General'!$G$9),1),0),"Ok",IF(ISBLANK($F91),"Check","Ok")) -> Ok
C92: 2027-12-31 | F92: =F88*(1+Assumptions!$C$18) -> 138.5004933 | G92: 0.024 | T92: =IF(C92>EOMONTH(DATE('Input|General'!$G$12,MONTH('Input|General'!$G$9),1),0),"Ok",IF(ISBLANK($F92),"Check","Ok")) -> Ok
C93: 2028-03-31 | F93: =F89*(1+Assumptions!$C$18) -> 139.3277147 | G93: 0.024 | T93: =IF(C93>EOMONTH(DATE('Input|General'!$G$12,MONTH('Input|General'!$G$9),1),0),"Ok",IF(ISBLANK($F93),"Check","Ok")) -> Ok
C94: 2028-06-30 | F94: =F90*(1+Assumptions!$C$18) -> 140.3912851 | G94: 0.024 | T94: =IF(C94>EOMONTH(DATE('Input|General'!$G$12,MONTH('Input|General'!$G$9),1),0),"Ok",IF(ISBLANK($F94),"Check","Ok")) -> Ok
C95: 2028-09-30 | F95: =F91*(1+Assumptions!$C$18) -> 141.3858194 | G95: 0.024 | T95: =IF(C95>EOMONTH(DATE('Input|General'!$G$12,MONTH('Input|General'!$G$9),1),0),"Ok",IF(ISBLANK($F95),"Check","Ok")) -> Ok
C96: 2028-12-31 | F96: =F92*(1+Assumptions!$C$18) -> 141.8245052 | G96: 0.024 | T96: =IF(C96>EOMONTH(DATE('Input|General'!$G$12,MONTH('Input|General'!$G$9),1),0),"Ok",IF(ISBLANK($F96),"Check","Ok")) -> Ok
C97: 2029-03-31 | F97: =F93*(1+Assumptions!$C$18) -> 142.6715799 | G97: 0.024 | T97: =IF(C97>EOMONTH(DATE('Input|General'!$G$12,MONTH('Input|General'!$G$9),1),0),"Ok",IF(ISBLANK($F97),"Check","Ok")) -> Ok
C98: 2029-06-30 | F98: =F94*(1+Assumptions!$C$18) -> 143.7606759 | G98: 0.024 | T98: =IF(C98>EOMONTH(DATE('Input|General'!$G$12,MONTH('Input|General'!$G$9),1),0),"Ok",IF(ISBLANK($F98),"Check","Ok")) -> Ok
C99: 2029-09-30 | F99: =F95*(1+Assumptions!$C$18) -> 144.779079 | G99: 0.024 | T99: =IF(C99>EOMONTH(DATE('Input|General'!$G$12,MONTH('Input|General'!$G$9),1),0),"Ok",IF(ISBLANK($F99),"Check","Ok")) -> Ok
C100: 2029-12-31 | F100: =F96*(1+Assumptions!$C$18) -> 145.2282933 | G100: 0.024 | T100: =IF(C100>EOMONTH(DATE('Input|General'!$G$12,MONTH('Input|General'!$G$9),1),0),"Ok",IF(ISBLANK($F100),"Check","Ok")) -> Ok
C101: 2030-03-31 | F101: =F97*(1+Assumptions!$C$18) -> 146.0956978 | G101: 0.024 | T101: =IF(C101>EOMONTH(DATE('Input|General'!$G$12,MONTH('Input|General'!$G$9),1),0),"Ok",IF(ISBLANK($F101),"Check","Ok")) -> Ok
C102: 2030-06-30 | F102: =F98*(1+Assumptions!$C$18) -> 147.2109321 | G102: 0.024 | T102: =IF(C102>EOMONTH(DATE('Input|General'!$G$12,MONTH('Input|General'!$G$9),1),0),"Ok",IF(ISBLANK($F102),"Check","Ok")) -> Ok
C103: 2030-09-30 | F103: =F99*(1+Assumptions!$C$18) -> 148.2537769 | G103: 0.024 | T103: =IF(C103>EOMONTH(DATE('Input|General'!$G$12,MONTH('Input|General'!$G$9),1),0),"Ok",IF(ISBLANK($F103),"Check","Ok")) -> Ok
C104: 2030-12-31 | F104: =F100*(1+Assumptions!$C$18) -> 148.7137723 | G104: 0.024 | T104: =IF(C104>EOMONTH(DATE('Input|General'!$G$12,MONTH('Input|General'!$G$9),1),0),"Ok",IF(ISBLANK($F104),"Check","Ok")) -> Ok
C105: 2031-03-31 | F105: =F101*(1+Assumptions!$C$18) -> 149.6019945 | G105: 0.024 | T105: =IF(C105>EOMONTH(DATE('Input|General'!$G$12,MONTH('Input|General'!$G$9),1),0),"Ok",IF(ISBLANK($F105),"Check","Ok")) -> Ok
C106: 2031-06-30 | F106: =F102*(1+Assumptions!$C$18) -> 150.7439945 | G106: 0.024 | T106: =IF(C106>EOMONTH(DATE('Input|General'!$G$12,MONTH('Input|General'!$G$9),1),0),"Ok",IF(ISBLANK($F106),"Check","Ok")) -> Ok
B108: End

Sheet Input|Reported opex
C1: =Index!$B$1 -> AER opex model | J1: Back to Index | L1: Key: | M1: Input | N1: External Link | O1: Internal Link | R1: Worksheet check: | S1: =IF(COUNTA($W$37:$W$269)=COUNTIF($W$37:$W$269,"OK"),"OK","Check") -> OK | U1: Overall Check: | V1: ='Check|List'!$S$1 -> Ok
C2: =Index!$C$9 -> Input | Reported opex
J3: Year ending
D4: Source | E4: Unit | F4: Basis | J4: =DATE(PPFirstYear,MONTH('Input|General'!$G$9),1) -> 2019-06-01 | K4: =DATE(PPFirstYear+1,MONTH('Input|General'!$G$9),1) -> 2020-06-01 | L4: =DATE(PPFirstYear+2,MONTH('Input|General'!$G$9),1) -> 2021-06-01 | M4: =DATE(PPFirstYear+3,MONTH('Input|General'!$G$9),1) -> 2022-06-01 | N4: =DATE(PPFirstYear+4,MONTH('Input|General'!$G$9),1) -> 2023-06-01 | O4: =DATE(PPFirstYear+5,MONTH('Input|General'!$G$9),1) -> 2024-06-01 | P4: =DATE(PPFirstYear+6,MONTH('Input|General'!$G$9),1) -> 2025-06-01 | Q4: =DATE(PPFirstYear+7,MONTH('Input|General'!$G$9),1) -> 2026-06-01 | R4: =DATE(PPFirstYear+8,MONTH('Input|General'!$G$9),1) -> 2027-06-01 | S4: =DATE(PPFirstYear+9,MONTH('Input|General'!$G$9),1) -> 2028-06-01
B8: Input | Opex allowances
J9: =2.28%/2 -> 0.0114
C10: Cost category | D10: Source | E10: Unit | F10: Basis | J10: =IF(YEAR(J$4)<=PPLastYear,J$4,"") -> 2019-06-01 | K10: 2020-06-01 | L10: 2021-06-01 | M10: 2022-06-01 | N10: 2023-06-01 | T10: Notes
J11: 0.0178 | K11: 0.0184 | L11: 0.0245 | M11: 0.0245 | N11: 0.0245
I12: 1 | J12: =I12*(1+J11) -> 1.0178 | K12: =J12*(1+K11) -> 1.03652752 | L12: 1.061922444 | M12: 1.087939544 | N12: 1.114594063
C13: Total opex | D13: AER | E13: $millions | F13: 2018-06-01 | J13: 90.37587621 | K13: 90.85770134 | L13: 92.52647185 | M13: 93.69743081 | N13: 93.03821471
C15: Total opex | D15: =D13 -> AER | E15: =E13 -> $millions | F15: =F13 -> 2018-06-01 | J15: =J13 -> 90.37587621 | K15: =K13 -> 90.85770134 | L15: 92.52647185 | M15: 93.69743081 | N15: 93.03821471 | O15: 0 | P15: 0 | Q15: 0 | R15: 0 | S15: 0
J16: =J15*J12 -> 91.98456681 | K16: =K15*K12 -> 94.17650784 | L16: 98.25593715 | M16: 101.9371402 | N16: 103.6998417
C17: Allowances related to category specific forecasts | J17: =J19*J12 -> -1.293088158 | K17: =K19*K12 -> -1.325603701 | L17: -1.40855205 | M17: -1.490914667 | N17: -1.692439415
J18: =J16+J17 -> 90.69147865 | K18: =K16+K17 -> 92.85090414 | L18: 96.8473851 | M18: 100.4462255 | N18: 102.0074023
C19: Remove debt raising costs | D19: AER | E19: =$E$29 -> $millions | F19: =$F$15 -> 2018-06-01 | J19: -1.270473726 | K19: -1.278889055 | L19: -1.326417063 | M19: -1.370402128 | N19: -1.518435699
C20: Remove network support costs | D20: AER | E20: =$E$15 -> $millions | F20: 2018-06-01 | J20: -8.373332917 | K20: -8.373332917 | L20: -8.373332917 | M20: -8.373332917 | N20: -6.978117852
D21: AER | E21: $millions | F21: 2018-06-01
D22: AER | E22: $millions | F22: 2018-06-01
D23: AER | E23: $millions | F23: 2018-06-01
D24: AER | E24: $millions | F24: 2018-06-01
D25: AER | E25: $millions | F25: 2018-06-01
D26: AER | E26: $millions | F26: 2018-06-01
D27: AER | E27: $millions | F27: 2018-06-01
C29: Total opex, categories forecast specifically | D29: Calculated | E29: $millions | F29: =F27 -> 2018-06-01 | J29: =SUM(J19:J27) -> -9.643806643 | K29: =SUM(K19:K27) -> -9.652221972 | L29: -9.69974998 | M29: -9.743735045 | N29: -8.496553551 | O29: 0 | P29: 0 | Q29: 0 | R29: 0 | S29: 0
J30: =J18/(1+$J$9) -> 89.66924921 | K30: =K18/(1+$J$9) -> 91.80433472 | L30: 95.75576933 | M30: 99.31404538 | N30: 100.8576254
B31: Input | Reported opex
J33: Actual | K33: Actual | L33: Estimate | M33: Estimate | N33: Estimate
C34: Cost category | D34: Source | E34: Unit | F34: Basis | J34: =IF(YEAR(J$4)<=PPLastYear,J$4,"") -> 2019-06-01 | K34: 2020-06-01 | L34: 2021-06-01 | M34: 2022-06-01 | N34: 2023-06-01 | T34: Notes
C37: =Assumptions!B24 -> Routine Maintenance | D37: Business Plan | E37: =$E$60 -> $millions | F37: =$F$60 -> nominal | J37: =Assumptions!G24 -> 17.66464539 | K37: =Assumptions!H24 -> 17.93695678 | L37: =Assumptions!I24 -> 19.36513495 | M37: =Assumptions!J24 -> 19.18935095 | N37: =Assumptions!K24 -> 20.7428089
C38: =Assumptions!B25 -> Corrective Maintenance | D38: Business Plan | E38: =$E$60 -> $millions | F38: =$F$60 -> nominal | J38: =Assumptions!G25 -> 13.92662091 | K38: =Assumptions!H25 -> 12.37199733 | L38: =Assumptions!I25 -> 11.77869819 | M38: =Assumptions!J25 -> 11.56851199 | N38: =Assumptions!K25 -> 12.61665804
C39: =Assumptions!B26 -> Operational Refurbishment | D39: Business Plan | E39: =$E$60 -> $millions | F39: =$F$60 -> nominal | J39: =Assumptions!G26 -> 9.474519705 | K39: =Assumptions!H26 -> 9.65540423 | L39: =Assumptions!I26 -> 12.30859664 | M39: =Assumptions!J26 -> 13.39583128 | N39: =Assumptions!K26 -> 13.18425452
C40: =Assumptions!B27 -> Maintenance Support | D40: Business Plan | E40: $millions | F40: nominal | J40: =Assumptions!G27 -> 12.142888 | K40: =Assumptions!H27 -> 12.41092593 | L40: =Assumptions!I27 -> 12.85776146 | M40: =Assumptions!J27 -> 14.03180736 | N40: =Assumptions!K27 -> 13.77248801
C41: =Assumptions!B28 -> Network Operations / Asset Management | D41: Business Plan | E41: $millions | F41: nominal | J41: =Assumptions!G28 -> 10.827446 | K41: =Assumptions!H28 -> 11.02588169 | L41: =Assumptions!I28 -> 9.81519172 | M41: =Assumptions!J28 -> 11.55189597 | N41: =Assumptions!K28 -> 10.51346385
C42: =Assumptions!B29 -> Asset Management | D42: Business Plan | E42: $millions | F42: nominal | J42: =Assumptions!G29 -> 9.429272 | K42: =Assumptions!H29 -> 10.66270505 | L42: =Assumptions!I29 -> 9.7568339 | M42: =Assumptions!J29 -> 11.03966027 | N42: =Assumptions!K29 -> 10.45095433
C43: =Assumptions!B30 -> Insurance | D43: Business Plan | E43: =$E$60 -> $millions | F43: =$F$60 -> nominal | J43: =Assumptions!G30 -> 2.823331 | K43: =Assumptions!H30 -> 3.74558757 | L43: =Assumptions!I30 -> 5.0815591 | M43: =Assumptions!J30 -> 6.3496047 | N43: =Assumptions!K30 -> 5.443071251
C44: =Assumptions!B31 -> Corporate Support | D44: Business Plan | E44: $millions | F44: nominal | J44: =Assumptions!G31 -> 7.194081 | K44: =Assumptions!H31 -> 10.0383695 | L44: =Assumptions!I31 -> 6.67189947 | M44: =Assumptions!J31 -> 3.22114663 | N44: =Assumptions!K31 -> 7.146551576
C45: =Assumptions!B32 -> Self Insurance | D45: Business Plan | E45: $millions | F45: nominal | J45: =Assumptions!G32 -> 1.463164 | K45: =Assumptions!H32 -> 1.49863637 | L45: =Assumptions!I32 -> 1.52147927 | M45: =Assumptions!J32 -> 1.577251257 | N45: =Assumptions!K32 -> 1.62972031
C46: =Assumptions!B33 -> Network Support | D46: Business Plan | E46: =$E$60 -> $millions | F46: =$F$60 -> nominal | J46: =Assumptions!G33 -> 8.396486 | K46: =Assumptions!H33 -> 10.52590409 | L46: =Assumptions!I33 -> 10.58526658 | M46: =Assumptions!J33 -> 11.20312952 | N46: =Assumptions!K33 -> 9.453894011
C48: Total opex | D48: Calculated | E48: =$E$60 -> $millions | F48: =$F$60 -> nominal | J48: =SUM(J37:J46) -> 93.342454 | K48: =SUM(K37:K46) -> 99.87236854 | L48: 99.74242128 | M48: 103.1281899 | N48: 104.9538648 | O48: 0 | P48: 0 | Q48: 0 | R48: 0 | S48: 0
C50: Expenditure related to category specific forecasts
C52: =Assumptions!B39 -> Remove debt raising costs | D52: RIN | E52: =$E$60 -> $millions | F52: =$F$60 -> nominal | J52: =Assumptions!G39 -> 0 | K52: =Assumptions!H39 -> 0 | L52: =Assumptions!I39 -> 0 | M52: =Assumptions!J39 -> 0 | N52: =Assumptions!K39 -> 0
C53: =Assumptions!B40 -> Remove network support costs | D53: RIN | E53: $millions | F53: nominal | J53: =Assumptions!G40 -> 0 | K53: =Assumptions!H40 -> 0 | L53: =Assumptions!I40 -> -10.58526658 | M53: =Assumptions!J40 -> 0 | N53: =Assumptions!K40 -> 0
C54: =Assumptions!B41 -> Remove movement in provisions | D54: RIN | E54: $millions | F54: nominal | J54: =Assumptions!G41 -> 0 | K54: =Assumptions!H41 -> 0 | L54: =Assumptions!I41 -> 0 | M54: =Assumptions!J41 -> 0 | N54: =Assumptions!K41 -> 0
C55: =Assumptions!B42 -> Remove Management Lease Costs | D55: RIN | E55: $millions | F55: nominal | J55: =Assumptions!G42 -> 0 | K55: =Assumptions!H42 -> 0 | L55: =Assumptions!I42 -> -0.841635 | M55: =Assumptions!J42 -> 0 | N55: =Assumptions!K42 -> 0
C56: =Assumptions!B43 -> Add MGSS Incremental Opex - Robertstown | D56: RIN | E56: $millions | F56: nominal | J56: =Assumptions!G43 -> 0 | K56: =Assumptions!H43 -> 0 | L56: =Assumptions!I43 -> 0.2325275878 | M56: =Assumptions!J43 -> 0 | N56: =Assumptions!K43 -> 0
C57: =Assumptions!B44 -> Add PEC Incremental Opex | D57: RIN | E57: $millions | F57: nominal | J57: =Assumptions!G44 -> 0 | K57: =Assumptions!H44 -> 0 | L57: =Assumptions!I44 -> 0.2517141486 | M57: =Assumptions!J44 -> 0 | N57: =Assumptions!K44 -> 0
C58: =Assumptions!B45 -> Net movement in provisions | D58: RIN | E58: $millions | F58: nominal | J58: =Assumptions!G45 -> 0.6580905236 | K58: =Assumptions!H45 -> -0.5736013346 | L58: =Assumptions!I45 -> -0.2768979593 | M58: =Assumptions!J45 -> -0.2768979593 | N58: =Assumptions!K45 -> -0.2768979593
C60: Total opex, categories forecast specifically | D60: Calculated | E60: $millions | F60: nominal | J60: =SUM(J52:J58) -> 0.6580905236 | K60: =SUM(K52:K58) -> -0.5736013346 | L60: -11.2195578 | M60: -0.2768979593 | N60: -0.2768979593 | O60: =SUM(O52:O55) -> 0 | P60: 0 | Q60: 0 | R60: 0 | S60: 0
B62: Input | Adjustments
C64: Adjustment | D64: Source | E64: Unit | F64: Basis | J64: =IF(YEAR(J$4)=PPLastYear,J$4,"") ->  | N64: 2023-06-01
C66: Adjustment 1 | D66: External | E66: =$E$60 -> $millions | F66: 2018-06-01 | N66: =Assumptions!K51 -> 0
C67: Adjustment 2 | D67: External | E67: =$E$60 -> $millions | F67: 2018-06-01 | N67: =Assumptions!K52 -> 0
C68: Adjustment 3 | D68: External | E68: $millions | F68: 2018-06-01 | N68: =Assumptions!K53 -> 0
C69: Adjustment 4 | D69: External | E69: $millions | F69: 2018-06-01 | N69: =Assumptions!K54 -> 0
C70: Adjustment 5 | D70: External | E70: $millions | F70: 2018-06-01 | N70: =Assumptions!K55 -> 0
C72: Remove non-recurrent efficiency gain in the base year | D72: External | E72: $millions | F72: 2018-06-01 | N72: =Assumptions!K57 -> 0
C74: Efficiency adjustment | D74: External | E74: Per cent | N74: =Assumptions!K59 -> 0
B76: End

Sheet Input|Rate of change
B1: =Index!$B$1 -> AER opex model | K1: Back to Index | M1: Key: | N1: Input | O1: External Link | P1: Internal Link | S1: Worksheet check: | T1: =IF(COUNTIF(W5:W100,"Check")=0,"Ok","Check") -> Ok | V1: Overall Check: | W1: ='Check|List'!$S$1 -> Ok
B2: =Index!$C$10 -> Input | Rate of change
J3: Year ending
D4: Source | E4: Unit | F4: Basis | J4: =DATE(PPFirstYear-1,MONTH('Input|General'!$G$9),1) -> 2018-06-01 | K4: =DATE(PPFirstYear,MONTH('Input|General'!$G$9),1) -> 2019-06-01 | L4: =DATE(PPFirstYear+1,MONTH('Input|General'!$G$9),1) -> 2020-06-01 | M4: =DATE(PPFirstYear+2,MONTH('Input|General'!$G$9),1) -> 2021-06-01 | N4: =DATE(PPFirstYear+3,MONTH('Input|General'!$G$9),1) -> 2022-06-01 | O4: =DATE(PPFirstYear+4,MONTH('Input|General'!$G$9),1) -> 2023-06-01 | P4: =DATE(PPFirstYear+5,MONTH('Input|General'!$G$9),1) -> 2024-06-01 | Q4: =DATE(PPFirstYear+6,MONTH('Input|General'!$G$9),1) -> 2025-06-01 | R4: =DATE(PPFirstYear+7,MONTH('Input|General'!$G$9),1) -> 2026-06-01 | S4: =DATE(PPFirstYear+8,MONTH('Input|General'!$G$9),1) -> 2027-06-01 | T4: =DATE(PPFirstYear+9,MONTH('Input|General'!$G$9),1) -> 2028-06-01
B8: Input | Inflation
C10: Inflation | J10: =IF(YEAR(J$4)<=PPLastYear,J$4,"") -> 2018-06-01 | K10: 2019-06-01 | L10: 2020-06-01 | M10: 2021-06-01 | N10: 2022-06-01 | O10: 2023-06-01
C12: Inflation | D12: calculated | E12: =percent -> Per cent | J12: ='Input|Inflation'!G52 -> 0.01909090909 | K12: 0.0178 | L12: 0.0184 | M12: 0.0086 | N12: 0.0245 | O12: 0.0245 | P12: =IF(P10=P4,LOOKUP(EOMONTH(P4,0),'Input|Inflation'!$C$9:$C$64,'Input|Inflation'!$G$9:$G$64),"") ->  | Q12: =IF(Q10=Q4,LOOKUP(EOMONTH(Q4,0),'Input|Inflation'!$C$9:$C$64,'Input|Inflation'!$G$9:$G$64),"") ->  | R12: =IF(R10=R4,LOOKUP(EOMONTH(R4,0),'Input|Inflation'!$C$9:$C$64,'Input|Inflation'!$G$9:$G$64),"") ->  | S12: =IF(S10=S4,LOOKUP(EOMONTH(S4,0),'Input|Inflation'!$C$9:$C$64,'Input|Inflation'!$G$9:$G$64),"") ->  | T12: =IF(T10=T4,LOOKUP(EOMONTH(T4,0),'Input|Inflation'!$C$9:$C$64,'Input|Inflation'!$G$9:$G$64),"") -> 
C14: CPI indexes (real to real) | J14: =IF(YEAR(J$4)<=PPLastYear,J$4,"") -> 2018-06-01 | K14: 2019-06-01 | L14: 2020-06-01 | M14: 2021-06-01 | N14: 2022-06-01 | O14: 2023-06-01
C16: =TRANSPOSE(J10:O10) -> 2018-06-01 | D16: =IF(ISNONTEXT($C16),"calculated","") -> calculated | E16: =IF(ISNONTEXT($C16),"index","") -> index | J16: =IF(AND($C16>J$14,ISNONTEXT($C16)),K16/(1+K$12),IF(AND($C16=J$14,J$14=J$4),1,IF(AND($C16<J$14,J$14=J$4),I16*(1+J$12),0))) -> 1 | K16: 1.0178 | L16: 1.03652752 | M16: 1.045441657 | N16: 1.071054977 | O16: =IF(AND($C16>O$14,ISNONTEXT($C16)),P16/(1+O$12),IF(AND($C16=O$14,O$14=O$4),1,IF(AND($C16<O$14,O$14=O$4),N16*(1+O$12),0))) -> 1.097295824
C17: 2019-06-01 | D17: calculated | E17: =IF(ISNONTEXT($C17),"index","") -> index | J17: =IF(AND($C17>J$14,ISNONTEXT($C17)),K17/(1+K$12),IF(AND($C17=J$14,J$14=J$4),1,IF(AND($C17<J$14,J$14=J$4),I17*(1+J$12),0))) -> 0.9825112989 | K17: 1 | L17: 1.0184 | M17: 1.02715824 | N17: 1.052323617 | O17: =IF(AND($C17>O$14,ISNONTEXT($C17)),P17/(1+O$12),IF(AND($C17=O$14,O$14=O$4),1,IF(AND($C17<O$14,O$14=O$4),N17*(1+O$12),0))) -> 1.078105545
C18: 2020-06-01 | D18: calculated | E18: index | J18: =IF(AND($C18>J$14,ISNONTEXT($C18)),K18/(1+K$12),IF(AND($C18=J$14,J$14=J$4),1,IF(AND($C18<J$14,J$14=J$4),I18*(1+J$12),0))) -> 0.96475972 | K18: 0.981932443 | L18: 1 | M18: 1.0086 | N18: 1.0333107 | O18: =IF(AND($C18>O$14,ISNONTEXT($C18)),P18/(1+O$12),IF(AND($C18=O$14,O$14=O$4),1,IF(AND($C18<O$14,O$14=O$4),N18*(1+O$12),0))) -> 1.058626812
C19: 2021-06-01 | D19: calculated | E19: index | J19: =IF(AND($C19>J$14,ISNONTEXT($C19)),K19/(1+K$12),IF(AND($C19=J$14,J$14=J$4),1,IF(AND($C19<J$14,J$14=J$4),I19*(1+J$12),0))) -> 0.9565335317 | K19: 0.9735598285 | L19: 0.9914733294 | M19: 1 | N19: 1.0245 | O19: =IF(AND($C19>O$14,ISNONTEXT($C19)),P19/(1+O$12),IF(AND($C19=O$14,O$14=O$4),1,IF(AND($C19<O$14,O$14=O$4),N19*(1+O$12),0))) -> 1.04960025
C20: 2022-06-01 | D20: calculated | E20: index | J20: =IF(AND($C20>J$14,ISNONTEXT($C20)),K20/(1+K$12),IF(AND($C20=J$14,J$14=J$4),1,IF(AND($C20<J$14,J$14=J$4),I20*(1+J$12),0))) -> 0.9336588889 | K20: =IF(AND($C20>K$14,ISNONTEXT($C20)),L20/(1+L$12),IF(AND($C20=K$14,K$14=K$4),1,IF(AND($C20<K$14,K$14=K$4),J20*(1+K$12),0))) -> 0.9502780171 | L20: 0.9677631326 | M20: 0.9760858956 | N20: 1 | O20: =IF(AND($C20>O$14,ISNONTEXT($C20)),P20/(1+O$12),IF(AND($C20=O$14,O$14=O$4),1,IF(AND($C20<O$14,O$14=O$4),N20*(1+O$12),0))) -> 1.0245
C21: 2023-06-01 | D21: =IF(ISNONTEXT($C21),"calculated","") -> calculated | E21: index | J21: =IF(AND($C21>J$14,ISNONTEXT($C21)),K21/(1+K$12),IF(AND($C21=J$14,J$14=J$4),1,IF(AND($C21<J$14,J$14=J$4),I21*(1+J$12),0))) -> 0.9113312727 | K21: =IF(AND($C21>K$14,ISNONTEXT($C21)),L21/(1+L$12),IF(AND($C21=K$14,K$14=K$4),1,IF(AND($C21<K$14,K$14=K$4),J21*(1+K$12),0))) -> 0.9275529694 | L21: =IF(AND($C21>L$14,ISNONTEXT($C21)),M21/(1+M$12),IF(AND($C21=L$14,L$14=L$4),1,IF(AND($C21<L$14,L$14=L$4),K21*(1+L$12),0))) -> 0.944619944 | M21: =IF(AND($C21>M$14,ISNONTEXT($C21)),N21/(1+N$12),IF(AND($C21=M$14,M$14=M$4),1,IF(AND($C21<M$14,M$14=M$4),L21*(1+M$12),0))) -> 0.9527436755 | N21: =IF(AND($C21>N$14,ISNONTEXT($C21)),O21/(1+O$12),IF(AND($C21=N$14,N$14=N$4),1,IF(AND($C21<N$14,N$14=N$4),M21*(1+N$12),0))) -> 0.9760858956 | O21: =IF(AND($C21>O$14,ISNONTEXT($C21)),P21/(1+O$12),IF(AND($C21=O$14,O$14=O$4),1,IF(AND($C21<O$14,O$14=O$4),N21*(1+O$12),0))) -> 1
C23: CPI indexes (nominal to real) | J23: =IF(YEAR(J$4)<=PPLastYear,J$4,"") -> 2018-06-01 | K23: 2019-06-01 | L23: 2020-06-01 | M23: 2021-06-01 | N23: 2022-06-01 | O23: 2023-06-01
C25: =TRANSPOSE(J10:O10) -> 2018-06-01 | D25: =IF(ISNONTEXT($C25),"calculated","") -> calculated | E25: =IF(ISNONTEXT($C25),"index","") -> index | J25: =IF(AND(J$23=J$4,ISNONTEXT($C25)),1/J16*(1+J$12)^0.5,0) -> 1.009500326 | K25: =IF(AND(K$23=K$4,ISNONTEXT($C25)),1/K16*(1+K$12)^0.5,0) -> 0.9912170796 | L25: 0.9735950522 | M25: 0.9606378205 | N25: 0.9450270019 | O25: 0.9224275275 | P25: 0 | Q25: 0 | R25: 0 | S25: 0 | T25: 0
C26: 2019-06-01 | D26: calculated | E26: =IF(ISNONTEXT($C26),"index","") -> index | J26: =IF(AND(J$23=J$4,ISNONTEXT($C26)),1/J17*(1+J$12)^0.5,0) -> 1.027469432 | K26: 1.008860744 | L26: 0.9909250441 | M26: 0.9777371737 | N26: 0.9618484825 | O26: 0.9388467375 | P26: 0 | Q26: 0 | R26: 0 | S26: 0 | T26: 0
C27: 2020-06-01 | D27: calculated | E27: index | J27: =IF(AND(J$23=J$4,ISNONTEXT($C27)),1/J18*(1+J$12)^0.5,0) -> 1.04637487 | K27: 1.027423781 | L27: 1.009158065 | M27: 0.9957275377 | N27: 0.9795464946 | O27: 0.9561215174 | P27: 0 | Q27: 0 | R27: 0 | S27: 0 | T27: 0
C28: 2021-06-01 | D28: calculated | E28: index | J28: =IF(AND(J$23=J$4,ISNONTEXT($C28)),1/J19*(1+J$12)^0.5,0) -> 1.055373694 | K28: 1.036259626 | L28: 1.017836824 | M28: 1.004290795 | N28: 0.9879705945 | O28: 0.9643441625 | P28: 0 | Q28: 0 | R28: 0 | S28: 0 | T28: 0
C29: 2022-06-01 | D29: calculated | E29: index | J29: =IF(AND(J$23=J$4,ISNONTEXT($C29)),1/J20*(1+J$12)^0.5,0) -> 1.081230349 | K29: 1.061647987 | L29: 1.042773826 | M29: 1.028895919 | N29: 1.012175874 | O29: 0.9879705945 | P29: 0 | Q29: 0 | R29: 0 | S29: 0 | T29: 0
C30: 2023-06-01 | D30: calculated | E30: index | J30: =IF(AND(J$23=J$4,ISNONTEXT($C30)),1/J21*(1+J$12)^0.5,0) -> 1.107720493 | K30: 1.087658362 | L30: 1.068321785 | M30: 1.054103869 | N30: 1.036974183 | O30: 1.012175874 | P30: 0 | Q30: 0 | R30: 0 | S30: 0 | T30: 0
B32: Input | Forecast price change
C34: Forecast price change | D34: Source | E34: Unit | J34: =IF(YEAR(J$4)>=FPFirstYear,IF(YEAR(J$4)<=FPLastYear,J$4,""),"") ->  | P34: 2024-06-01 | Q34: 2025-06-01 | R34: 2026-06-01 | S34: 2027-06-01 | T34: 2028-06-01
C36: WPI - DAE | D36: external | E36: =percent -> Per cent | P36: =Assumptions!G85 -> 0 | Q36: =Assumptions!H85 -> 0 | R36: =Assumptions!I85 -> 0 | S36: =Assumptions!J85 -> 0 | T36: =Assumptions!K85 -> 0
C37: WPI - BIS | D37: external | E37: Per cent | P37: =Assumptions!G86 -> 0 | Q37: =Assumptions!H86 -> 0 | R37: =Assumptions!I86 -> 0 | S37: =Assumptions!J86 -> 0 | T37: =Assumptions!K86 -> 0
C38: WPI - average of DAE and CIE | D38: external | E38: Per cent | P38: =Assumptions!G87 -> 0.0045 | Q38: =Assumptions!H87 -> 0.006 | R38: =Assumptions!I87 -> 0.0065 | S38: =Assumptions!J87 -> 0.004 | T38: =Assumptions!K87 -> 0.003
D39: external | E39: Per cent
D40: external | E40: Per cent
D41: external | E41: Per cent
D42: external | E42: Per cent
C43: Real Materials Price Change | D43: external | E43: Per cent | P43: =Assumptions!G92 -> 0 | Q43: =Assumptions!H92 -> 0 | R43: =Assumptions!I92 -> 0 | S43: =Assumptions!J92 -> 0 | T43: =Assumptions!K92 -> 0
C45: Check | D45: calculated | E45: Ok/Check | F45: n/a | J45: =IF(J34=J4,IF(COUNTA($C36:$C43)=COUNT(J36:J43),"Ok","Check"),"") ->  | P45: Ok | Q45: Ok | R45: Ok | S45: Ok | T45: =IF(T34=T4,IF(COUNTA($C36:$C43)=COUNT(T36:T43),"Ok","Check"),"") -> Ok | W45: =IF(COUNTIF(J45:T45,"Check")=0,"Ok","Check") -> Ok
C47: Weights | D47: Source | E47: Unit | J47: =IF(YEAR(J$4)>=FPFirstYear,IF(YEAR(J$4)<=FPLastYear,J$4,""),"") ->  | P47: 2024-06-01 | Q47: 2025-06-01 | R47: 2026-06-01 | S47: 2027-06-01 | T47: 2028-06-01
C49: =C36 -> WPI - DAE | D49: external | E49: =percent -> Per cent | P49: =Assumptions!G96 -> 0 | Q49: =Assumptions!H96 -> 0 | R49: =Assumptions!I96 -> 0 | S49: =Assumptions!J96 -> 0 | T49: =Assumptions!K96 -> 0
C50: WPI - BIS | D50: external | E50: Per cent | P50: =Assumptions!G97 -> 0 | Q50: =Assumptions!H97 -> 0 | R50: =Assumptions!I97 -> 0 | S50: =Assumptions!J97 -> 0 | T50: =Assumptions!K97 -> 0
C51: WPI - average of DAE and CIE | D51: external | E51: Per cent | P51: =Assumptions!G98 -> 0.704 | Q51: =Assumptions!H98 -> 0.704 | R51: =Assumptions!I98 -> 0.704 | S51: =Assumptions!J98 -> 0.704 | T51: =Assumptions!K98 -> 0.704
C52: 0 | D52: external | E52: Per cent | P52: =Assumptions!G99 -> 0 | Q52: =Assumptions!H99 -> 0 | R52: =Assumptions!I99 -> 0 | S52: =Assumptions!J99 -> 0 | T52: =Assumptions!K99 -> 0
C53: 0 | D53: external | E53: Per cent | P53: =Assumptions!G100 -> 0 | Q53: =Assumptions!H100 -> 0 | R53: =Assumptions!I100 -> 0 | S53: =Assumptions!J100 -> 0 | T53: =Assumptions!K100 -> 0
C54: 0 | D54: external | E54: Per cent | P54: =Assumptions!G101 -> 0 | Q54: =Assumptions!H101 -> 0 | R54: =Assumptions!I101 -> 0 | S54: =Assumptions!J101 -> 0 | T54: =Assumptions!K101 -> 0
C55: 0 | D55: external | E55: Per cent | P55: =Assumptions!G102 -> 0 | Q55: =Assumptions!H102 -> 0 | R55: =Assumptions!I102 -> 0 | S55: =Assumptions!J102 -> 0 | T55: =Assumptions!K102 -> 0
C56: Real Materials Price Change | D56: external | E56: Per cent | P56: =Assumptions!G103 -> 0.296 | Q56: =Assumptions!H103 -> 0.296 | R56: =Assumptions!I103 -> 0.296 | S56: =Assumptions!J103 -> 0.296 | T56: =Assumptions!K103 -> 0.296
C58: Check | D58: calculated | E58: Ok/Check | F58: n/a | J58: =IF(J47=J$4,IF(SUM(J49:J56)=1,"Ok","Check"),"") ->  | P58: Ok | Q58: Ok | R58: Ok | S58: Ok | T58: =IF(T47=T$4,IF(SUM(T49:T56)=1,"Ok","Check"),"") -> Ok | W58: =IF(COUNTIF(J58:T58,"Check")=0,"Ok","Check") -> Ok
B60: Input | Forecast output growth
C62: Output measure | D62: Source | E62: Unit | F62: Basis | J62: =IF(YEAR(J$4)>=PPLastYear,IF(YEAR(J$4)<=FPLastYear,J$4,""),"") ->  | O62: 2023-06-01 | P62: 2024-06-01 | Q62: 2025-06-01 | R62: 2026-06-01 | S62: 2027-06-01 | T62: 2028-06-01
C64: Energy | D64: external | E64: number | F64: n/a | O64: =Assumptions!F108 -> 10963.6 | P64: =Assumptions!G108 -> 10685.24 | Q64: =Assumptions!H108 -> 10396 | R64: =Assumptions!I108 -> 10369.4 | S64: =Assumptions!J108 -> 10353.85 | T64: =Assumptions!K108 -> 10345.08
C65: Ratcheted maximum demand | D65: external | E65: number | F65: n/a | O65: =Assumptions!F109 -> 4403 | P65: =Assumptions!G109 -> 4403 | Q65: =Assumptions!H109 -> 4403 | R65: =Assumptions!I109 -> 4403 | S65: =Assumptions!J109 -> 4403 | T65: =Assumptions!K109 -> 4403
C66: Customer numbers | D66: external | E66: number | F66: n/a | O66: =Assumptions!F110 -> 942766 | P66: =Assumptions!G110 -> 950069 | Q66: =Assumptions!H110 -> 957324 | R66: =Assumptions!I110 -> 965939.916 | S66: =Assumptions!J110 -> 974633.3752 | T66: =Assumptions!K110 -> 983405.0756
C67: Circuit length | D67: external | E67: number | F67: n/a | O67: =Assumptions!F111 -> 5520 | P67: =Assumptions!G111 -> 5831 | Q67: =Assumptions!H111 -> 6241 | R67: =Assumptions!I111 -> 6241 | S67: =Assumptions!J111 -> 6241 | T67: =Assumptions!K111 -> 6241
D68: external | E68: number | F68: n/a
D69: external | E69: number | F69: n/a
C71: Check | D71: calculated | E71: Ok/Check | F71: n/a | J71: =IF(J62=J$4,IF(COUNTA($C64:$C69)=COUNT(J64:J69),"Ok","Check"),"") ->  | O71: Ok | P71: Ok | Q71: Ok | R71: Ok | S71: Ok | T71: =IF(T62=T$4,IF(COUNTA($C64:$C69)=COUNT(T64:T69),"Ok","Check"),"") -> Ok | W71: =IF(COUNTIF(J71:T71,"Check")=0,"Ok","Check") -> Ok
C73: Growth rate | D73: Source | E73: Unit | F73: Basis | J73: =IF(YEAR(J$4)>=FPFirstYear,IF(YEAR(J$4)<=FPLastYear,J$4,""),"") ->  | P73: 2024-06-01 | Q73: 2025-06-01 | R73: 2026-06-01 | S73: 2027-06-01 | T73: 2028-06-01 | U73: =IF(RIGHT(U$4,2)>=RIGHT('Input|General'!$G$13,2),IF(RIGHT(U$4,2)<='Input|General'!$G$14,'Input|Reported opex'!T$4,""),"") -> 
C75: =C64 -> Energy | D75: calculated | E75: number | F75: n/a | J75: =IF(ISBLANK(I64),"",IF(ISBLANK(J64),"",LN(J64)-LN(I64))) ->  | N75: =IF(ISBLANK(M64),"",IF(ISBLANK(N64),"",LN(N64)-LN(M64))) ->  | O75: =IF(ISBLANK(N64),"",IF(ISBLANK(O64),"",LN(O64)-LN(N64))) ->  | P75: -0.02571734483 | Q75: -0.02744223313 | R75: -0.002561955421 | S75: -0.001500730138 | T75: -0.000847386848
C76: =C65 -> Ratcheted maximum demand | D76: calculated | E76: number | F76: n/a | J76: =IF(ISBLANK(I65),"",IF(ISBLANK(J65),"",LN(J65)-LN(I65))) ->  | P76: 0 | Q76: 0 | R76: 0 | S76: 0 | T76: 0
C77: Customer numbers | D77: calculated | E77: number | F77: n/a | J77: =IF(ISBLANK(I66),"",IF(ISBLANK(J66),"",LN(J66)-LN(I66))) ->  | P77: 0.007716505916 | Q77: 0.007607278613 | R77: 0.008959741371 | S77: 0.008959741371 | T77: 0.008959741371
C78: Circuit length | D78: calculated | E78: number | F78: n/a | J78: =IF(ISBLANK(I67),"",IF(ISBLANK(J67),"",LN(J67)-LN(I67))) ->  | P78: 0.05481065195 | Q78: 0.06795191371 | R78: 0 | S78: 0 | T78: 0
C79: 0 | D79: calculated | E79: number | F79: n/a | J79: =IF(ISBLANK(I68),"",IF(ISBLANK(J68),"",LN(J68)-LN(I68))) -> 
C80: 0 | D80: calculated | E80: number | F80: n/a | J80: =IF(ISBLANK(I69),"",IF(ISBLANK(J69),"",LN(J69)-LN(I69))) -> 
C82: Weights | D82: Source | E82: Unit | F82: Basis | J82: =IF(YEAR(J$4)=PPLastYear,J$4,"") ->  | L82: =IF(YEAR(L$4)=PPLastYear,L$4,"") ->  | O82: 2023-06-01
C84: =C64 -> Energy | D84: external | E84: number | F84: n/a | O84: =Assumptions!F117 -> 0.149
C85: =C65 -> Ratcheted maximum demand | D85: external | E85: number | F85: n/a | O85: =Assumptions!F118 -> 0.247
C86: Customer numbers | D86: external | E86: number | F86: n/a | O86: =Assumptions!F119 -> 0.076
C87: Circuit length | D87: external | E87: number | F87: n/a | O87: =Assumptions!F120 -> 0.528
C88: 0 | D88: external | E88: number | F88: n/a | O88: =Assumptions!F121 -> 0
C89: 0 | D89: external | E89: number | F89: n/a | O89: =Assumptions!F122 -> 0
C91: Check | D91: calculated | E91: Ok/Check | F91: n/a | J91: =IF(J82=J$4,IF(SUM(J84:J89)=1,"Ok","Check"),"") ->  | O91: =IF(O82=O$4,IF(SUM(O84:O89)=1,"Ok","Check"),"") -> Ok | P91: =IF(P82=P$4,IF(SUM(P84:P89)=1,"Ok","Check"),"") ->  | W91: =IF(COUNTIF(K91:T91,"Check")=0,"Ok","Check") -> Ok
B93: Input | Forecast productivity
C95: Partial factor productivity | D95: Source | E95: Unit | F95: Basis | J95: =IF(YEAR(J$4)>=FPFirstYear,IF(YEAR(J$4)<=FPLastYear,J$4,""),"") ->  | P95: 2024-06-01 | Q95: 2025-06-01 | R95: 2026-06-01 | S95: 2027-06-01 | T95: 2028-06-01
C97: Partial factor productivity | D97: external | E97: =percent -> Per cent | F97: n/a | P97: =Assumptions!G127 -> 0.003 | Q97: =Assumptions!H127 -> 0.003 | R97: =Assumptions!I127 -> 0.003 | S97: =Assumptions!J127 -> 0.003 | T97: =Assumptions!K127 -> 0.003
C99: Check | D99: calculated | E99: Ok/Check | F99: n/a | J99: =IF(J95=J$4,IF(ISBLANK(J97),"Check","Ok"),"") ->  | P99: Ok | Q99: Ok | R99: Ok | S99: Ok | T99: =IF(T95=T$4,IF(ISBLANK(T97),"Check","Ok"),"") -> Ok | W99: =IF(COUNTIF(J99:T99,"Check")=0,"Ok","Check") -> Ok
B101: End

Sheet Input|Step changes
B1: =Index!$B$1 -> AER opex model | J1: Back to Index | L1: Key: | M1: Input | N1: External Link | O1: Internal Link | R1: Worksheet check: | S1: =IF(COUNTA($W$8:$W$235)=COUNTIF($W$8:$W$235,"OK"),"OK","Check") -> OK | U1: Overall Check: | V1: ='Check|List'!$S$1 -> Ok
B2: =Index!$C$11 -> Input | Step changes
J3: Year ending
D4: Source | E4: Unit | F4: Basis | J4: =DATE(PPFirstYear,MONTH('Input|General'!$G$9),1) -> 2019-06-01 | K4: =DATE(PPFirstYear+1,MONTH('Input|General'!$G$9),1) -> 2020-06-01 | L4: =DATE(PPFirstYear+2,MONTH('Input|General'!$G$9),1) -> 2021-06-01 | M4: =DATE(PPFirstYear+3,MONTH('Input|General'!$G$9),1) -> 2022-06-01 | N4: =DATE(PPFirstYear+4,MONTH('Input|General'!$G$9),1) -> 2023-06-01 | O4: =DATE(PPFirstYear+5,MONTH('Input|General'!$G$9),1) -> 2024-06-01 | P4: =DATE(PPFirstYear+6,MONTH('Input|General'!$G$9),1) -> 2025-06-01 | Q4: =DATE(PPFirstYear+7,MONTH('Input|General'!$G$9),1) -> 2026-06-01 | R4: =DATE(PPFirstYear+8,MONTH('Input|General'!$G$9),1) -> 2027-06-01 | S4: =DATE(PPFirstYear+9,MONTH('Input|General'!$G$9),1) -> 2028-06-01
B8: Input |Step changes
C10: Step change | D10: Source | E10: Unit | F10: Basis | J10: =IF(YEAR(J$4)>=FPFirstYear,IF(YEAR(J$4)<=FPLastYear,J$4,""),"") ->  | O10: 2024-06-01 | P10: 2025-06-01 | Q10: 2026-06-01 | R10: 2027-06-01 | S10: 2028-06-01
C12: =Assumptions!B65 -> Cyber | D12: AER | E12: $millions | F12: 2023-06-01 | O12: =Assumptions!G65 -> 5.183149383 | P12: =Assumptions!H65 -> 5.183149383 | Q12: =Assumptions!I65 -> 5.183149383 | R12: =Assumptions!J65 -> 5.183149383 | S12: =Assumptions!K65 -> 5.183149383
C13: =Assumptions!B66 -> Cloud | D13: AER | E13: $millions | F13: 2023-06-01 | O13: =Assumptions!G66 -> 1.79693299 | P13: =Assumptions!H66 -> 1.79693299 | Q13: =Assumptions!I66 -> 1.79693299 | R13: =Assumptions!J66 -> 1.79693299 | S13: =Assumptions!K66 -> 1.79693299
C14: =Assumptions!B67 -> Rule Change | D14: AER | E14: $millions | F14: 2023-06-01 | O14: =Assumptions!G67 -> 0.7881573318 | P14: =Assumptions!H67 -> 0.7881573318 | Q14: =Assumptions!I67 -> 0.7881573318 | R14: =Assumptions!J67 -> 0.7881573318 | S14: =Assumptions!K67 -> 0.7881573318
C15: =Assumptions!B68 -> Insurance / Self Insurance | D15: AER | E15: $millions | F15: 2023-06-01 | O15: =Assumptions!G68 -> 6.046446145 | P15: =Assumptions!H68 -> 6.046446145 | Q15: =Assumptions!I68 -> 6.046446145 | R15: =Assumptions!J68 -> 6.046446145 | S15: =Assumptions!K68 -> 6.046446145
C16: =Assumptions!B69 -> IFRS Implementation | D16: AER | E16: $millions | F16: 2023-06-01 | O16: =Assumptions!G69 -> 9.350138719 | P16: =Assumptions!H69 -> 9.350138719 | Q16: =Assumptions!I69 -> 9.350138719 | R16: =Assumptions!J69 -> 9.350138719 | S16: =Assumptions!K69 -> 9.350138719
C17: =Assumptions!B70 -> 0 | D17: AER | E17: $millions | F17: 2023-06-01 | O17: =Assumptions!G70 -> 0 | P17: =Assumptions!H70 -> 0 | Q17: =Assumptions!I70 -> 0 | R17: =Assumptions!J70 -> 0 | S17: =Assumptions!K70 -> 0
C18: =Assumptions!B71 -> 0 | D18: AER | E18: $millions | F18: 2023-06-01 | O18: =Assumptions!G71 -> 0 | P18: =Assumptions!H71 -> 0 | Q18: =Assumptions!I71 -> 0 | R18: =Assumptions!J71 -> 0 | S18: =Assumptions!K71 -> 0
C19: =Assumptions!B72 -> 0 | D19: AER | E19: $millions | F19: 2023-06-01 | O19: =Assumptions!G72 -> 0 | P19: =Assumptions!H72 -> 0 | Q19: =Assumptions!I72 -> 0 | R19: =Assumptions!J72 -> 0 | S19: =Assumptions!K72 -> 0
C20: =Assumptions!B73 -> 0 | D20: AER | E20: $millions | F20: 2023-06-01 | O20: =Assumptions!G73 -> 0 | P20: =Assumptions!H73 -> 0 | Q20: =Assumptions!I73 -> 0 | R20: =Assumptions!J73 -> 0 | S20: =Assumptions!K73 -> 0
C22: Check | D22: calculated | E22: Ok/Check | F22: n/a | J22: =IF(J10=J4,IF(COUNTA($C12:$C20)=COUNT(J12:J20),"Ok","Check"),"") ->  | O22: Ok | P22: Ok | Q22: Ok | R22: Ok | S22: Ok | W22: =IF(COUNTIF(J22:T22,"Check")=0,"Ok","Check") -> Ok
B24: Input | Category specifc forecasts
C26: Category specific forecasts | D26: Source | E26: Unit | F26: Basis | J26: =IF(YEAR(J$4)>=FPFirstYear,IF(YEAR(J$4)<=FPLastYear,J$4,""),"") ->  | O26: 2024-06-01 | P26: 2025-06-01 | Q26: 2026-06-01 | R26: 2027-06-01 | S26: 2028-06-01
C28: 0 | D28: AER | E28: $millions | F28: 2023-06-01 | O28: =Assumptions!G77 -> 0 | P28: =Assumptions!H77 -> 0 | Q28: =Assumptions!I77 -> 0 | R28: =Assumptions!J77 -> 0 | S28: =Assumptions!K77 -> 0
C29: 0 | D29: AER | E29: $millions | F29: 2023-06-01 | O29: =Assumptions!G78 -> 0 | P29: =Assumptions!H78 -> 0 | Q29: =Assumptions!I78 -> 0 | R29: =Assumptions!J78 -> 0 | S29: =Assumptions!K78 -> 0
C30: 0 | D30: AER | E30: $millions | F30: 2023-06-01 | O30: =Assumptions!G79 -> 0 | P30: =Assumptions!H79 -> 0 | Q30: =Assumptions!I79 -> 0 | R30: =Assumptions!J79 -> 0 | S30: =Assumptions!K79 -> 0
C32: Check | D32: calculated | E32: Ok/Check | F32: n/a | J32: =IF(J26=J4,IF(COUNTA($C28:$C30)=COUNT(J28:J30),"Ok","Check"),"") ->  | O32: Ok | P32: Ok | Q32: Ok | R32: Ok | S32: =IF(S26=S4,IF(COUNTA($C28:$C30)=COUNT(S28:S30),"Ok","Check"),"") -> Ok | W32: =IF(COUNTIF(J32:T32,"Check")=0,"Ok","Check") -> Ok
B34: Input | Debt raising costs
C36: Debt Raising Costs | D36: Source | E36: Unit | F36: Basis | J36: =IF(YEAR(J$4)>=FPFirstYear,IF(YEAR(J$4)<=FPLastYear,J$4,""),"") ->  | O36: 2024-06-01 | P36: 2025-06-01 | Q36: 2026-06-01 | R36: 2027-06-01 | S36: 2028-06-01
C38: Debt raising costs | D38: PTRM | E38: $millions | F38: 2023-06-01 | O38: 0 | P38: 0 | Q38: 0 | R38: 0 | S38: 0
C40: Check | D40: calculated | E40: Ok/Check | F40: n/a | J40: =IF(J36=J4,IF(ISBLANK(J38),"Check","Ok"),"") ->  | O40: Ok | P40: Ok | Q40: Ok | R40: Ok | S40: =IF(S36=S4,IF(ISBLANK(S38),"Check","Ok"),"") -> Ok | W40: =IF(COUNTIF(J40:T40,"Check")=0,"Ok","Check") -> Ok
B42: End

Sheet Calc|Opex forecast
B1: =Index!$B$1 -> AER opex model | J1: Back to Index | L1: Key: | M1: Input | N1: External Link | O1: Internal Link | R1: Worksheet check: | S1: n/a | U1: Overall Check: | V1: ='Check|List'!$S$1 -> Ok
B2: =Index!$C$13 -> Calc | Opex Forecast
J3: Year ending
D4: Source | E4: Unit | F4: Basis | J4: =DATE(PPFirstYear,MONTH('Input|General'!$G$9),1) -> 2019-06-01 | K4: =DATE(PPFirstYear+1,MONTH('Input|General'!$G$9),1) -> 2020-06-01 | L4: =DATE(PPFirstYear+2,MONTH('Input|General'!$G$9),1) -> 2021-06-01 | M4: =DATE(PPFirstYear+3,MONTH('Input|General'!$G$9),1) -> 2022-06-01 | N4: =DATE(PPFirstYear+4,MONTH('Input|General'!$G$9),1) -> 2023-06-01 | O4: =DATE(PPFirstYear+5,MONTH('Input|General'!$G$9),1) -> 2024-06-01 | P4: =DATE(PPFirstYear+6,MONTH('Input|General'!$G$9),1) -> 2025-06-01 | Q4: =DATE(PPFirstYear+7,MONTH('Input|General'!$G$9),1) -> 2026-06-01 | R4: =DATE(PPFirstYear+8,MONTH('Input|General'!$G$9),1) -> 2027-06-01 | S4: =DATE(PPFirstYear+9,MONTH('Input|General'!$G$9),1) -> 2028-06-01
B8: Calc | Estimated final year expenditure | E8: $millions | F8: =DATE(PPLastYear,MONTH('Input|General'!$G$9),1) -> 2023-06-01
D10: Source | E10: Unit | F10: Basis | J10: =IF(YEAR(J$4)<=PPLastYear,J$4,"") -> 2019-06-01 | K10: 2020-06-01 | L10: 2021-06-01 | M10: 2022-06-01 | N10: 2023-06-01
C12: Reported opex, total | D12: Inputs|Reported opex | E12: ='Input|Reported opex'!E60 -> $millions | F12: ='Input|Reported opex'!F60 -> nominal | J12: =IF(YEAR(J$4)=BaseYear,'Input|Reported opex'!J48,0) -> 0 | K12: =IF(YEAR(K$4)=BaseYear,'Input|Reported opex'!K48,0) -> 0 | L12: =IF(YEAR(L$4)=BaseYear,'Input|Reported opex'!L48,0) -> 99.74242128 | M12: =IF(YEAR(M$4)=BaseYear,'Input|Reported opex'!M48,0) -> 0 | N12: =IF(YEAR(N$4)=BaseYear,'Input|Reported opex'!N48,0) -> 0 | O12: =IF(YEAR(O$4)=BaseYear,'Input|Reported opex'!O48,0) -> 0 | P12: =IF(YEAR(P$4)=BaseYear,'Input|Reported opex'!P48,0) -> 0 | Q12: =IF(YEAR(Q$4)=BaseYear,'Input|Reported opex'!Q48,0) -> 0 | R12: =IF(YEAR(R$4)=BaseYear,'Input|Reported opex'!R48,0) -> 0 | S12: =IF(YEAR(S$4)=BaseYear,'Input|Reported opex'!S48,0) -> 0
C13: Reported opex, total | D13: Calculated | E13: =$E$8 -> $millions | F13: =$F$8 -> 2023-06-01 | J13: =J12*IF($F12="nominal",LOOKUP($F13,Nominal_to_Real,'Input|Rate of change'!K$25:K$30),INDEX('Input|Rate of change'!$C$14:$O$21,MATCH('Calc|Opex forecast'!$F12,'Input|Rate of change'!$C$14:$C$21,0),MATCH('Calc|Opex forecast'!$F13,'Input|Rate of change'!$C$14:$O$14,0)))*IF($E12="$millions",1000000,IF($E12="$000",1000,1))/IF($E13="$millions",1000000,IF($E13="$000",1000,1)) -> 0 | K13: =K12*IF($F12="nominal",LOOKUP($F13,Nominal_to_Real,'Input|Rate of change'!L$25:L$30),INDEX('Input|Rate of change'!$C$14:$O$21,MATCH('Calc|Opex forecast'!$F12,'Input|Rate of change'!$C$14:$C$21,0),MATCH('Calc|Opex forecast'!$F13,'Input|Rate of change'!$C$14:$O$14,0)))*IF($E12="$millions",1000000,IF($E12="$000",1000,1))/IF($E13="$millions",1000000,IF($E13="$000",1000,1)) -> 0 | L13: =L12*IF($F12="nominal",LOOKUP($F13,Nominal_to_Real,'Input|Rate of change'!M$25:M$30),INDEX('Input|Rate of change'!$C$14:$O$21,MATCH('Calc|Opex forecast'!$F12,'Input|Rate of change'!$C$14:$C$21,0),MATCH('Calc|Opex forecast'!$F13,'Input|Rate of change'!$C$14:$O$14,0)))*IF($E12="$millions",1000000,IF($E12="$000",1000,1))/IF($E13="$millions",1000000,IF($E13="$000",1000,1)) -> 105.1388722 | M13: =M12*IF($F12="nominal",LOOKUP($F13,Nominal_to_Real,'Input|Rate of change'!N$25:N$30),INDEX('Input|Rate of change'!$C$14:$O$21,MATCH('Calc|Opex forecast'!$F12,'Input|Rate of change'!$C$14:$C$21,0),MATCH('Calc|Opex forecast'!$F13,'Input|Rate of change'!$C$14:$O$14,0)))*IF($E12="$millions",1000000,IF($E12="$000",1000,1))/IF($E13="$millions",1000000,IF($E13="$000",1000,1)) -> 0 | N13: =N12*IF($F12="nominal",LOOKUP($F13,Nominal_to_Real,'Input|Rate of change'!O$25:O$30),INDEX('Input|Rate of change'!$C$14:$O$21,MATCH('Calc|Opex forecast'!$F12,'Input|Rate of change'!$C$14:$C$21,0),MATCH('Calc|Opex forecast'!$F13,'Input|Rate of change'!$C$14:$O$14,0)))*IF($E12="$millions",1000000,IF($E12="$000",1000,1))/IF($E13="$millions",1000000,IF($E13="$000",1000,1)) -> 0 | O13: =O12*IF($F12="nominal",LOOKUP($F13,Nominal_to_Real,'Input|Rate of change'!P$25:P$30),INDEX('Input|Rate of change'!$C$14:$O$21,MATCH('Calc|Opex forecast'!$F12,'Input|Rate of change'!$C$14:$C$21,0),MATCH('Calc|Opex forecast'!$F13,'Input|Rate of change'!$C$14:$O$14,0)))*IF($E12="$millions",1000000,IF($E12="$000",1000,1))/IF($E13="$millions",1000000,IF($E13="$000",1000,1)) -> 0 | P13: =P12*IF($F12="nominal",LOOKUP($F13,Nominal_to_Real,'Input|Rate of change'!Q$25:Q$30),INDEX('Input|Rate of change'!$C$14:$O$21,MATCH('Calc|Opex forecast'!$F12,'Input|Rate of change'!$C$14:$C$21,0),MATCH('Calc|Opex forecast'!$F13,'Input|Rate of change'!$C$14:$O$14,0)))*IF($E12="$millions",1000000,IF($E12="$000",1000,1))/IF($E13="$millions",1000000,IF($E13="$000",1000,1)) -> 0 | Q13: =Q12*IF($F12="nominal",LOOKUP($F13,Nominal_to_Real,'Input|Rate of change'!R$25:R$30),INDEX('Input|Rate of change'!$C$14:$O$21,MATCH('Calc|Opex forecast'!$F12,'Input|Rate of change'!$C$14:$C$21,0),MATCH('Calc|Opex forecast'!$F13,'Input|Rate of change'!$C$14:$O$14,0)))*IF($E12="$millions",1000000,IF($E12="$000",1000,1))/IF($E13="$millions",1000000,IF($E13="$000",1000,1)) -> 0 | R13: =R12*IF($F12="nominal",LOOKUP($F13,Nominal_to_Real,'Input|Rate of change'!S$25:S$30),INDEX('Input|Rate of change'!$C$14:$O$21,MATCH('Calc|Opex forecast'!$F12,'Input|Rate of change'!$C$14:$C$21,0),MATCH('Calc|Opex forecast'!$F13,'Input|Rate of change'!$C$14:$O$14,0)))*IF($E12="$millions",1000000,IF($E12="$000",1000,1))/IF($E13="$millions",1000000,IF($E13="$000",1000,1)) -> 0 | S13: =S12*IF($F12="nominal",LOOKUP($F13,Nominal_to_Real,'Input|Rate of change'!T$25:T$30),INDEX('Input|Rate of change'!$C$14:$O$21,MATCH('Calc|Opex forecast'!$F12,'Input|Rate of change'!$C$14:$C$21,0),MATCH('Calc|Opex forecast'!$F13,'Input|Rate of change'!$C$14:$O$14,0)))*IF($E12="$millions",1000000,IF($E12="$000",1000,1))/IF($E13="$millions",1000000,IF($E13="$000",1000,1)) -> 0
C14: Base year opex allowance, total | D14: Inputs|Reported opex | E14: ='Input|Reported opex'!E15 -> $millions | F14: ='Input|Reported opex'!F15 -> 2018-06-01 | J14: =IF(YEAR(J$4)=BaseYear,'Input|Reported opex'!J15,0) -> 0 | K14: =IF(YEAR(K$4)=BaseYear,'Input|Reported opex'!K15,0) -> 0 | L14: =IF(YEAR(L$4)=BaseYear,'Input|Reported opex'!L15,0) -> 92.52647185 | M14: =IF(YEAR(M$4)=BaseYear,'Input|Reported opex'!M15,0) -> 0 | N14: =IF(YEAR(N$4)=BaseYear,'Input|Reported opex'!N15,0) -> 0 | O14: =IF(YEAR(O$4)=BaseYear,'Input|Reported opex'!O15,0) -> 0 | P14: =IF(YEAR(P$4)=BaseYear,'Input|Reported opex'!P15,0) -> 0 | Q14: =IF(YEAR(Q$4)=BaseYear,'Input|Reported opex'!Q15,0) -> 0 | R14: =IF(YEAR(R$4)=BaseYear,'Input|Reported opex'!R15,0) -> 0 | S14: =IF(YEAR(S$4)=BaseYear,'Input|Reported opex'!S15,0) -> 0
C15: Base year opex allowance, total | D15: Calculated | E15: =$E$8 -> $millions | F15: =$F$8 -> 2023-06-01 | J15: =J14*IF($F14="nominal",LOOKUP($F15,Nominal_to_Real,'Input|Rate of change'!K$25:K$30),INDEX('Input|Rate of change'!$C$14:$O$21,MATCH('Calc|Opex forecast'!$F14,'Input|Rate of change'!$C$14:$C$21,0),MATCH('Calc|Opex forecast'!$F15,'Input|Rate of change'!$C$14:$O$14,0)))*IF($E14="$millions",1000000,IF($E14="$000",1000,1))/IF($E15="$millions",1000000,IF($E15="$000",1000,1)) -> 0 | K15: =K14*IF($F14="nominal",LOOKUP($F15,Nominal_to_Real,'Input|Rate of change'!L$25:L$30),INDEX('Input|Rate of change'!$C$14:$O$21,MATCH('Calc|Opex forecast'!$F14,'Input|Rate of change'!$C$14:$C$21,0),MATCH('Calc|Opex forecast'!$F15,'Input|Rate of change'!$C$14:$O$14,0)))*IF($E14="$millions",1000000,IF($E14="$000",1000,1))/IF($E15="$millions",1000000,IF($E15="$000",1000,1)) -> 0 | L15: =L14*IF($F14="nominal",LOOKUP($F15,Nominal_to_Real,'Input|Rate of change'!M$25:M$30),INDEX('Input|Rate of change'!$C$14:$O$21,MATCH('Calc|Opex forecast'!$F14,'Input|Rate of change'!$C$14:$C$21,0),MATCH('Calc|Opex forecast'!$F15,'Input|Rate of change'!$C$14:$O$14,0)))*IF($E14="$millions",1000000,IF($E14="$000",1000,1))/IF($E15="$millions",1000000,IF($E15="$000",1000,1)) -> 101.5289112 | M15: =M14*IF($F14="nominal",LOOKUP($F15,Nominal_to_Real,'Input|Rate of change'!N$25:N$30),INDEX('Input|Rate of change'!$C$14:$O$21,MATCH('Calc|Opex forecast'!$F14,'Input|Rate of change'!$C$14:$C$21,0),MATCH('Calc|Opex forecast'!$F15,'Input|Rate of change'!$C$14:$O$14,0)))*IF($E14="$millions",1000000,IF($E14="$000",1000,1))/IF($E15="$millions",1000000,IF($E15="$000",1000,1)) -> 0 | N15: =N14*IF($F14="nominal",LOOKUP($F15,Nominal_to_Real,'Input|Rate of change'!O$25:O$30),INDEX('Input|Rate of change'!$C$14:$O$21,MATCH('Calc|Opex forecast'!$F14,'Input|Rate of change'!$C$14:$C$21,0),MATCH('Calc|Opex forecast'!$F15,'Input|Rate of change'!$C$14:$O$14,0)))*IF($E14="$millions",1000000,IF($E14="$000",1000,1))/IF($E15="$millions",1000000,IF($E15="$000",1000,1)) -> 0 | O15: =O14*IF($F14="nominal",LOOKUP($F15,Nominal_to_Real,'Input|Rate of change'!P$25:P$30),INDEX('Input|Rate of change'!$C$14:$O$21,MATCH('Calc|Opex forecast'!$F14,'Input|Rate of change'!$C$14:$C$21,0),MATCH('Calc|Opex forecast'!$F15,'Input|Rate of change'!$C$14:$O$14,0)))*IF($E14="$millions",1000000,IF($E14="$000",1000,1))/IF($E15="$millions",1000000,IF($E15="$000",1000,1)) -> 0 | P15: =P14*IF($F14="nominal",LOOKUP($F15,Nominal_to_Real,'Input|Rate of change'!Q$25:Q$30),INDEX('Input|Rate of change'!$C$14:$O$21,MATCH('Calc|Opex forecast'!$F14,'Input|Rate of change'!$C$14:$C$21,0),MATCH('Calc|Opex forecast'!$F15,'Input|Rate of change'!$C$14:$O$14,0)))*IF($E14="$millions",1000000,IF($E14="$000",1000,1))/IF($E15="$millions",1000000,IF($E15="$000",1000,1)) -> 0 | Q15: =Q14*IF($F14="nominal",LOOKUP($F15,Nominal_to_Real,'Input|Rate of change'!R$25:R$30),INDEX('Input|Rate of change'!$C$14:$O$21,MATCH('Calc|Opex forecast'!$F14,'Input|Rate of change'!$C$14:$C$21,0),MATCH('Calc|Opex forecast'!$F15,'Input|Rate of change'!$C$14:$O$14,0)))*IF($E14="$millions",1000000,IF($E14="$000",1000,1))/IF($E15="$millions",1000000,IF($E15="$000",1000,1)) -> 0 | R15: =R14*IF($F14="nominal",LOOKUP($F15,Nominal_to_Real,'Input|Rate of change'!S$25:S$30),INDEX('Input|Rate of change'!$C$14:$O$21,MATCH('Calc|Opex forecast'!$F14,'Input|Rate of change'!$C$14:$C$21,0),MATCH('Calc|Opex forecast'!$F15,'Input|Rate of change'!$C$14:$O$14,0)))*IF($E14="$millions",1000000,IF($E14="$000",1000,1))/IF($E15="$millions",1000000,IF($E15="$000",1000,1)) -> 0 | S15: =S14*IF($F14="nominal",LOOKUP($F15,Nominal_to_Real,'Input|Rate of change'!T$25:T$30),INDEX('Input|Rate of change'!$C$14:$O$21,MATCH('Calc|Opex forecast'!$F14,'Input|Rate of change'!$C$14:$C$21,0),MATCH('Calc|Opex forecast'!$F15,'Input|Rate of change'!$C$14:$O$14,0)))*IF($E14="$millions",1000000,IF($E14="$000",1000,1))/IF($E15="$millions",1000000,IF($E15="$000",1000,1)) -> 0
C16: Final year opex allowance, total | D16: Inputs|Reported opex | E16: ='Input|Reported opex'!E15 -> $millions | F16: ='Input|Reported opex'!F15 -> 2018-06-01 | J16: =IF(YEAR(J$4)=PPLastYear,'Input|Reported opex'!J15,0) -> 0 | K16: =IF(YEAR(K$4)=PPLastYear,'Input|Reported opex'!K15,0) -> 0 | L16: =IF(YEAR(L$4)=PPLastYear,'Input|Reported opex'!L15,0) -> 0 | M16: =IF(YEAR(M$4)=PPLastYear,'Input|Reported opex'!M15,0) -> 0 | N16: =IF(YEAR(N$4)=PPLastYear,'Input|Reported opex'!N15,0) -> 93.03821471 | O16: =IF(YEAR(O$4)=PPLastYear,'Input|Reported opex'!O15,0) -> 0 | P16: =IF(YEAR(P$4)=PPLastYear,'Input|Reported opex'!P15,0) -> 0 | Q16: =IF(YEAR(Q$4)=PPLastYear,'Input|Reported opex'!Q15,0) -> 0 | R16: =IF(YEAR(R$4)=PPLastYear,'Input|Reported opex'!R15,0) -> 0 | S16: =IF(YEAR(S$4)=PPLastYear,'Input|Reported opex'!S15,0) -> 0
C17: Final year opex allowance, total | D17: Calculated | E17: =$E$8 -> $millions | F17: =$F$8 -> 2023-06-01 | J17: =J16*IF($F16="nominal",LOOKUP($F17,Nominal_to_Real,'Input|Rate of change'!K$25:K$30),INDEX('Input|Rate of change'!$C$14:$O$21,MATCH('Calc|Opex forecast'!$F16,'Input|Rate of change'!$C$14:$C$21,0),MATCH('Calc|Opex forecast'!$F17,'Input|Rate of change'!$C$14:$O$14,0)))*IF($E16="$millions",1000000,IF($E16="$000",1000,1))/IF($E17="$millions",1000000,IF($E17="$000",1000,1)) -> 0 | K17: =K16*IF($F16="nominal",LOOKUP($F17,Nominal_to_Real,'Input|Rate of change'!L$25:L$30),INDEX('Input|Rate of change'!$C$14:$O$21,MATCH('Calc|Opex forecast'!$F16,'Input|Rate of change'!$C$14:$C$21,0),MATCH('Calc|Opex forecast'!$F17,'Input|Rate of change'!$C$14:$O$14,0)))*IF($E16="$millions",1000000,IF($E16="$000",1000,1))/IF($E17="$millions",1000000,IF($E17="$000",1000,1)) -> 0 | L17: =L16*IF($F16="nominal",LOOKUP($F17,Nominal_to_Real,'Input|Rate of change'!M$25:M$30),INDEX('Input|Rate of change'!$C$14:$O$21,MATCH('Calc|Opex forecast'!$F16,'Input|Rate of change'!$C$14:$C$21,0),MATCH('Calc|Opex forecast'!$F17,'Input|Rate of change'!$C$14:$O$14,0)))*IF($E16="$millions",1000000,IF($E16="$000",1000,1))/IF($E17="$millions",1000000,IF($E17="$000",1000,1)) -> 0 | M17: =M16*IF($F16="nominal",LOOKUP($F17,Nominal_to_Real,'Input|Rate of change'!N$25:N$30),INDEX('Input|Rate of change'!$C$14:$O$21,MATCH('Calc|Opex forecast'!$F16,'Input|Rate of change'!$C$14:$C$21,0),MATCH('Calc|Opex forecast'!$F17,'Input|Rate of change'!$C$14:$O$14,0)))*IF($E16="$millions",1000000,IF($E16="$000",1000,1))/IF($E17="$millions",1000000,IF($E17="$000",1000,1)) -> 0 | N17: =N16*IF($F16="nominal",LOOKUP($F17,Nominal_to_Real,'Input|Rate of change'!O$25:O$30),INDEX('Input|Rate of change'!$C$14:$O$21,MATCH('Calc|Opex forecast'!$F16,'Input|Rate of change'!$C$14:$C$21,0),MATCH('Calc|Opex forecast'!$F17,'Input|Rate of change'!$C$14:$O$14,0)))*IF($E16="$millions",1000000,IF($E16="$000",1000,1))/IF($E17="$millions",1000000,IF($E17="$000",1000,1)) -> 102.0904445 | O17: =O16*IF($F16="nominal",LOOKUP($F17,Nominal_to_Real,'Input|Rate of change'!P$25:P$30),INDEX('Input|Rate of change'!$C$14:$O$21,MATCH('Calc|Opex forecast'!$F16,'Input|Rate of change'!$C$14:$C$21,0),MATCH('Calc|Opex forecast'!$F17,'Input|Rate of change'!$C$14:$O$14,0)))*IF($E16="$millions",1000000,IF($E16="$000",1000,1))/IF($E17="$millions",1000000,IF($E17="$000",1000,1)) -> 0 | P17: =P16*IF($F16="nominal",LOOKUP($F17,Nominal_to_Real,'Input|Rate of change'!Q$25:Q$30),INDEX('Input|Rate of change'!$C$14:$O$21,MATCH('Calc|Opex forecast'!$F16,'Input|Rate of change'!$C$14:$C$21,0),MATCH('Calc|Opex forecast'!$F17,'Input|Rate of change'!$C$14:$O$14,0)))*IF($E16="$millions",1000000,IF($E16="$000",1000,1))/IF($E17="$millions",1000000,IF($E17="$000",1000,1)) -> 0 | Q17: =Q16*IF($F16="nominal",LOOKUP($F17,Nominal_to_Real,'Input|Rate of change'!R$25:R$30),INDEX('Input|Rate of change'!$C$14:$O$21,MATCH('Calc|Opex forecast'!$F16,'Input|Rate of change'!$C$14:$C$21,0),MATCH('Calc|Opex forecast'!$F17,'Input|Rate of change'!$C$14:$O$14,0)))*IF($E16="$millions",1000000,IF($E16="$000",1000,1))/IF($E17="$millions",1000000,IF($E17="$000",1000,1)) -> 0 | R17: =R16*IF($F16="nominal",LOOKUP($F17,Nominal_to_Real,'Input|Rate of change'!S$25:S$30),INDEX('Input|Rate of change'!$C$14:$O$21,MATCH('Calc|Opex forecast'!$F16,'Input|Rate of change'!$C$14:$C$21,0),MATCH('Calc|Opex forecast'!$F17,'Input|Rate of change'!$C$14:$O$14,0)))*IF($E16="$millions",1000000,IF($E16="$000",1000,1))/IF($E17="$millions",1000000,IF($E17="$000",1000,1)) -> 0 | S17: =S16*IF($F16="nominal",LOOKUP($F17,Nominal_to_Real,'Input|Rate of change'!T$25:T$30),INDEX('Input|Rate of change'!$C$14:$O$21,MATCH('Calc|Opex forecast'!$F16,'Input|Rate of change'!$C$14:$C$21,0),MATCH('Calc|Opex forecast'!$F17,'Input|Rate of change'!$C$14:$O$14,0)))*IF($E16="$millions",1000000,IF($E16="$000",1000,1))/IF($E17="$millions",1000000,IF($E17="$000",1000,1)) -> 0
C19: Reported opex, category specific forecasts | D19: Inputs|Reported opex | E19: ='Input|Reported opex'!E67 -> $millions | F19: ='Input|Reported opex'!F60 -> nominal | J19: =IF(YEAR(J$4)=BaseYear,'Input|Reported opex'!J60,0) -> 0 | K19: =IF(YEAR(K$4)=BaseYear,'Input|Reported opex'!K60,0) -> 0 | L19: =IF(YEAR(L$4)=BaseYear,'Input|Reported opex'!L60,0) -> -11.2195578 | M19: =IF(YEAR(M$4)=BaseYear,'Input|Reported opex'!M60,0) -> 0 | N19: =IF(YEAR(N$4)=BaseYear,'Input|Reported opex'!N60,0) -> 0 | O19: =IF(YEAR(O$4)=BaseYear,'Input|Reported opex'!O60,0) -> 0 | P19: =IF(YEAR(P$4)=BaseYear,'Input|Reported opex'!P60,0) -> 0 | Q19: =IF(YEAR(Q$4)=BaseYear,'Input|Reported opex'!Q60,0) -> 0 | R19: =IF(YEAR(R$4)=BaseYear,'Input|Reported opex'!R60,0) -> 0 | S19: =IF(YEAR(S$4)=BaseYear,'Input|Reported opex'!S60,0) -> 0
C20: Reported opex, category specific forecasts | D20: Calculated | E20: =$E$8 -> $millions | F20: =$F$8 -> 2023-06-01 | J20: =J19*IF($F19="nominal",LOOKUP($F20,Nominal_to_Real,'Input|Rate of change'!K$25:K$30),INDEX('Input|Rate of change'!$C$14:$O$21,MATCH('Calc|Opex forecast'!$F19,'Input|Rate of change'!$C$14:$C$21,0),MATCH('Calc|Opex forecast'!$F20,'Input|Rate of change'!$C$14:$O$14,0)))*IF($E19="$millions",1000000,IF($E19="$000",1000,1))/IF($E20="$millions",1000000,IF($E20="$000",1000,1)) -> 0 | K20: =K19*IF($F19="nominal",LOOKUP($F20,Nominal_to_Real,'Input|Rate of change'!L$25:L$30),INDEX('Input|Rate of change'!$C$14:$O$21,MATCH('Calc|Opex forecast'!$F19,'Input|Rate of change'!$C$14:$C$21,0),MATCH('Calc|Opex forecast'!$F20,'Input|Rate of change'!$C$14:$O$14,0)))*IF($E19="$millions",1000000,IF($E19="$000",1000,1))/IF($E20="$millions",1000000,IF($E20="$000",1000,1)) -> 0 | L20: =L19*IF($F19="nominal",LOOKUP($F20,Nominal_to_Real,'Input|Rate of change'!M$25:M$30),INDEX('Input|Rate of change'!$C$14:$O$21,MATCH('Calc|Opex forecast'!$F19,'Input|Rate of change'!$C$14:$C$21,0),MATCH('Calc|Opex forecast'!$F20,'Input|Rate of change'!$C$14:$O$14,0)))*IF($E19="$millions",1000000,IF($E19="$000",1000,1))/IF($E20="$millions",1000000,IF($E20="$000",1000,1)) -> -11.82657929 | M20: =M19*IF($F19="nominal",LOOKUP($F20,Nominal_to_Real,'Input|Rate of change'!N$25:N$30),INDEX('Input|Rate of change'!$C$14:$O$21,MATCH('Calc|Opex forecast'!$F19,'Input|Rate of change'!$C$14:$C$21,0),MATCH('Calc|Opex forecast'!$F20,'Input|Rate of change'!$C$14:$O$14,0)))*IF($E19="$millions",1000000,IF($E19="$000",1000,1))/IF($E20="$millions",1000000,IF($E20="$000",1000,1)) -> 0 | N20: =N19*IF($F19="nominal",LOOKUP($F20,Nominal_to_Real,'Input|Rate of change'!O$25:O$30),INDEX('Input|Rate of change'!$C$14:$O$21,MATCH('Calc|Opex forecast'!$F19,'Input|Rate of change'!$C$14:$C$21,0),MATCH('Calc|Opex forecast'!$F20,'Input|Rate of change'!$C$14:$O$14,0)))*IF($E19="$millions",1000000,IF($E19="$000",1000,1))/IF($E20="$millions",1000000,IF($E20="$000",1000,1)) -> 0 | O20: =O19*IF($F19="nominal",LOOKUP($F20,Nominal_to_Real,'Input|Rate of change'!P$25:P$30),INDEX('Input|Rate of change'!$C$14:$O$21,MATCH('Calc|Opex forecast'!$F19,'Input|Rate of change'!$C$14:$C$21,0),MATCH('Calc|Opex forecast'!$F20,'Input|Rate of change'!$C$14:$O$14,0)))*IF($E19="$millions",1000000,IF($E19="$000",1000,1))/IF($E20="$millions",1000000,IF($E20="$000",1000,1)) -> 0 | P20: =P19*IF($F19="nominal",LOOKUP($F20,Nominal_to_Real,'Input|Rate of change'!Q$25:Q$30),INDEX('Input|Rate of change'!$C$14:$O$21,MATCH('Calc|Opex forecast'!$F19,'Input|Rate of change'!$C$14:$C$21,0),MATCH('Calc|Opex forecast'!$F20,'Input|Rate of change'!$C$14:$O$14,0)))*IF($E19="$millions",1000000,IF($E19="$000",1000,1))/IF($E20="$millions",1000000,IF($E20="$000",1000,1)) -> 0 | Q20: =Q19*IF($F19="nominal",LOOKUP($F20,Nominal_to_Real,'Input|Rate of change'!R$25:R$30),INDEX('Input|Rate of change'!$C$14:$O$21,MATCH('Calc|Opex forecast'!$F19,'Input|Rate of change'!$C$14:$C$21,0),MATCH('Calc|Opex forecast'!$F20,'Input|Rate of change'!$C$14:$O$14,0)))*IF($E19="$millions",1000000,IF($E19="$000",1000,1))/IF($E20="$millions",1000000,IF($E20="$000",1000,1)) -> 0 | R20: =R19*IF($F19="nominal",LOOKUP($F20,Nominal_to_Real,'Input|Rate of change'!S$25:S$30),INDEX('Input|Rate of change'!$C$14:$O$21,MATCH('Calc|Opex forecast'!$F19,'Input|Rate of change'!$C$14:$C$21,0),MATCH('Calc|Opex forecast'!$F20,'Input|Rate of change'!$C$14:$O$14,0)))*IF($E19="$millions",1000000,IF($E19="$000",1000,1))/IF($E20="$millions",1000000,IF($E20="$000",1000,1)) -> 0 | S20: =S19*IF($F19="nominal",LOOKUP($F20,Nominal_to_Real,'Input|Rate of change'!T$25:T$30),INDEX('Input|Rate of change'!$C$14:$O$21,MATCH('Calc|Opex forecast'!$F19,'Input|Rate of change'!$C$14:$C$21,0),MATCH('Calc|Opex forecast'!$F20,'Input|Rate of change'!$C$14:$O$14,0)))*IF($E19="$millions",1000000,IF($E19="$000",1000,1))/IF($E20="$millions",1000000,IF($E20="$000",1000,1)) -> 0
C21: Base year opex allowance, category specific forecasts | D21: Inputs|Reported opex | E21: ='Input|Reported opex'!E22 -> $millions | F21: ='Input|Reported opex'!F22 -> 2018-06-01 | J21: =IF(YEAR(J$4)=BaseYear,'Input|Reported opex'!J29,0) -> 0 | K21: =IF(YEAR(K$4)=BaseYear,'Input|Reported opex'!K29,0) -> 0 | L21: =IF(YEAR(L$4)=BaseYear,'Input|Reported opex'!L29,0) -> -9.69974998 | M21: =IF(YEAR(M$4)=BaseYear,'Input|Reported opex'!M29,0) -> 0 | N21: =IF(YEAR(N$4)=BaseYear,'Input|Reported opex'!N29,0) -> 0 | O21: =IF(YEAR(O$4)=BaseYear,'Input|Reported opex'!O29,0) -> 0 | P21: =IF(YEAR(P$4)=BaseYear,'Input|Reported opex'!P29,0) -> 0 | Q21: =IF(YEAR(Q$4)=BaseYear,'Input|Reported opex'!Q29,0) -> 0 | R21: =IF(YEAR(R$4)=BaseYear,'Input|Reported opex'!R29,0) -> 0 | S21: =IF(YEAR(S$4)=BaseYear,'Input|Reported opex'!S29,0) -> 0
C22: Base year opex allowance, category specific forecasts | D22: Calculated | E22: =$E$8 -> $millions | F22: =$F$8 -> 2023-06-01 | J22: =J21*IF($F21="nominal",LOOKUP($F22,Nominal_to_Real,'Input|Rate of change'!K$25:K$30),INDEX('Input|Rate of change'!$C$14:$O$21,MATCH('Calc|Opex forecast'!$F21,'Input|Rate of change'!$C$14:$C$21,0),MATCH('Calc|Opex forecast'!$F22,'Input|Rate of change'!$C$14:$O$14,0)))*IF($E21="$millions",1000000,IF($E21="$000",1000,1))/IF($E22="$millions",1000000,IF($E22="$000",1000,1)) -> 0 | K22: =K21*IF($F21="nominal",LOOKUP($F22,Nominal_to_Real,'Input|Rate of change'!L$25:L$30),INDEX('Input|Rate of change'!$C$14:$O$21,MATCH('Calc|Opex forecast'!$F21,'Input|Rate of change'!$C$14:$C$21,0),MATCH('Calc|Opex forecast'!$F22,'Input|Rate of change'!$C$14:$O$14,0)))*IF($E21="$millions",1000000,IF($E21="$000",1000,1))/IF($E22="$millions",1000000,IF($E22="$000",1000,1)) -> 0 | L22: =L21*IF($F21="nominal",LOOKUP($F22,Nominal_to_Real,'Input|Rate of change'!M$25:M$30),INDEX('Input|Rate of change'!$C$14:$O$21,MATCH('Calc|Opex forecast'!$F21,'Input|Rate of change'!$C$14:$C$21,0),MATCH('Calc|Opex forecast'!$F22,'Input|Rate of change'!$C$14:$O$14,0)))*IF($E21="$millions",1000000,IF($E21="$000",1000,1))/IF($E22="$millions",1000000,IF($E22="$000",1000,1)) -> -10.64349515 | M22: =M21*IF($F21="nominal",LOOKUP($F22,Nominal_to_Real,'Input|Rate of change'!N$25:N$30),INDEX('Input|Rate of change'!$C$14:$O$21,MATCH('Calc|Opex forecast'!$F21,'Input|Rate of change'!$C$14:$C$21,0),MATCH('Calc|Opex forecast'!$F22,'Input|Rate of change'!$C$14:$O$14,0)))*IF($E21="$millions",1000000,IF($E21="$000",1000,1))/IF($E22="$millions",1000000,IF($E22="$000",1000,1)) -> 0 | N22: =N21*IF($F21="nominal",LOOKUP($F22,Nominal_to_Real,'Input|Rate of change'!O$25:O$30),INDEX('Input|Rate of change'!$C$14:$O$21,MATCH('Calc|Opex forecast'!$F21,'Input|Rate of change'!$C$14:$C$21,0),MATCH('Calc|Opex forecast'!$F22,'Input|Rate of change'!$C$14:$O$14,0)))*IF($E21="$millions",1000000,IF($E21="$000",1000,1))/IF($E22="$millions",1000000,IF($E22="$000",1000,1)) -> 0 | O22: =O21*IF($F21="nominal",LOOKUP($F22,Nominal_to_Real,'Input|Rate of change'!P$25:P$30),INDEX('Input|Rate of change'!$C$14:$O$21,MATCH('Calc|Opex forecast'!$F21,'Input|Rate of change'!$C$14:$C$21,0),MATCH('Calc|Opex forecast'!$F22,'Input|Rate of change'!$C$14:$O$14,0)))*IF($E21="$millions",1000000,IF($E21="$000",1000,1))/IF($E22="$millions",1000000,IF($E22="$000",1000,1)) -> 0 | P22: =P21*IF($F21="nominal",LOOKUP($F22,Nominal_to_Real,'Input|Rate of change'!Q$25:Q$30),INDEX('Input|Rate of change'!$C$14:$O$21,MATCH('Calc|Opex forecast'!$F21,'Input|Rate of change'!$C$14:$C$21,0),MATCH('Calc|Opex forecast'!$F22,'Input|Rate of change'!$C$14:$O$14,0)))*IF($E21="$millions",1000000,IF($E21="$000",1000,1))/IF($E22="$millions",1000000,IF($E22="$000",1000,1)) -> 0 | Q22: =Q21*IF($F21="nominal",LOOKUP($F22,Nominal_to_Real,'Input|Rate of change'!R$25:R$30),INDEX('Input|Rate of change'!$C$14:$O$21,MATCH('Calc|Opex forecast'!$F21,'Input|Rate of change'!$C$14:$C$21,0),MATCH('Calc|Opex forecast'!$F22,'Input|Rate of change'!$C$14:$O$14,0)))*IF($E21="$millions",1000000,IF($E21="$000",1000,1))/IF($E22="$millions",1000000,IF($E22="$000",1000,1)) -> 0 | R22: =R21*IF($F21="nominal",LOOKUP($F22,Nominal_to_Real,'Input|Rate of change'!S$25:S$30),INDEX('Input|Rate of change'!$C$14:$O$21,MATCH('Calc|Opex forecast'!$F21,'Input|Rate of change'!$C$14:$C$21,0),MATCH('Calc|Opex forecast'!$F22,'Input|Rate of change'!$C$14:$O$14,0)))*IF($E21="$millions",1000000,IF($E21="$000",1000,1))/IF($E22="$millions",1000000,IF($E22="$000",1000,1)) -> 0 | S22: =S21*IF($F21="nominal",LOOKUP($F22,Nominal_to_Real,'Input|Rate of change'!T$25:T$30),INDEX('Input|Rate of change'!$C$14:$O$21,MATCH('Calc|Opex forecast'!$F21,'Input|Rate of change'!$C$14:$C$21,0),MATCH('Calc|Opex forecast'!$F22,'Input|Rate of change'!$C$14:$O$14,0)))*IF($E21="$millions",1000000,IF($E21="$000",1000,1))/IF($E22="$millions",1000000,IF($E22="$000",1000,1)) -> 0
C23: Final year opex allowance, category specific forecasts | D23: Inputs|Reported opex | E23: ='Input|Reported opex'!E22 -> $millions | F23: ='Input|Reported opex'!F22 -> 2018-06-01 | J23: =IF(YEAR(J$4)=PPLastYear,'Input|Reported opex'!J29,0) -> 0 | K23: =IF(YEAR(K$4)=PPLastYear,'Input|Reported opex'!K29,0) -> 0 | L23: =IF(YEAR(L$4)=PPLastYear,'Input|Reported opex'!L29,0) -> 0 | M23: =IF(YEAR(M$4)=PPLastYear,'Input|Reported opex'!M29,0) -> 0 | N23: =IF(YEAR(N$4)=PPLastYear,'Input|Reported opex'!N29,0) -> -8.496553551 | O23: =IF(YEAR(O$4)=PPLastYear,'Input|Reported opex'!O29,0) -> 0 | P23: =IF(YEAR(P$4)=PPLastYear,'Input|Reported opex'!P29,0) -> 0 | Q23: =IF(YEAR(Q$4)=PPLastYear,'Input|Reported opex'!Q29,0) -> 0 | R23: =IF(YEAR(R$4)=PPLastYear,'Input|Reported opex'!R29,0) -> 0 | S23: =IF(YEAR(S$4)=PPLastYear,'Input|Reported opex'!S29,0) -> 0
C24: Final year opex allowance, category specific forecasts | D24: Calculated | E24: =$E$8 -> $millions | F24: =$F$8 -> 2023-06-01 | J24: =J23*IF($F23="nominal",LOOKUP($F24,Nominal_to_Real,'Input|Rate of change'!K$25:K$30),INDEX('Input|Rate of change'!$C$14:$O$21,MATCH('Calc|Opex forecast'!$F23,'Input|Rate of change'!$C$14:$C$21,0),MATCH('Calc|Opex forecast'!$F24,'Input|Rate of change'!$C$14:$O$14,0)))*IF($E23="$millions",1000000,IF($E23="$000",1000,1))/IF($E24="$millions",1000000,IF($E24="$000",1000,1)) -> 0 | K24: =K23*IF($F23="nominal",LOOKUP($F24,Nominal_to_Real,'Input|Rate of change'!L$25:L$30),INDEX('Input|Rate of change'!$C$14:$O$21,MATCH('Calc|Opex forecast'!$F23,'Input|Rate of change'!$C$14:$C$21,0),MATCH('Calc|Opex forecast'!$F24,'Input|Rate of change'!$C$14:$O$14,0)))*IF($E23="$millions",1000000,IF($E23="$000",1000,1))/IF($E24="$millions",1000000,IF($E24="$000",1000,1)) -> 0 | L24: =L23*IF($F23="nominal",LOOKUP($F24,Nominal_to_Real,'Input|Rate of change'!M$25:M$30),INDEX('Input|Rate of change'!$C$14:$O$21,MATCH('Calc|Opex forecast'!$F23,'Input|Rate of change'!$C$14:$C$21,0),MATCH('Calc|Opex forecast'!$F24,'Input|Rate of change'!$C$14:$O$14,0)))*IF($E23="$millions",1000000,IF($E23="$000",1000,1))/IF($E24="$millions",1000000,IF($E24="$000",1000,1)) -> 0 | M24: =M23*IF($F23="nominal",LOOKUP($F24,Nominal_to_Real,'Input|Rate of change'!N$25:N$30),INDEX('Input|Rate of change'!$C$14:$O$21,MATCH('Calc|Opex forecast'!$F23,'Input|Rate of change'!$C$14:$C$21,0),MATCH('Calc|Opex forecast'!$F24,'Input|Rate of change'!$C$14:$O$14,0)))*IF($E23="$millions",1000000,IF($E23="$000",1000,1))/IF($E24="$millions",1000000,IF($E24="$000",1000,1)) -> 0 | N24: =N23*IF($F23="nominal",LOOKUP($F24,Nominal_to_Real,'Input|Rate of change'!O$25:O$30),INDEX('Input|Rate of change'!$C$14:$O$21,MATCH('Calc|Opex forecast'!$F23,'Input|Rate of change'!$C$14:$C$21,0),MATCH('Calc|Opex forecast'!$F24,'Input|Rate of change'!$C$14:$O$14,0)))*IF($E23="$millions",1000000,IF($E23="$000",1000,1))/IF($E24="$millions",1000000,IF($E24="$000",1000,1)) -> -9.323232731 | O24: =O23*IF($F23="nominal",LOOKUP($F24,Nominal_to_Real,'Input|Rate of change'!P$25:P$30),INDEX('Input|Rate of change'!$C$14:$O$21,MATCH('Calc|Opex forecast'!$F23,'Input|Rate of change'!$C$14:$C$21,0),MATCH('Calc|Opex forecast'!$F24,'Input|Rate of change'!$C$14:$O$14,0)))*IF($E23="$millions",1000000,IF($E23="$000",1000,1))/IF($E24="$millions",1000000,IF($E24="$000",1000,1)) -> 0 | P24: =P23*IF($F23="nominal",LOOKUP($F24,Nominal_to_Real,'Input|Rate of change'!Q$25:Q$30),INDEX('Input|Rate of change'!$C$14:$O$21,MATCH('Calc|Opex forecast'!$F23,'Input|Rate of change'!$C$14:$C$21,0),MATCH('Calc|Opex forecast'!$F24,'Input|Rate of change'!$C$14:$O$14,0)))*IF($E23="$millions",1000000,IF($E23="$000",1000,1))/IF($E24="$millions",1000000,IF($E24="$000",1000,1)) -> 0 | Q24: =Q23*IF($F23="nominal",LOOKUP($F24,Nominal_to_Real,'Input|Rate of change'!R$25:R$30),INDEX('Input|Rate of change'!$C$14:$O$21,MATCH('Calc|Opex forecast'!$F23,'Input|Rate of change'!$C$14:$C$21,0),MATCH('Calc|Opex forecast'!$F24,'Input|Rate of change'!$C$14:$O$14,0)))*IF($E23="$millions",1000000,IF($E23="$000",1000,1))/IF($E24="$millions",1000000,IF($E24="$000",1000,1)) -> 0 | R24: =R23*IF($F23="nominal",LOOKUP($F24,Nominal_to_Real,'Input|Rate of change'!S$25:S$30),INDEX('Input|Rate of change'!$C$14:$O$21,MATCH('Calc|Opex forecast'!$F23,'Input|Rate of change'!$C$14:$C$21,0),MATCH('Calc|Opex forecast'!$F24,'Input|Rate of change'!$C$14:$O$14,0)))*IF($E23="$millions",1000000,IF($E23="$000",1000,1))/IF($E24="$millions",1000000,IF($E24="$000",1000,1)) -> 0 | S24: =S23*IF($F23="nominal",LOOKUP($F24,Nominal_to_Real,'Input|Rate of change'!T$25:T$30),INDEX('Input|Rate of change'!$C$14:$O$21,MATCH('Calc|Opex forecast'!$F23,'Input|Rate of change'!$C$14:$C$21,0),MATCH('Calc|Opex forecast'!$F24,'Input|Rate of change'!$C$14:$O$14,0)))*IF($E23="$millions",1000000,IF($E23="$000",1000,1))/IF($E24="$millions",1000000,IF($E24="$000",1000,1)) -> 0
C26: Reported base year opex | D26: Calculated | E26: =$E$8 -> $millions | F26: =$F$8 -> 2023-06-01 | J26: =J13 -> 0 | K26: =K13 -> 0 | L26: 105.1388722 | M26: 0 | N26: 0 | O26: 0 | P26: 0 | Q26: 0 | R26: 0 | S26: 0
C28: Add back non-recurrent efficiency gains in the base year | D28: Inputs|Reported opex | E28: ='Input|Reported opex'!E72 -> $millions | F28: ='Input|Reported opex'!F72 -> 2018-06-01 | J28: =IF('Input|Reported opex'!J$64='Input|Reported opex'!J$10,'Input|Reported opex'!J72,0) -> 0 | K28: =IF('Input|Reported opex'!K$64='Input|Reported opex'!K$10,'Input|Reported opex'!K72,0) -> 0 | L28: =IF('Input|Reported opex'!L$64='Input|Reported opex'!L$10,'Input|Reported opex'!L72,0) -> 0 | M28: =IF('Input|Reported opex'!M$64='Input|Reported opex'!M$10,'Input|Reported opex'!M72,0) -> 0 | N28: =IF('Input|Reported opex'!N$64='Input|Reported opex'!N$10,'Input|Reported opex'!N72,0) -> 0 | O28: =IF('Input|Reported opex'!O$64='Input|Reported opex'!O$10,'Input|Reported opex'!O72,0) -> 0 | P28: =IF('Input|Reported opex'!P$64='Input|Reported opex'!P$10,'Input|Reported opex'!P72,0) -> 0 | Q28: =IF('Input|Reported opex'!Q$64='Input|Reported opex'!Q$10,'Input|Reported opex'!Q72,0) -> 0 | R28: =IF('Input|Reported opex'!R$64='Input|Reported opex'!R$10,'Input|Reported opex'!R72,0) -> 0 | S28: =IF('Input|Reported opex'!S$64='Input|Reported opex'!S$10,'Input|Reported opex'!S72,0) -> 0
C29: =C28 -> Add back non-recurrent efficiency gains in the base year | D29: Calculated | E29: =$E$8 -> $millions | F29: =$F$8 -> 2023-06-01 | J29: =J28*IF($F28="nominal",LOOKUP($F29,Nominal_to_Real,'Input|Rate of change'!K$25:K$30),INDEX('Input|Rate of change'!$C$14:$O$21,MATCH('Calc|Opex forecast'!$F28,'Input|Rate of change'!$C$14:$C$21,0),MATCH('Calc|Opex forecast'!$F29,'Input|Rate of change'!$C$14:$O$14,0)))*IF($E28="$millions",1000000,IF($E28="$000",1000,1))/IF($E29="$millions",1000000,IF($E29="$000",1000,1)) -> 0 | K29: =K28*IF($F28="nominal",LOOKUP($F29,Nominal_to_Real,'Input|Rate of change'!L$25:L$30),INDEX('Input|Rate of change'!$C$14:$O$21,MATCH('Calc|Opex forecast'!$F28,'Input|Rate of change'!$C$14:$C$21,0),MATCH('Calc|Opex forecast'!$F29,'Input|Rate of change'!$C$14:$O$14,0)))*IF($E28="$millions",1000000,IF($E28="$000",1000,1))/IF($E29="$millions",1000000,IF($E29="$000",1000,1)) -> 0 | L29: =L28*IF($F28="nominal",LOOKUP($F29,Nominal_to_Real,'Input|Rate of change'!M$25:M$30),INDEX('Input|Rate of change'!$C$14:$O$21,MATCH('Calc|Opex forecast'!$F28,'Input|Rate of change'!$C$14:$C$21,0),MATCH('Calc|Opex forecast'!$F29,'Input|Rate of change'!$C$14:$O$14,0)))*IF($E28="$millions",1000000,IF($E28="$000",1000,1))/IF($E29="$millions",1000000,IF($E29="$000",1000,1)) -> 0 | M29: =M28*IF($F28="nominal",LOOKUP($F29,Nominal_to_Real,'Input|Rate of change'!N$25:N$30),INDEX('Input|Rate of change'!$C$14:$O$21,MATCH('Calc|Opex forecast'!$F28,'Input|Rate of change'!$C$14:$C$21,0),MATCH('Calc|Opex forecast'!$F29,'Input|Rate of change'!$C$14:$O$14,0)))*IF($E28="$millions",1000000,IF($E28="$000",1000,1))/IF($E29="$millions",1000000,IF($E29="$000",1000,1)) -> 0 | N29: =N28*IF($F28="nominal",LOOKUP($F29,Nominal_to_Real,'Input|Rate of change'!O$25:O$30),INDEX('Input|Rate of change'!$C$14:$O$21,MATCH('Calc|Opex forecast'!$F28,'Input|Rate of change'!$C$14:$C$21,0),MATCH('Calc|Opex forecast'!$F29,'Input|Rate of change'!$C$14:$O$14,0)))*IF($E28="$millions",1000000,IF($E28="$000",1000,1))/IF($E29="$millions",1000000,IF($E29="$000",1000,1)) -> 0 | O29: =O28*IF($F28="nominal",LOOKUP($F29,Nominal_to_Real,'Input|Rate of change'!P$25:P$30),INDEX('Input|Rate of change'!$C$14:$O$21,MATCH('Calc|Opex forecast'!$F28,'Input|Rate of change'!$C$14:$C$21,0),MATCH('Calc|Opex forecast'!$F29,'Input|Rate of change'!$C$14:$O$14,0)))*IF($E28="$millions",1000000,IF($E28="$000",1000,1))/IF($E29="$millions",1000000,IF($E29="$000",1000,1)) -> 0 | P29: =P28*IF($F28="nominal",LOOKUP($F29,Nominal_to_Real,'Input|Rate of change'!Q$25:Q$30),INDEX('Input|Rate of change'!$C$14:$O$21,MATCH('Calc|Opex forecast'!$F28,'Input|Rate of change'!$C$14:$C$21,0),MATCH('Calc|Opex forecast'!$F29,'Input|Rate of change'!$C$14:$O$14,0)))*IF($E28="$millions",1000000,IF($E28="$000",1000,1))/IF($E29="$millions",1000000,IF($E29="$000",1000,1)) -> 0 | Q29: =Q28*IF($F28="nominal",LOOKUP($F29,Nominal_to_Real,'Input|Rate of change'!R$25:R$30),INDEX('Input|Rate of change'!$C$14:$O$21,MATCH('Calc|Opex forecast'!$F28,'Input|Rate of change'!$C$14:$C$21,0),MATCH('Calc|Opex forecast'!$F29,'Input|Rate of change'!$C$14:$O$14,0)))*IF($E28="$millions",1000000,IF($E28="$000",1000,1))/IF($E29="$millions",1000000,IF($E29="$000",1000,1)) -> 0 | R29: =R28*IF($F28="nominal",LOOKUP($F29,Nominal_to_Real,'Input|Rate of change'!S$25:S$30),INDEX('Input|Rate of change'!$C$14:$O$21,MATCH('Calc|Opex forecast'!$F28,'Input|Rate of change'!$C$14:$C$21,0),MATCH('Calc|Opex forecast'!$F29,'Input|Rate of change'!$C$14:$O$14,0)))*IF($E28="$millions",1000000,IF($E28="$000",1000,1))/IF($E29="$millions",1000000,IF($E29="$000",1000,1)) -> 0 | S29: =S28*IF($F28="nominal",LOOKUP($F29,Nominal_to_Real,'Input|Rate of change'!T$25:T$30),INDEX('Input|Rate of change'!$C$14:$O$21,MATCH('Calc|Opex forecast'!$F28,'Input|Rate of change'!$C$14:$C$21,0),MATCH('Calc|Opex forecast'!$F29,'Input|Rate of change'!$C$14:$O$14,0)))*IF($E28="$millions",1000000,IF($E28="$000",1000,1))/IF($E29="$millions",1000000,IF($E29="$000",1000,1)) -> 0
C31: Add estimated change in opex between the base year and the final year | D31: Calculated | E31: =$E$8 -> $millions | F31: =$F$8 -> 2023-06-01 | J31: =IF(YEAR(J$4)=PPLastYear,-SUM($J15:$S15)+SUM($J17:$S17),0) -> 0 | K31: 0 | L31: 0 | M31: 0 | N31: 0.561533296 | O31: 0 | P31: 0 | Q31: 0 | R31: 0 | S31: 0
C33: Estimated final year opex | D33: Calculated | E33: =$E$8 -> $millions | F33: =$F$8 -> 2023-06-01 | J33: =IF(YEAR(J$4)=PPLastYear,SUM($J26:$S26,$J29:$S29,$J31:$S31),0) -> 0 | K33: 0 | L33: 0 | M33: 0 | N33: 105.7004055 | O33: 0 | P33: 0 | Q33: 0 | R33: 0 | S33: 0
C35: Remove estimated final year opex for categories forecast specifically | D35: Calculated | E35: =$E$8 -> $millions | F35: =$F$8 -> 2023-06-01 | J35: =IF(YEAR(J$4)=PPLastYear,SUM($J20:$S20)-SUM($J22:$S22)+SUM($J24:$S24),0) -> 0 | K35: 0 | L35: 0 | M35: 0 | N35: -10.50631687 | O35: 0 | P35: 0 | Q35: 0 | R35: 0 | S35: 0
C37: ='Input|Reported opex'!$C$66 -> Adjustment 1 | D37: Inputs|Reported opex | E37: ='Input|Reported opex'!E66 -> $millions | F37: ='Input|Reported opex'!F66 -> 2018-06-01 | J37: =IF(YEAR(J$4)=PPLastYear,'Input|Reported opex'!J66,0) -> 0 | K37: =IF(YEAR(K$4)=PPLastYear,'Input|Reported opex'!K66,0) -> 0 | L37: =IF(YEAR(L$4)=PPLastYear,'Input|Reported opex'!L66,0) -> 0 | M37: =IF(YEAR(M$4)=PPLastYear,'Input|Reported opex'!M66,0) -> 0 | N37: =IF(YEAR(N$4)=PPLastYear,'Input|Reported opex'!N66,0) -> 0 | O37: =IF(YEAR(O$4)=PPLastYear,'Input|Reported opex'!O66,0) -> 0 | P37: =IF(YEAR(P$4)=PPLastYear,'Input|Reported opex'!P66,0) -> 0 | Q37: =IF(YEAR(Q$4)=PPLastYear,'Input|Reported opex'!Q66,0) -> 0 | R37: =IF(YEAR(R$4)=PPLastYear,'Input|Reported opex'!R66,0) -> 0 | S37: =IF(YEAR(S$4)=PPLastYear,'Input|Reported opex'!S66,0) -> 0
C38: =C37 -> Adjustment 1 | D38: Calculated | E38: =$E$8 -> $millions | F38: =$F$8 -> 2023-06-01 | J38: =J37*IF($F37="nominal",LOOKUP($F38,Nominal_to_Real,'Input|Rate of change'!K$25:K$30),INDEX('Input|Rate of change'!$C$14:$O$21,MATCH('Calc|Opex forecast'!$F37,'Input|Rate of change'!$C$14:$C$21,0),MATCH('Calc|Opex forecast'!$F38,'Input|Rate of change'!$C$14:$O$14,0)))*IF($E37="$millions",1000000,IF($E37="$000",1000,1))/IF($E38="$millions",1000000,IF($E38="$000",1000,1)) -> 0 | K38: =K37*IF($F37="nominal",LOOKUP($F38,Nominal_to_Real,'Input|Rate of change'!L$25:L$30),INDEX('Input|Rate of change'!$C$14:$O$21,MATCH('Calc|Opex forecast'!$F37,'Input|Rate of change'!$C$14:$C$21,0),MATCH('Calc|Opex forecast'!$F38,'Input|Rate of change'!$C$14:$O$14,0)))*IF($E37="$millions",1000000,IF($E37="$000",1000,1))/IF($E38="$millions",1000000,IF($E38="$000",1000,1)) -> 0 | L38: =L37*IF($F37="nominal",LOOKUP($F38,Nominal_to_Real,'Input|Rate of change'!M$25:M$30),INDEX('Input|Rate of change'!$C$14:$O$21,MATCH('Calc|Opex forecast'!$F37,'Input|Rate of change'!$C$14:$C$21,0),MATCH('Calc|Opex forecast'!$F38,'Input|Rate of change'!$C$14:$O$14,0)))*IF($E37="$millions",1000000,IF($E37="$000",1000,1))/IF($E38="$millions",1000000,IF($E38="$000",1000,1)) -> 0 | M38: =M37*IF($F37="nominal",LOOKUP($F38,Nominal_to_Real,'Input|Rate of change'!N$25:N$30),INDEX('Input|Rate of change'!$C$14:$O$21,MATCH('Calc|Opex forecast'!$F37,'Input|Rate of change'!$C$14:$C$21,0),MATCH('Calc|Opex forecast'!$F38,'Input|Rate of change'!$C$14:$O$14,0)))*IF($E37="$millions",1000000,IF($E37="$000",1000,1))/IF($E38="$millions",1000000,IF($E38="$000",1000,1)) -> 0 | N38: =N37*IF($F37="nominal",LOOKUP($F38,Nominal_to_Real,'Input|Rate of change'!O$25:O$30),INDEX('Input|Rate of change'!$C$14:$O$21,MATCH('Calc|Opex forecast'!$F37,'Input|Rate of change'!$C$14:$C$21,0),MATCH('Calc|Opex forecast'!$F38,'Input|Rate of change'!$C$14:$O$14,0)))*IF($E37="$millions",1000000,IF($E37="$000",1000,1))/IF($E38="$millions",1000000,IF($E38="$000",1000,1)) -> 0 | O38: =O37*IF($F37="nominal",LOOKUP($F38,Nominal_to_Real,'Input|Rate of change'!P$25:P$30),INDEX('Input|Rate of change'!$C$14:$O$21,MATCH('Calc|Opex forecast'!$F37,'Input|Rate of change'!$C$14:$C$21,0),MATCH('Calc|Opex forecast'!$F38,'Input|Rate of change'!$C$14:$O$14,0)))*IF($E37="$millions",1000000,IF($E37="$000",1000,1))/IF($E38="$millions",1000000,IF($E38="$000",1000,1)) -> 0 | P38: =P37*IF($F37="nominal",LOOKUP($F38,Nominal_to_Real,'Input|Rate of change'!Q$25:Q$30),INDEX('Input|Rate of change'!$C$14:$O$21,MATCH('Calc|Opex forecast'!$F37,'Input|Rate of change'!$C$14:$C$21,0),MATCH('Calc|Opex forecast'!$F38,'Input|Rate of change'!$C$14:$O$14,0)))*IF($E37="$millions",1000000,IF($E37="$000",1000,1))/IF($E38="$millions",1000000,IF($E38="$000",1000,1)) -> 0 | Q38: =Q37*IF($F37="nominal",LOOKUP($F38,Nominal_to_Real,'Input|Rate of change'!R$25:R$30),INDEX('Input|Rate of change'!$C$14:$O$21,MATCH('Calc|Opex forecast'!$F37,'Input|Rate of change'!$C$14:$C$21,0),MATCH('Calc|Opex forecast'!$F38,'Input|Rate of change'!$C$14:$O$14,0)))*IF($E37="$millions",1000000,IF($E37="$000",1000,1))/IF($E38="$millions",1000000,IF($E38="$000",1000,1)) -> 0 | R38: =R37*IF($F37="nominal",LOOKUP($F38,Nominal_to_Real,'Input|Rate of change'!S$25:S$30),INDEX('Input|Rate of change'!$C$14:$O$21,MATCH('Calc|Opex forecast'!$F37,'Input|Rate of change'!$C$14:$C$21,0),MATCH('Calc|Opex forecast'!$F38,'Input|Rate of change'!$C$14:$O$14,0)))*IF($E37="$millions",1000000,IF($E37="$000",1000,1))/IF($E38="$millions",1000000,IF($E38="$000",1000,1)) -> 0 | S38: =S37*IF($F37="nominal",LOOKUP($F38,Nominal_to_Real,'Input|Rate of change'!T$25:T$30),INDEX('Input|Rate of change'!$C$14:$O$21,MATCH('Calc|Opex forecast'!$F37,'Input|Rate of change'!$C$14:$C$21,0),MATCH('Calc|Opex forecast'!$F38,'Input|Rate of change'!$C$14:$O$14,0)))*IF($E37="$millions",1000000,IF($E37="$000",1000,1))/IF($E38="$millions",1000000,IF($E38="$000",1000,1)) -> 0
C40: ='Input|Reported opex'!$C$67 -> Adjustment 2 | D40: Inputs|Reported opex | E40: ='Input|Reported opex'!$E$67 -> $millions | F40: ='Input|Reported opex'!$F$67 -> 2018-06-01 | J40: =IF(YEAR(J$4)=PPLastYear,'Input|Reported opex'!J67,0) -> 0 | K40: =IF(YEAR(K$4)=PPLastYear,'Input|Reported opex'!K67,0) -> 0 | L40: =IF(YEAR(L$4)=PPLastYear,'Input|Reported opex'!L67,0) -> 0 | M40: =IF(YEAR(M$4)=PPLastYear,'Input|Reported opex'!M67,0) -> 0 | N40: =IF(YEAR(N$4)=PPLastYear,'Input|Reported opex'!N67,0) -> 0 | O40: =IF(YEAR(O$4)=PPLastYear,'Input|Reported opex'!O67,0) -> 0 | P40: =IF(YEAR(P$4)=PPLastYear,'Input|Reported opex'!P67,0) -> 0 | Q40: =IF(YEAR(Q$4)=PPLastYear,'Input|Reported opex'!Q67,0) -> 0 | R40: =IF(YEAR(R$4)=PPLastYear,'Input|Reported opex'!R67,0) -> 0 | S40: =IF(YEAR(S$4)=PPLastYear,'Input|Reported opex'!S67,0) -> 0
C41: =C40 -> Adjustment 2 | D41: Calculated | E41: =$E$8 -> $millions | F41: =$F$8 -> 2023-06-01 | J41: =J40*IF($F40="nominal",LOOKUP($F41,Nominal_to_Real,'Input|Rate of change'!K$25:K$30),INDEX('Input|Rate of change'!$C$14:$O$21,MATCH('Calc|Opex forecast'!$F40,'Input|Rate of change'!$C$14:$C$21,0),MATCH('Calc|Opex forecast'!$F41,'Input|Rate of change'!$C$14:$O$14,0)))*IF($E40="$millions",1000000,IF($E40="$000",1000,1))/IF($E41="$millions",1000000,IF($E41="$000",1000,1)) -> 0 | K41: =K40*IF($F40="nominal",LOOKUP($F41,Nominal_to_Real,'Input|Rate of change'!L$25:L$30),INDEX('Input|Rate of change'!$C$14:$O$21,MATCH('Calc|Opex forecast'!$F40,'Input|Rate of change'!$C$14:$C$21,0),MATCH('Calc|Opex forecast'!$F41,'Input|Rate of change'!$C$14:$O$14,0)))*IF($E40="$millions",1000000,IF($E40="$000",1000,1))/IF($E41="$millions",1000000,IF($E41="$000",1000,1)) -> 0 | L41: =L40*IF($F40="nominal",LOOKUP($F41,Nominal_to_Real,'Input|Rate of change'!M$25:M$30),INDEX('Input|Rate of change'!$C$14:$O$21,MATCH('Calc|Opex forecast'!$F40,'Input|Rate of change'!$C$14:$C$21,0),MATCH('Calc|Opex forecast'!$F41,'Input|Rate of change'!$C$14:$O$14,0)))*IF($E40="$millions",1000000,IF($E40="$000",1000,1))/IF($E41="$millions",1000000,IF($E41="$000",1000,1)) -> 0 | M41: =M40*IF($F40="nominal",LOOKUP($F41,Nominal_to_Real,'Input|Rate of change'!N$25:N$30),INDEX('Input|Rate of change'!$C$14:$O$21,MATCH('Calc|Opex forecast'!$F40,'Input|Rate of change'!$C$14:$C$21,0),MATCH('Calc|Opex forecast'!$F41,'Input|Rate of change'!$C$14:$O$14,0)))*IF($E40="$millions",1000000,IF($E40="$000",1000,1))/IF($E41="$millions",1000000,IF($E41="$000",1000,1)) -> 0 | N41: =N40*IF($F40="nominal",LOOKUP($F41,Nominal_to_Real,'Input|Rate of change'!O$25:O$30),INDEX('Input|Rate of change'!$C$14:$O$21,MATCH('Calc|Opex forecast'!$F40,'Input|Rate of change'!$C$14:$C$21,0),MATCH('Calc|Opex forecast'!$F41,'Input|Rate of change'!$C$14:$O$14,0)))*IF($E40="$millions",1000000,IF($E40="$000",1000,1))/IF($E41="$millions",1000000,IF($E41="$000",1000,1)) -> 0 | O41: =O40*IF($F40="nominal",LOOKUP($F41,Nominal_to_Real,'Input|Rate of change'!P$25:P$30),INDEX('Input|Rate of change'!$C$14:$O$21,MATCH('Calc|Opex forecast'!$F40,'Input|Rate of change'!$C$14:$C$21,0),MATCH('Calc|Opex forecast'!$F41,'Input|Rate of change'!$C$14:$O$14,0)))*IF($E40="$millions",1000000,IF($E40="$000",1000,1))/IF($E41="$millions",1000000,IF($E41="$000",1000,1)) -> 0 | P41: =P40*IF($F40="nominal",LOOKUP($F41,Nominal_to_Real,'Input|Rate of change'!Q$25:Q$30),INDEX('Input|Rate of change'!$C$14:$O$21,MATCH('Calc|Opex forecast'!$F40,'Input|Rate of change'!$C$14:$C$21,0),MATCH('Calc|Opex forecast'!$F41,'Input|Rate of change'!$C$14:$O$14,0)))*IF($E40="$millions",1000000,IF($E40="$000",1000,1))/IF($E41="$millions",1000000,IF($E41="$000",1000,1)) -> 0 | Q41: =Q40*IF($F40="nominal",LOOKUP($F41,Nominal_to_Real,'Input|Rate of change'!R$25:R$30),INDEX('Input|Rate of change'!$C$14:$O$21,MATCH('Calc|Opex forecast'!$F40,'Input|Rate of change'!$C$14:$C$21,0),MATCH('Calc|Opex forecast'!$F41,'Input|Rate of change'!$C$14:$O$14,0)))*IF($E40="$millions",1000000,IF($E40="$000",1000,1))/IF($E41="$millions",1000000,IF($E41="$000",1000,1)) -> 0 | R41: =R40*IF($F40="nominal",LOOKUP($F41,Nominal_to_Real,'Input|Rate of change'!S$25:S$30),INDEX('Input|Rate of change'!$C$14:$O$21,MATCH('Calc|Opex forecast'!$F40,'Input|Rate of change'!$C$14:$C$21,0),MATCH('Calc|Opex forecast'!$F41,'Input|Rate of change'!$C$14:$O$14,0)))*IF($E40="$millions",1000000,IF($E40="$000",1000,1))/IF($E41="$millions",1000000,IF($E41="$000",1000,1)) -> 0 | S41: =S40*IF($F40="nominal",LOOKUP($F41,Nominal_to_Real,'Input|Rate of change'!T$25:T$30),INDEX('Input|Rate of change'!$C$14:$O$21,MATCH('Calc|Opex forecast'!$F40,'Input|Rate of change'!$C$14:$C$21,0),MATCH('Calc|Opex forecast'!$F41,'Input|Rate of change'!$C$14:$O$14,0)))*IF($E40="$millions",1000000,IF($E40="$000",1000,1))/IF($E41="$millions",1000000,IF($E41="$000",1000,1)) -> 0
C43: ='Input|Reported opex'!$C$68 -> Adjustment 3 | D43: Inputs|Reported opex | E43: ='Input|Reported opex'!$E$68 -> $millions | F43: ='Input|Reported opex'!$F$68 -> 2018-06-01 | J43: =IF(YEAR(J$4)=PPLastYear,'Input|Reported opex'!J68,0) -> 0 | K43: =IF(YEAR(K$4)=PPLastYear,'Input|Reported opex'!K68,0) -> 0 | L43: =IF(YEAR(L$4)=PPLastYear,'Input|Reported opex'!L68,0) -> 0 | M43: =IF(YEAR(M$4)=PPLastYear,'Input|Reported opex'!M68,0) -> 0 | N43: =IF(YEAR(N$4)=PPLastYear,'Input|Reported opex'!N68,0) -> 0 | O43: =IF(YEAR(O$4)=PPLastYear,'Input|Reported opex'!O68,0) -> 0 | P43: =IF(YEAR(P$4)=PPLastYear,'Input|Reported opex'!P68,0) -> 0 | Q43: =IF(YEAR(Q$4)=PPLastYear,'Input|Reported opex'!Q68,0) -> 0 | R43: =IF(YEAR(R$4)=PPLastYear,'Input|Reported opex'!R68,0) -> 0 | S43: =IF(YEAR(S$4)=PPLastYear,'Input|Reported opex'!S68,0) -> 0
C44: =C43 -> Adjustment 3 | D44: Calculated | E44: =$E$8 -> $millions | F44: =$F$8 -> 2023-06-01 | J44: =J43*IF($F43="nominal",LOOKUP($F44,Nominal_to_Real,'Input|Rate of change'!K$25:K$30),INDEX('Input|Rate of change'!$C$14:$O$21,MATCH('Calc|Opex forecast'!$F43,'Input|Rate of change'!$C$14:$C$21,0),MATCH('Calc|Opex forecast'!$F44,'Input|Rate of change'!$C$14:$O$14,0)))*IF($E43="$millions",1000000,IF($E43="$000",1000,1))/IF($E44="$millions",1000000,IF($E44="$000",1000,1)) -> 0 | K44: =K43*IF($F43="nominal",LOOKUP($F44,Nominal_to_Real,'Input|Rate of change'!L$25:L$30),INDEX('Input|Rate of change'!$C$14:$O$21,MATCH('Calc|Opex forecast'!$F43,'Input|Rate of change'!$C$14:$C$21,0),MATCH('Calc|Opex forecast'!$F44,'Input|Rate of change'!$C$14:$O$14,0)))*IF($E43="$millions",1000000,IF($E43="$000",1000,1))/IF($E44="$millions",1000000,IF($E44="$000",1000,1)) -> 0 | L44: =L43*IF($F43="nominal",LOOKUP($F44,Nominal_to_Real,'Input|Rate of change'!M$25:M$30),INDEX('Input|Rate of change'!$C$14:$O$21,MATCH('Calc|Opex forecast'!$F43,'Input|Rate of change'!$C$14:$C$21,0),MATCH('Calc|Opex forecast'!$F44,'Input|Rate of change'!$C$14:$O$14,0)))*IF($E43="$millions",1000000,IF($E43="$000",1000,1))/IF($E44="$millions",1000000,IF($E44="$000",1000,1)) -> 0 | M44: =M43*IF($F43="nominal",LOOKUP($F44,Nominal_to_Real,'Input|Rate of change'!N$25:N$30),INDEX('Input|Rate of change'!$C$14:$O$21,MATCH('Calc|Opex forecast'!$F43,'Input|Rate of change'!$C$14:$C$21,0),MATCH('Calc|Opex forecast'!$F44,'Input|Rate of change'!$C$14:$O$14,0)))*IF($E43="$millions",1000000,IF($E43="$000",1000,1))/IF($E44="$millions",1000000,IF($E44="$000",1000,1)) -> 0 | N44: =N43*IF($F43="nominal",LOOKUP($F44,Nominal_to_Real,'Input|Rate of change'!O$25:O$30),INDEX('Input|Rate of change'!$C$14:$O$21,MATCH('Calc|Opex forecast'!$F43,'Input|Rate of change'!$C$14:$C$21,0),MATCH('Calc|Opex forecast'!$F44,'Input|Rate of change'!$C$14:$O$14,0)))*IF($E43="$millions",1000000,IF($E43="$000",1000,1))/IF($E44="$millions",1000000,IF($E44="$000",1000,1)) -> 0 | O44: =O43*IF($F43="nominal",LOOKUP($F44,Nominal_to_Real,'Input|Rate of change'!P$25:P$30),INDEX('Input|Rate of change'!$C$14:$O$21,MATCH('Calc|Opex forecast'!$F43,'Input|Rate of change'!$C$14:$C$21,0),MATCH('Calc|Opex forecast'!$F44,'Input|Rate of change'!$C$14:$O$14,0)))*IF($E43="$millions",1000000,IF($E43="$000",1000,1))/IF($E44="$millions",1000000,IF($E44="$000",1000,1)) -> 0 | P44: =P43*IF($F43="nominal",LOOKUP($F44,Nominal_to_Real,'Input|Rate of change'!Q$25:Q$30),INDEX('Input|Rate of change'!$C$14:$O$21,MATCH('Calc|Opex forecast'!$F43,'Input|Rate of change'!$C$14:$C$21,0),MATCH('Calc|Opex forecast'!$F44,'Input|Rate of change'!$C$14:$O$14,0)))*IF($E43="$millions",1000000,IF($E43="$000",1000,1))/IF($E44="$millions",1000000,IF($E44="$000",1000,1)) -> 0 | Q44: =Q43*IF($F43="nominal",LOOKUP($F44,Nominal_to_Real,'Input|Rate of change'!R$25:R$30),INDEX('Input|Rate of change'!$C$14:$O$21,MATCH('Calc|Opex forecast'!$F43,'Input|Rate of change'!$C$14:$C$21,0),MATCH('Calc|Opex forecast'!$F44,'Input|Rate of change'!$C$14:$O$14,0)))*IF($E43="$millions",1000000,IF($E43="$000",1000,1))/IF($E44="$millions",1000000,IF($E44="$000",1000,1)) -> 0 | R44: =R43*IF($F43="nominal",LOOKUP($F44,Nominal_to_Real,'Input|Rate of change'!S$25:S$30),INDEX('Input|Rate of change'!$C$14:$O$21,MATCH('Calc|Opex forecast'!$F43,'Input|Rate of change'!$C$14:$C$21,0),MATCH('Calc|Opex forecast'!$F44,'Input|Rate of change'!$C$14:$O$14,0)))*IF($E43="$millions",1000000,IF($E43="$000",1000,1))/IF($E44="$millions",1000000,IF($E44="$000",1000,1)) -> 0 | S44: =S43*IF($F43="nominal",LOOKUP($F44,Nominal_to_Real,'Input|Rate of change'!T$25:T$30),INDEX('Input|Rate of change'!$C$14:$O$21,MATCH('Calc|Opex forecast'!$F43,'Input|Rate of change'!$C$14:$C$21,0),MATCH('Calc|Opex forecast'!$F44,'Input|Rate of change'!$C$14:$O$14,0)))*IF($E43="$millions",1000000,IF($E43="$000",1000,1))/IF($E44="$millions",1000000,IF($E44="$000",1000,1)) -> 0
C46: ='Input|Reported opex'!$C$69 -> Adjustment 4 | D46: Inputs|Reported opex | E46: ='Input|Reported opex'!$E$69 -> $millions | F46: ='Input|Reported opex'!$F$69 -> 2018-06-01 | J46: =IF(YEAR(J$4)=PPLastYear,'Input|Reported opex'!J69,0) -> 0 | K46: =IF(YEAR(K$4)=PPLastYear,'Input|Reported opex'!K69,0) -> 0 | L46: =IF(YEAR(L$4)=PPLastYear,'Input|Reported opex'!L69,0) -> 0 | M46: =IF(YEAR(M$4)=PPLastYear,'Input|Reported opex'!M69,0) -> 0 | N46: =IF(YEAR(N$4)=PPLastYear,'Input|Reported opex'!N69,0) -> 0 | O46: =IF(YEAR(O$4)=PPLastYear,'Input|Reported opex'!O69,0) -> 0 | P46: =IF(YEAR(P$4)=PPLastYear,'Input|Reported opex'!P69,0) -> 0 | Q46: =IF(YEAR(Q$4)=PPLastYear,'Input|Reported opex'!Q69,0) -> 0 | R46: =IF(YEAR(R$4)=PPLastYear,'Input|Reported opex'!R69,0) -> 0 | S46: =IF(YEAR(S$4)=PPLastYear,'Input|Reported opex'!S69,0) -> 0
C47: =C46 -> Adjustment 4 | D47: Calculated | E47: =$E$8 -> $millions | F47: =$F$8 -> 2023-06-01 | J47: =J46*IF($F46="nominal",LOOKUP($F47,Nominal_to_Real,'Input|Rate of change'!K$25:K$30),INDEX('Input|Rate of change'!$C$14:$O$21,MATCH('Calc|Opex forecast'!$F46,'Input|Rate of change'!$C$14:$C$21,0),MATCH('Calc|Opex forecast'!$F47,'Input|Rate of change'!$C$14:$O$14,0)))*IF($E46="$millions",1000000,IF($E46="$000",1000,1))/IF($E47="$millions",1000000,IF($E47="$000",1000,1)) -> 0 | K47: =K46*IF($F46="nominal",LOOKUP($F47,Nominal_to_Real,'Input|Rate of change'!L$25:L$30),INDEX('Input|Rate of change'!$C$14:$O$21,MATCH('Calc|Opex forecast'!$F46,'Input|Rate of change'!$C$14:$C$21,0),MATCH('Calc|Opex forecast'!$F47,'Input|Rate of change'!$C$14:$O$14,0)))*IF($E46="$millions",1000000,IF($E46="$000",1000,1))/IF($E47="$millions",1000000,IF($E47="$000",1000,1)) -> 0 | L47: =L46*IF($F46="nominal",LOOKUP($F47,Nominal_to_Real,'Input|Rate of change'!M$25:M$30),INDEX('Input|Rate of change'!$C$14:$O$21,MATCH('Calc|Opex forecast'!$F46,'Input|Rate of change'!$C$14:$C$21,0),MATCH('Calc|Opex forecast'!$F47,'Input|Rate of change'!$C$14:$O$14,0)))*IF($E46="$millions",1000000,IF($E46="$000",1000,1))/IF($E47="$millions",1000000,IF($E47="$000",1000,1)) -> 0 | M47: =M46*IF($F46="nominal",LOOKUP($F47,Nominal_to_Real,'Input|Rate of change'!N$25:N$30),INDEX('Input|Rate of change'!$C$14:$O$21,MATCH('Calc|Opex forecast'!$F46,'Input|Rate of change'!$C$14:$C$21,0),MATCH('Calc|Opex forecast'!$F47,'Input|Rate of change'!$C$14:$O$14,0)))*IF($E46="$millions",1000000,IF($E46="$000",1000,1))/IF($E47="$millions",1000000,IF($E47="$000",1000,1)) -> 0 | N47: =N46*IF($F46="nominal",LOOKUP($F47,Nominal_to_Real,'Input|Rate of change'!O$25:O$30),INDEX('Input|Rate of change'!$C$14:$O$21,MATCH('Calc|Opex forecast'!$F46,'Input|Rate of change'!$C$14:$C$21,0),MATCH('Calc|Opex forecast'!$F47,'Input|Rate of change'!$C$14:$O$14,0)))*IF($E46="$millions",1000000,IF($E46="$000",1000,1))/IF($E47="$millions",1000000,IF($E47="$000",1000,1)) -> 0 | O47: =O46*IF($F46="nominal",LOOKUP($F47,Nominal_to_Real,'Input|Rate of change'!P$25:P$30),INDEX('Input|Rate of change'!$C$14:$O$21,MATCH('Calc|Opex forecast'!$F46,'Input|Rate of change'!$C$14:$C$21,0),MATCH('Calc|Opex forecast'!$F47,'Input|Rate of change'!$C$14:$O$14,0)))*IF($E46="$millions",1000000,IF($E46="$000",1000,1))/IF($E47="$millions",1000000,IF($E47="$000",1000,1)) -> 0 | P47: =P46*IF($F46="nominal",LOOKUP($F47,Nominal_to_Real,'Input|Rate of change'!Q$25:Q$30),INDEX('Input|Rate of change'!$C$14:$O$21,MATCH('Calc|Opex forecast'!$F46,'Input|Rate of change'!$C$14:$C$21,0),MATCH('Calc|Opex forecast'!$F47,'Input|Rate of change'!$C$14:$O$14,0)))*IF($E46="$millions",1000000,IF($E46="$000",1000,1))/IF($E47="$millions",1000000,IF($E47="$000",1000,1)) -> 0 | Q47: =Q46*IF($F46="nominal",LOOKUP($F47,Nominal_to_Real,'Input|Rate of change'!R$25:R$30),INDEX('Input|Rate of change'!$C$14:$O$21,MATCH('Calc|Opex forecast'!$F46,'Input|Rate of change'!$C$14:$C$21,0),MATCH('Calc|Opex forecast'!$F47,'Input|Rate of change'!$C$14:$O$14,0)))*IF($E46="$millions",1000000,IF($E46="$000",1000,1))/IF($E47="$millions",1000000,IF($E47="$000",1000,1)) -> 0 | R47: =R46*IF($F46="nominal",LOOKUP($F47,Nominal_to_Real,'Input|Rate of change'!S$25:S$30),INDEX('Input|Rate of change'!$C$14:$O$21,MATCH('Calc|Opex forecast'!$F46,'Input|Rate of change'!$C$14:$C$21,0),MATCH('Calc|Opex forecast'!$F47,'Input|Rate of change'!$C$14:$O$14,0)))*IF($E46="$millions",1000000,IF($E46="$000",1000,1))/IF($E47="$millions",1000000,IF($E47="$000",1000,1)) -> 0 | S47: =S46*IF($F46="nominal",LOOKUP($F47,Nominal_to_Real,'Input|Rate of change'!T$25:T$30),INDEX('Input|Rate of change'!$C$14:$O$21,MATCH('Calc|Opex forecast'!$F46,'Input|Rate of change'!$C$14:$C$21,0),MATCH('Calc|Opex forecast'!$F47,'Input|Rate of change'!$C$14:$O$14,0)))*IF($E46="$millions",1000000,IF($E46="$000",1000,1))/IF($E47="$millions",1000000,IF($E47="$000",1000,1)) -> 0
C49: ='Input|Reported opex'!$C$70 -> Adjustment 5 | D49: Inputs|Reported opex | E49: ='Input|Reported opex'!$E$70 -> $millions | F49: ='Input|Reported opex'!$F$70 -> 2018-06-01 | J49: =IF(YEAR(J$4)=PPLastYear,'Input|Reported opex'!J70,0) -> 0 | K49: =IF(YEAR(K$4)=PPLastYear,'Input|Reported opex'!K70,0) -> 0 | L49: =IF(YEAR(L$4)=PPLastYear,'Input|Reported opex'!L70,0) -> 0 | M49: =IF(YEAR(M$4)=PPLastYear,'Input|Reported opex'!M70,0) -> 0 | N49: =IF(YEAR(N$4)=PPLastYear,'Input|Reported opex'!N70,0) -> 0 | O49: =IF(YEAR(O$4)=PPLastYear,'Input|Reported opex'!O70,0) -> 0 | P49: =IF(YEAR(P$4)=PPLastYear,'Input|Reported opex'!P70,0) -> 0 | Q49: =IF(YEAR(Q$4)=PPLastYear,'Input|Reported opex'!Q70,0) -> 0 | R49: =IF(YEAR(R$4)=PPLastYear,'Input|Reported opex'!R70,0) -> 0 | S49: =IF(YEAR(S$4)=PPLastYear,'Input|Reported opex'!S70,0) -> 0
C50: =C49 -> Adjustment 5 | D50: Calculated | E50: =$E$8 -> $millions | F50: =$F$8 -> 2023-06-01 | J50: =J49*IF($F49="nominal",LOOKUP($F50,Nominal_to_Real,'Input|Rate of change'!K$25:K$30),INDEX('Input|Rate of change'!$C$14:$O$21,MATCH('Calc|Opex forecast'!$F49,'Input|Rate of change'!$C$14:$C$21,0),MATCH('Calc|Opex forecast'!$F50,'Input|Rate of change'!$C$14:$O$14,0)))*IF($E49="$millions",1000000,IF($E49="$000",1000,1))/IF($E50="$millions",1000000,IF($E50="$000",1000,1)) -> 0 | K50: =K49*IF($F49="nominal",LOOKUP($F50,Nominal_to_Real,'Input|Rate of change'!L$25:L$30),INDEX('Input|Rate of change'!$C$14:$O$21,MATCH('Calc|Opex forecast'!$F49,'Input|Rate of change'!$C$14:$C$21,0),MATCH('Calc|Opex forecast'!$F50,'Input|Rate of change'!$C$14:$O$14,0)))*IF($E49="$millions",1000000,IF($E49="$000",1000,1))/IF($E50="$millions",1000000,IF($E50="$000",1000,1)) -> 0 | L50: =L49*IF($F49="nominal",LOOKUP($F50,Nominal_to_Real,'Input|Rate of change'!M$25:M$30),INDEX('Input|Rate of change'!$C$14:$O$21,MATCH('Calc|Opex forecast'!$F49,'Input|Rate of change'!$C$14:$C$21,0),MATCH('Calc|Opex forecast'!$F50,'Input|Rate of change'!$C$14:$O$14,0)))*IF($E49="$millions",1000000,IF($E49="$000",1000,1))/IF($E50="$millions",1000000,IF($E50="$000",1000,1)) -> 0 | M50: =M49*IF($F49="nominal",LOOKUP($F50,Nominal_to_Real,'Input|Rate of change'!N$25:N$30),INDEX('Input|Rate of change'!$C$14:$O$21,MATCH('Calc|Opex forecast'!$F49,'Input|Rate of change'!$C$14:$C$21,0),MATCH('Calc|Opex forecast'!$F50,'Input|Rate of change'!$C$14:$O$14,0)))*IF($E49="$millions",1000000,IF($E49="$000",1000,1))/IF($E50="$millions",1000000,IF($E50="$000",1000,1)) -> 0 | N50: =N49*IF($F49="nominal",LOOKUP($F50,Nominal_to_Real,'Input|Rate of change'!O$25:O$30),INDEX('Input|Rate of change'!$C$14:$O$21,MATCH('Calc|Opex forecast'!$F49,'Input|Rate of change'!$C$14:$C$21,0),MATCH('Calc|Opex forecast'!$F50,'Input|Rate of change'!$C$14:$O$14,0)))*IF($E49="$millions",1000000,IF($E49="$000",1000,1))/IF($E50="$millions",1000000,IF($E50="$000",1000,1)) -> 0 | O50: =O49*IF($F49="nominal",LOOKUP($F50,Nominal_to_Real,'Input|Rate of change'!P$25:P$30),INDEX('Input|Rate of change'!$C$14:$O$21,MATCH('Calc|Opex forecast'!$F49,'Input|Rate of change'!$C$14:$C$21,0),MATCH('Calc|Opex forecast'!$F50,'Input|Rate of change'!$C$14:$O$14,0)))*IF($E49="$millions",1000000,IF($E49="$000",1000,1))/IF($E50="$millions",1000000,IF($E50="$000",1000,1)) -> 0 | P50: =P49*IF($F49="nominal",LOOKUP($F50,Nominal_to_Real,'Input|Rate of change'!Q$25:Q$30),INDEX('Input|Rate of change'!$C$14:$O$21,MATCH('Calc|Opex forecast'!$F49,'Input|Rate of change'!$C$14:$C$21,0),MATCH('Calc|Opex forecast'!$F50,'Input|Rate of change'!$C$14:$O$14,0)))*IF($E49="$millions",1000000,IF($E49="$000",1000,1))/IF($E50="$millions",1000000,IF($E50="$000",1000,1)) -> 0 | Q50: =Q49*IF($F49="nominal",LOOKUP($F50,Nominal_to_Real,'Input|Rate of change'!R$25:R$30),INDEX('Input|Rate of change'!$C$14:$O$21,MATCH('Calc|Opex forecast'!$F49,'Input|Rate of change'!$C$14:$C$21,0),MATCH('Calc|Opex forecast'!$F50,'Input|Rate of change'!$C$14:$O$14,0)))*IF($E49="$millions",1000000,IF($E49="$000",1000,1))/IF($E50="$millions",1000000,IF($E50="$000",1000,1)) -> 0 | R50: =R49*IF($F49="nominal",LOOKUP($F50,Nominal_to_Real,'Input|Rate of change'!S$25:S$30),INDEX('Input|Rate of change'!$C$14:$O$21,MATCH('Calc|Opex forecast'!$F49,'Input|Rate of change'!$C$14:$C$21,0),MATCH('Calc|Opex forecast'!$F50,'Input|Rate of change'!$C$14:$O$14,0)))*IF($E49="$millions",1000000,IF($E49="$000",1000,1))/IF($E50="$millions",1000000,IF($E50="$000",1000,1)) -> 0 | S50: =S49*IF($F49="nominal",LOOKUP($F50,Nominal_to_Real,'Input|Rate of change'!T$25:T$30),INDEX('Input|Rate of change'!$C$14:$O$21,MATCH('Calc|Opex forecast'!$F49,'Input|Rate of change'!$C$14:$C$21,0),MATCH('Calc|Opex forecast'!$F50,'Input|Rate of change'!$C$14:$O$14,0)))*IF($E49="$millions",1000000,IF($E49="$000",1000,1))/IF($E50="$millions",1000000,IF($E50="$000",1000,1)) -> 0
C52: Efficiency adjustment | D52: calculated | E52: =$E$8 -> $millions | F52: =$F$8 -> 2023-06-01 | J52: =SUM(J33,J38,J41,J44,J47,J50)*'Input|Reported opex'!J74 -> 0 | K52: =SUM(K33,K38,K41,K44,K47,K50)*'Input|Reported opex'!K74 -> 0 | L52: =SUM(L33,L38,L41,L44,L47,L50)*'Input|Reported opex'!L74 -> 0 | M52: =SUM(M33,M38,M41,M44,M47,M50)*'Input|Reported opex'!M74 -> 0 | N52: =SUM(N33,N38,N41,N44,N47,N50)*'Input|Reported opex'!N74 -> 0 | O52: =SUM(O33,O38,O41,O44,O47,O50)*'Input|Reported opex'!O74 -> 0 | P52: =SUM(P33,P38,P41,P44,P47,P50)*'Input|Reported opex'!P74 -> 0 | Q52: =SUM(Q33,Q38,Q41,Q44,Q47,Q50)*'Input|Reported opex'!Q74 -> 0 | R52: =SUM(R33,R38,R41,R44,R47,R50)*'Input|Reported opex'!R74 -> 0 | S52: =SUM(S33,S38,S41,S44,S47,S50)*'Input|Reported opex'!S74 -> 0
C54: Adjusted final year opex | D54: calculated | E54: =$E$8 -> $millions | F54: =$F$8 -> 2023-06-01 | J54: =SUM(J33,J35,J38,J41,J44,J47,J50,J52) -> 0 | K54: =SUM(K33,K35,K38,K41,K44,K47,K50,K52) -> 0 | L54: 0 | M54: 0 | N54: 95.1940886 | O54: 0 | P54: 0 | Q54: 0 | R54: 0 | S54: 0
N55: =N54/(1+0.0245)^0.5 -> 94.04896031
B56: Calc | Rate of change
C58: Rate of change | D58: Source | E58: Unit | F58: Basis | J58: =IF(YEAR(J$4)>='Input|General'!$G$13,IF(YEAR(J$4)<='Input|General'!$G$14,J$4,""),"") ->  | K58: =IF(YEAR(K$4)>='Input|General'!$G$13,IF(YEAR(K$4)<='Input|General'!$G$14,K$4,""),"") ->  | L58: =IF(YEAR(L$4)>='Input|General'!$G$13,IF(YEAR(L$4)<='Input|General'!$G$14,L$4,""),"") ->  | M58: =IF(YEAR(M$4)>='Input|General'!$G$13,IF(YEAR(M$4)<='Input|General'!$G$14,M$4,""),"") ->  | N58: =IF(YEAR(N$4)>='Input|General'!$G$13,IF(YEAR(N$4)<='Input|General'!$G$14,N$4,""),"") ->  | O58: =IF(YEAR(O$4)>='Input|General'!$G$13,IF(YEAR(O$4)<='Input|General'!$G$14,O$4,""),"") -> 2024-06-01 | P58: =IF(YEAR(P$4)>='Input|General'!$G$13,IF(YEAR(P$4)<='Input|General'!$G$14,P$4,""),"") -> 2025-06-01 | Q58: =IF(YEAR(Q$4)>='Input|General'!$G$13,IF(YEAR(Q$4)<='Input|General'!$G$14,Q$4,""),"") -> 2026-06-01 | R58: =IF(YEAR(R$4)>='Input|General'!$G$13,IF(YEAR(R$4)<='Input|General'!$G$14,R$4,""),"") -> 2027-06-01 | S58: =IF(YEAR(S$4)>='Input|General'!$G$13,IF(YEAR(S$4)<='Input|General'!$G$14,S$4,""),"") -> 2028-06-01
C61: Forecast output change | D61: Calculated | E61: Per cent | F61: n/a | J61: =SUMPRODUCT('Input|Rate of change'!K75:K80,'Input|Rate of change'!$O$84:$O$89) -> 0 | K61: =SUMPRODUCT('Input|Rate of change'!L75:L80,'Input|Rate of change'!$O$84:$O$89) -> 0 | L61: =SUMPRODUCT('Input|Rate of change'!M75:M80,'Input|Rate of change'!$O$84:$O$89) -> 0 | M61: =SUMPRODUCT('Input|Rate of change'!N75:N80,'Input|Rate of change'!$O$84:$O$89) -> 0 | N61: =SUMPRODUCT('Input|Rate of change'!O75:O80,'Input|Rate of change'!$O$84:$O$89) -> 0 | O61: =SUMPRODUCT('Input|Rate of change'!P75:P80,'Input|Rate of change'!$O$84:$O$89) -> 0.0256945943 | P61: =SUMPRODUCT('Input|Rate of change'!Q75:Q80,'Input|Rate of change'!$O$84:$O$89) -> 0.03236787088 | Q61: =SUMPRODUCT('Input|Rate of change'!R75:R80,'Input|Rate of change'!$O$84:$O$89) -> 0.0002992089865 | R61: =SUMPRODUCT('Input|Rate of change'!S75:S80,'Input|Rate of change'!$O$84:$O$89) -> 0.0004573315536 | S61: =SUMPRODUCT('Input|Rate of change'!T75:T80,'Input|Rate of change'!$O$84:$O$89) -> 0.0005546797039
C63: Forecast price change | D63: Calculated | E63: Per cent | F63: n/a | J63: =SUMPRODUCT('Input|Rate of change'!K36:K43,'Input|Rate of change'!K49:K56) -> 0 | K63: =SUMPRODUCT('Input|Rate of change'!L36:L43,'Input|Rate of change'!L49:L56) -> 0 | L63: =SUMPRODUCT('Input|Rate of change'!M36:M43,'Input|Rate of change'!M49:M56) -> 0 | M63: =SUMPRODUCT('Input|Rate of change'!N36:N43,'Input|Rate of change'!N49:N56) -> 0 | N63: =SUMPRODUCT('Input|Rate of change'!O36:O43,'Input|Rate of change'!O49:O56) -> 0 | O63: =SUMPRODUCT('Input|Rate of change'!P36:P43,'Input|Rate of change'!P49:P56) -> 0.003168 | P63: =SUMPRODUCT('Input|Rate of change'!Q36:Q43,'Input|Rate of change'!Q49:Q56) -> 0.004224 | Q63: =SUMPRODUCT('Input|Rate of change'!R36:R43,'Input|Rate of change'!R49:R56) -> 0.004576 | R63: =SUMPRODUCT('Input|Rate of change'!S36:S43,'Input|Rate of change'!S49:S56) -> 0.002816 | S63: =SUMPRODUCT('Input|Rate of change'!T36:T43,'Input|Rate of change'!T49:T56) -> 0.002112
C65: Forecast productivity change | D65: Calculated | E65: Per cent | F65: n/a | J65: ='Input|Rate of change'!K97 -> 0 | K65: ='Input|Rate of change'!L97 -> 0 | L65: ='Input|Rate of change'!M97 -> 0 | M65: ='Input|Rate of change'!N97 -> 0 | N65: ='Input|Rate of change'!O97 -> 0 | O65: ='Input|Rate of change'!P97 -> 0.003 | P65: ='Input|Rate of change'!Q97 -> 0.003 | Q65: ='Input|Rate of change'!R97 -> 0.003 | R65: ='Input|Rate of change'!S97 -> 0.003 | S65: ='Input|Rate of change'!T97 -> 0.003
C67: Forecast rate of change, year-on-year | D67: Calculated | E67: Per cent | F67: n/a | J67: =(1+J61)*(1+J63)*(1-J65)-1 -> 0 | K67: =(1+K61)*(1+K63)*(1-K65)-1 -> 0 | L67: 0 | M67: 0 | N67: 0 | O67: 0.02585716279 | P67: 0.03361840699 | Q67: 0.001861948432 | R67: 0.0002647955411 | S67: -0.0003401523661
C68: Forecast rate of change, cumulative | D68: Calculated | E68: Per cent | F68: n/a | J68: =IF(J$58=J$4,PRODUCT(1+$J67:J67)-1,"") ->  | K68: =IF(K$58=K$4,PRODUCT(1+$J67:K67)-1,"") ->  | L68: =IF(L$58=L$4,PRODUCT(1+$J67:L67)-1,"") ->  | M68: =IF(M$58=M$4,PRODUCT(1+$J67:M67)-1,"") ->  | N68: =IF(N$58=N$4,PRODUCT(1+$J67:N67)-1,"") ->  | O68: =IF(O$58=O$4,PRODUCT(1+$J67:O67)-1,"") -> 0.02585716279 | P68: =IF(P$58=P$4,PRODUCT(1+$J67:P67)-1,"") -> 0.0603448464 | Q68: =IF(Q$58=Q$4,PRODUCT(1+$J67:Q67)-1,"") -> 0.06231915382 | R68: =IF(R$58=R$4,PRODUCT(1+$J67:R67)-1,"") -> 0.0626004512 | S68: =IF(S$58=S$4,PRODUCT(1+$J67:S67)-1,"") -> 0.06223900514
B70: Calc | Step changes
C72: Step changes | D72: Source | E72: Unit | F72: Basis | J72: =IF(YEAR(J$4)>='Input|General'!$G$13,IF(YEAR(J$4)<='Input|General'!$G$14,J$4,""),"") ->  | K72: =IF(YEAR(K$4)>='Input|General'!$G$13,IF(YEAR(K$4)<='Input|General'!$G$14,K$4,""),"") ->  | L72: =IF(YEAR(L$4)>='Input|General'!$G$13,IF(YEAR(L$4)<='Input|General'!$G$14,L$4,""),"") ->  | M72: =IF(YEAR(M$4)>='Input|General'!$G$13,IF(YEAR(M$4)<='Input|General'!$G$14,M$4,""),"") ->  | N72: =IF(YEAR(N$4)>='Input|General'!$G$13,IF(YEAR(N$4)<='Input|General'!$G$14,N$4,""),"") ->  | O72: =IF(YEAR(O$4)>='Input|General'!$G$13,IF(YEAR(O$4)<='Input|General'!$G$14,O$4,""),"") -> 2024-06-01 | P72: =IF(YEAR(P$4)>='Input|General'!$G$13,IF(YEAR(P$4)<='Input|General'!$G$14,P$4,""),"") -> 2025-06-01 | Q72: =IF(YEAR(Q$4)>='Input|General'!$G$13,IF(YEAR(Q$4)<='Input|General'!$G$14,Q$4,""),"") -> 2026-06-01 | R72: =IF(YEAR(R$4)>='Input|General'!$G$13,IF(YEAR(R$4)<='Input|General'!$G$14,R$4,""),"") -> 2027-06-01 | S72: =IF(YEAR(S$4)>='Input|General'!$G$13,IF(YEAR(S$4)<='Input|General'!$G$14,S$4,""),"") -> 2028-06-01
C74: ='Input|Step changes'!C12 -> Cyber | D74: Calculated | E74: =$E$8 -> $millions | F74: =$F$8 -> 2023-06-01 | J74: ='Input|Step changes'!J12*IF('Input|Step changes'!$F12="nominal",LOOKUP($F74,Nominal_to_Real,'Input|Rate of change'!N$25:N$30),INDEX('Input|Rate of change'!$C$14:$O$21,MATCH('Input|Step changes'!$F12,'Input|Rate of change'!$C$14:$C$21,0),MATCH('Calc|Opex forecast'!$F74,'Input|Rate of change'!$C$14:$O$14,0)))*IF('Input|Step changes'!$E12="$millions",1000000,IF('Input|Step changes'!$E12="$000",1000,1))/IF($E74="$millions",1000000,IF($E74="$000",1000,1)) -> 0 | K74: ='Input|Step changes'!K12*IF('Input|Step changes'!$F12="nominal",LOOKUP($F74,Nominal_to_Real,'Input|Rate of change'!O$25:O$30),INDEX('Input|Rate of change'!$C$14:$O$21,MATCH('Input|Step changes'!$F12,'Input|Rate of change'!$C$14:$C$21,0),MATCH('Calc|Opex forecast'!$F74,'Input|Rate of change'!$C$14:$O$14,0)))*IF('Input|Step changes'!$E12="$millions",1000000,IF('Input|Step changes'!$E12="$000",1000,1))/IF($E74="$millions",1000000,IF($E74="$000",1000,1)) -> 0 | L74: ='Input|Step changes'!L12*IF('Input|Step changes'!$F12="nominal",LOOKUP($F74,Nominal_to_Real,'Input|Rate of change'!P$25:P$30),INDEX('Input|Rate of change'!$C$14:$O$21,MATCH('Input|Step changes'!$F12,'Input|Rate of change'!$C$14:$C$21,0),MATCH('Calc|Opex forecast'!$F74,'Input|Rate of change'!$C$14:$O$14,0)))*IF('Input|Step changes'!$E12="$millions",1000000,IF('Input|Step changes'!$E12="$000",1000,1))/IF($E74="$millions",1000000,IF($E74="$000",1000,1)) -> 0 | M74: ='Input|Step changes'!M12*IF('Input|Step changes'!$F12="nominal",LOOKUP($F74,Nominal_to_Real,'Input|Rate of change'!Q$25:Q$30),INDEX('Input|Rate of change'!$C$14:$O$21,MATCH('Input|Step changes'!$F12,'Input|Rate of change'!$C$14:$C$21,0),MATCH('Calc|Opex forecast'!$F74,'Input|Rate of change'!$C$14:$O$14,0)))*IF('Input|Step changes'!$E12="$millions",1000000,IF('Input|Step changes'!$E12="$000",1000,1))/IF($E74="$millions",1000000,IF($E74="$000",1000,1)) -> 0 | N74: ='Input|Step changes'!N12*IF('Input|Step changes'!$F12="nominal",LOOKUP($F74,Nominal_to_Real,'Input|Rate of change'!R$25:R$30),INDEX('Input|Rate of change'!$C$14:$O$21,MATCH('Input|Step changes'!$F12,'Input|Rate of change'!$C$14:$C$21,0),MATCH('Calc|Opex forecast'!$F74,'Input|Rate of change'!$C$14:$O$14,0)))*IF('Input|Step changes'!$E12="$millions",1000000,IF('Input|Step changes'!$E12="$000",1000,1))/IF($E74="$millions",1000000,IF($E74="$000",1000,1)) -> 0 | O74: ='Input|Step changes'!O12*IF('Input|Step changes'!$F12="nominal",LOOKUP($F74,Nominal_to_Real,'Input|Rate of change'!S$25:S$30),INDEX('Input|Rate of change'!$C$14:$O$21,MATCH('Input|Step changes'!$F12,'Input|Rate of change'!$C$14:$C$21,0),MATCH('Calc|Opex forecast'!$F74,'Input|Rate of change'!$C$14:$O$14,0)))*IF('Input|Step changes'!$E12="$millions",1000000,IF('Input|Step changes'!$E12="$000",1000,1))/IF($E74="$millions",1000000,IF($E74="$000",1000,1)) -> 5.183149383 | P74: ='Input|Step changes'!P12*IF('Input|Step changes'!$F12="nominal",LOOKUP($F74,Nominal_to_Real,'Input|Rate of change'!T$25:T$30),INDEX('Input|Rate of change'!$C$14:$O$21,MATCH('Input|Step changes'!$F12,'Input|Rate of change'!$C$14:$C$21,0),MATCH('Calc|Opex forecast'!$F74,'Input|Rate of change'!$C$14:$O$14,0)))*IF('Input|Step changes'!$E12="$millions",1000000,IF('Input|Step changes'!$E12="$000",1000,1))/IF($E74="$millions",1000000,IF($E74="$000",1000,1)) -> 5.183149383 | Q74: ='Input|Step changes'!Q12*IF('Input|Step changes'!$F12="nominal",LOOKUP($F74,Nominal_to_Real,'Input|Rate of change'!U$25:U$30),INDEX('Input|Rate of change'!$C$14:$O$21,MATCH('Input|Step changes'!$F12,'Input|Rate of change'!$C$14:$C$21,0),MATCH('Calc|Opex forecast'!$F74,'Input|Rate of change'!$C$14:$O$14,0)))*IF('Input|Step changes'!$E12="$millions",1000000,IF('Input|Step changes'!$E12="$000",1000,1))/IF($E74="$millions",1000000,IF($E74="$000",1000,1)) -> 5.183149383 | R74: ='Input|Step changes'!R12*IF('Input|Step changes'!$F12="nominal",LOOKUP($F74,Nominal_to_Real,'Input|Rate of change'!V$25:V$30),INDEX('Input|Rate of change'!$C$14:$O$21,MATCH('Input|Step changes'!$F12,'Input|Rate of change'!$C$14:$C$21,0),MATCH('Calc|Opex forecast'!$F74,'Input|Rate of change'!$C$14:$O$14,0)))*IF('Input|Step changes'!$E12="$millions",1000000,IF('Input|Step changes'!$E12="$000",1000,1))/IF($E74="$millions",1000000,IF($E74="$000",1000,1)) -> 5.183149383 | S74: ='Input|Step changes'!S12*IF('Input|Step changes'!$F12="nominal",LOOKUP($F74,Nominal_to_Real,'Input|Rate of change'!W$25:W$30),INDEX('Input|Rate of change'!$C$14:$O$21,MATCH('Input|Step changes'!$F12,'Input|Rate of change'!$C$14:$C$21,0),MATCH('Calc|Opex forecast'!$F74,'Input|Rate of change'!$C$14:$O$14,0)))*IF('Input|Step changes'!$E12="$millions",1000000,IF('Input|Step changes'!$E12="$000",1000,1))/IF($E74="$millions",1000000,IF($E74="$000",1000,1)) -> 5.183149383
C75: ='Input|Step changes'!C13 -> Cloud | D75: Calculated | E75: $millions | F75: 2023-06-01 | J75: ='Input|Step changes'!J13*IF('Input|Step changes'!$F13="nominal",LOOKUP($F75,Nominal_to_Real,'Input|Rate of change'!N$25:N$30),INDEX('Input|Rate of change'!$C$14:$O$21,MATCH('Input|Step changes'!$F13,'Input|Rate of change'!$C$14:$C$21,0),MATCH('Calc|Opex forecast'!$F75,'Input|Rate of change'!$C$14:$O$14,0)))*IF('Input|Step changes'!$E13="$millions",1000000,IF('Input|Step changes'!$E13="$000",1000,1))/IF($E75="$millions",1000000,IF($E75="$000",1000,1)) -> 0 | K75: ='Input|Step changes'!K13*IF('Input|Step changes'!$F13="nominal",LOOKUP($F75,Nominal_to_Real,'Input|Rate of change'!O$25:O$30),INDEX('Input|Rate of change'!$C$14:$O$21,MATCH('Input|Step changes'!$F13,'Input|Rate of change'!$C$14:$C$21,0),MATCH('Calc|Opex forecast'!$F75,'Input|Rate of change'!$C$14:$O$14,0)))*IF('Input|Step changes'!$E13="$millions",1000000,IF('Input|Step changes'!$E13="$000",1000,1))/IF($E75="$millions",1000000,IF($E75="$000",1000,1)) -> 0 | L75: ='Input|Step changes'!L13*IF('Input|Step changes'!$F13="nominal",LOOKUP($F75,Nominal_to_Real,'Input|Rate of change'!P$25:P$30),INDEX('Input|Rate of change'!$C$14:$O$21,MATCH('Input|Step changes'!$F13,'Input|Rate of change'!$C$14:$C$21,0),MATCH('Calc|Opex forecast'!$F75,'Input|Rate of change'!$C$14:$O$14,0)))*IF('Input|Step changes'!$E13="$millions",1000000,IF('Input|Step changes'!$E13="$000",1000,1))/IF($E75="$millions",1000000,IF($E75="$000",1000,1)) -> 0 | M75: ='Input|Step changes'!M13*IF('Input|Step changes'!$F13="nominal",LOOKUP($F75,Nominal_to_Real,'Input|Rate of change'!Q$25:Q$30),INDEX('Input|Rate of change'!$C$14:$O$21,MATCH('Input|Step changes'!$F13,'Input|Rate of change'!$C$14:$C$21,0),MATCH('Calc|Opex forecast'!$F75,'Input|Rate of change'!$C$14:$O$14,0)))*IF('Input|Step changes'!$E13="$millions",1000000,IF('Input|Step changes'!$E13="$000",1000,1))/IF($E75="$millions",1000000,IF($E75="$000",1000,1)) -> 0 | N75: ='Input|Step changes'!N13*IF('Input|Step changes'!$F13="nominal",LOOKUP($F75,Nominal_to_Real,'Input|Rate of change'!R$25:R$30),INDEX('Input|Rate of change'!$C$14:$O$21,MATCH('Input|Step changes'!$F13,'Input|Rate of change'!$C$14:$C$21,0),MATCH('Calc|Opex forecast'!$F75,'Input|Rate of change'!$C$14:$O$14,0)))*IF('Input|Step changes'!$E13="$millions",1000000,IF('Input|Step changes'!$E13="$000",1000,1))/IF($E75="$millions",1000000,IF($E75="$000",1000,1)) -> 0 | O75: ='Input|Step changes'!O13*IF('Input|Step changes'!$F13="nominal",LOOKUP($F75,Nominal_to_Real,'Input|Rate of change'!S$25:S$30),INDEX('Input|Rate of change'!$C$14:$O$21,MATCH('Input|Step changes'!$F13,'Input|Rate of change'!$C$14:$C$21,0),MATCH('Calc|Opex forecast'!$F75,'Input|Rate of change'!$C$14:$O$14,0)))*IF('Input|Step changes'!$E13="$millions",1000000,IF('Input|Step changes'!$E13="$000",1000,1))/IF($E75="$millions",1000000,IF($E75="$000",1000,1)) -> 1.79693299 | P75: ='Input|Step changes'!P13*IF('Input|Step changes'!$F13="nominal",LOOKUP($F75,Nominal_to_Real,'Input|Rate of change'!T$25:T$30),INDEX('Input|Rate of change'!$C$14:$O$21,MATCH('Input|Step changes'!$F13,'Input|Rate of change'!$C$14:$C$21,0),MATCH('Calc|Opex forecast'!$F75,'Input|Rate of change'!$C$14:$O$14,0)))*IF('Input|Step changes'!$E13="$millions",1000000,IF('Input|Step changes'!$E13="$000",1000,1))/IF($E75="$millions",1000000,IF($E75="$000",1000,1)) -> 1.79693299 | Q75: ='Input|Step changes'!Q13*IF('Input|Step changes'!$F13="nominal",LOOKUP($F75,Nominal_to_Real,'Input|Rate of change'!U$25:U$30),INDEX('Input|Rate of change'!$C$14:$O$21,MATCH('Input|Step changes'!$F13,'Input|Rate of change'!$C$14:$C$21,0),MATCH('Calc|Opex forecast'!$F75,'Input|Rate of change'!$C$14:$O$14,0)))*IF('Input|Step changes'!$E13="$millions",1000000,IF('Input|Step changes'!$E13="$000",1000,1))/IF($E75="$millions",1000000,IF($E75="$000",1000,1)) -> 1.79693299 | R75: ='Input|Step changes'!R13*IF('Input|Step changes'!$F13="nominal",LOOKUP($F75,Nominal_to_Real,'Input|Rate of change'!V$25:V$30),INDEX('Input|Rate of change'!$C$14:$O$21,MATCH('Input|Step changes'!$F13,'Input|Rate of change'!$C$14:$C$21,0),MATCH('Calc|Opex forecast'!$F75,'Input|Rate of change'!$C$14:$O$14,0)))*IF('Input|Step changes'!$E13="$millions",1000000,IF('Input|Step changes'!$E13="$000",1000,1))/IF($E75="$millions",1000000,IF($E75="$000",1000,1)) -> 1.79693299 | S75: ='Input|Step changes'!S13*IF('Input|Step changes'!$F13="nominal",LOOKUP($F75,Nominal_to_Real,'Input|Rate of change'!W$25:W$30),INDEX('Input|Rate of change'!$C$14:$O$21,MATCH('Input|Step changes'!$F13,'Input|Rate of change'!$C$14:$C$21,0),MATCH('Calc|Opex forecast'!$F75,'Input|Rate of change'!$C$14:$O$14,0)))*IF('Input|Step changes'!$E13="$millions",1000000,IF('Input|Step changes'!$E13="$000",1000,1))/IF($E75="$millions",1000000,IF($E75="$000",1000,1)) -> 1.79693299
C76: ='Input|Step changes'!C14 -> Rule Change | D76: Calculated | E76: $millions | F76: 2023-06-01 | J76: ='Input|Step changes'!J14*IF('Input|Step changes'!$F14="nominal",LOOKUP($F76,Nominal_to_Real,'Input|Rate of change'!N$25:N$30),INDEX('Input|Rate of change'!$C$14:$O$21,MATCH('Input|Step changes'!$F14,'Input|Rate of change'!$C$14:$C$21,0),MATCH('Calc|Opex forecast'!$F76,'Input|Rate of change'!$C$14:$O$14,0)))*IF('Input|Step changes'!$E14="$millions",1000000,IF('Input|Step changes'!$E14="$000",1000,1))/IF($E76="$millions",1000000,IF($E76="$000",1000,1)) -> 0 | K76: ='Input|Step changes'!K14*IF('Input|Step changes'!$F14="nominal",LOOKUP($F76,Nominal_to_Real,'Input|Rate of change'!O$25:O$30),INDEX('Input|Rate of change'!$C$14:$O$21,MATCH('Input|Step changes'!$F14,'Input|Rate of change'!$C$14:$C$21,0),MATCH('Calc|Opex forecast'!$F76,'Input|Rate of change'!$C$14:$O$14,0)))*IF('Input|Step changes'!$E14="$millions",1000000,IF('Input|Step changes'!$E14="$000",1000,1))/IF($E76="$millions",1000000,IF($E76="$000",1000,1)) -> 0 | L76: ='Input|Step changes'!L14*IF('Input|Step changes'!$F14="nominal",LOOKUP($F76,Nominal_to_Real,'Input|Rate of change'!P$25:P$30),INDEX('Input|Rate of change'!$C$14:$O$21,MATCH('Input|Step changes'!$F14,'Input|Rate of change'!$C$14:$C$21,0),MATCH('Calc|Opex forecast'!$F76,'Input|Rate of change'!$C$14:$O$14,0)))*IF('Input|Step changes'!$E14="$millions",1000000,IF('Input|Step changes'!$E14="$000",1000,1))/IF($E76="$millions",1000000,IF($E76="$000",1000,1)) -> 0 | M76: ='Input|Step changes'!M14*IF('Input|Step changes'!$F14="nominal",LOOKUP($F76,Nominal_to_Real,'Input|Rate of change'!Q$25:Q$30),INDEX('Input|Rate of change'!$C$14:$O$21,MATCH('Input|Step changes'!$F14,'Input|Rate of change'!$C$14:$C$21,0),MATCH('Calc|Opex forecast'!$F76,'Input|Rate of change'!$C$14:$O$14,0)))*IF('Input|Step changes'!$E14="$millions",1000000,IF('Input|Step changes'!$E14="$000",1000,1))/IF($E76="$millions",1000000,IF($E76="$000",1000,1)) -> 0 | N76: ='Input|Step changes'!N14*IF('Input|Step changes'!$F14="nominal",LOOKUP($F76,Nominal_to_Real,'Input|Rate of change'!R$25:R$30),INDEX('Input|Rate of change'!$C$14:$O$21,MATCH('Input|Step changes'!$F14,'Input|Rate of change'!$C$14:$C$21,0),MATCH('Calc|Opex forecast'!$F76,'Input|Rate of change'!$C$14:$O$14,0)))*IF('Input|Step changes'!$E14="$millions",1000000,IF('Input|Step changes'!$E14="$000",1000,1))/IF($E76="$millions",1000000,IF($E76="$000",1000,1)) -> 0 | O76: ='Input|Step changes'!O14*IF('Input|Step changes'!$F14="nominal",LOOKUP($F76,Nominal_to_Real,'Input|Rate of change'!S$25:S$30),INDEX('Input|Rate of change'!$C$14:$O$21,MATCH('Input|Step changes'!$F14,'Input|Rate of change'!$C$14:$C$21,0),MATCH('Calc|Opex forecast'!$F76,'Input|Rate of change'!$C$14:$O$14,0)))*IF('Input|Step changes'!$E14="$millions",1000000,IF('Input|Step changes'!$E14="$000",1000,1))/IF($E76="$millions",1000000,IF($E76="$000",1000,1)) -> 0.7881573318 | P76: ='Input|Step changes'!P14*IF('Input|Step changes'!$F14="nominal",LOOKUP($F76,Nominal_to_Real,'Input|Rate of change'!T$25:T$30),INDEX('Input|Rate of change'!$C$14:$O$21,MATCH('Input|Step changes'!$F14,'Input|Rate of change'!$C$14:$C$21,0),MATCH('Calc|Opex forecast'!$F76,'Input|Rate of change'!$C$14:$O$14,0)))*IF('Input|Step changes'!$E14="$millions",1000000,IF('Input|Step changes'!$E14="$000",1000,1))/IF($E76="$millions",1000000,IF($E76="$000",1000,1)) -> 0.7881573318 | Q76: ='Input|Step changes'!Q14*IF('Input|Step changes'!$F14="nominal",LOOKUP($F76,Nominal_to_Real,'Input|Rate of change'!U$25:U$30),INDEX('Input|Rate of change'!$C$14:$O$21,MATCH('Input|Step changes'!$F14,'Input|Rate of change'!$C$14:$C$21,0),MATCH('Calc|Opex forecast'!$F76,'Input|Rate of change'!$C$14:$O$14,0)))*IF('Input|Step changes'!$E14="$millions",1000000,IF('Input|Step changes'!$E14="$000",1000,1))/IF($E76="$millions",1000000,IF($E76="$000",1000,1)) -> 0.7881573318 | R76: ='Input|Step changes'!R14*IF('Input|Step changes'!$F14="nominal",LOOKUP($F76,Nominal_to_Real,'Input|Rate of change'!V$25:V$30),INDEX('Input|Rate of change'!$C$14:$O$21,MATCH('Input|Step changes'!$F14,'Input|Rate of change'!$C$14:$C$21,0),MATCH('Calc|Opex forecast'!$F76,'Input|Rate of change'!$C$14:$O$14,0)))*IF('Input|Step changes'!$E14="$millions",1000000,IF('Input|Step changes'!$E14="$000",1000,1))/IF($E76="$millions",1000000,IF($E76="$000",1000,1)) -> 0.7881573318 | S76: ='Input|Step changes'!S14*IF('Input|Step changes'!$F14="nominal",LOOKUP($F76,Nominal_to_Real,'Input|Rate of change'!W$25:W$30),INDEX('Input|Rate of change'!$C$14:$O$21,MATCH('Input|Step changes'!$F14,'Input|Rate of change'!$C$14:$C$21,0),MATCH('Calc|Opex forecast'!$F76,'Input|Rate of change'!$C$14:$O$14,0)))*IF('Input|Step changes'!$E14="$millions",1000000,IF('Input|Step changes'!$E14="$000",1000,1))/IF($E76="$millions",1000000,IF($E76="$000",1000,1)) -> 0.7881573318
C77: ='Input|Step changes'!C15 -> Insurance / Self Insurance | D77: Calculated | E77: $millions | F77: 2023-06-01 | J77: ='Input|Step changes'!J15*IF('Input|Step changes'!$F15="nominal",LOOKUP($F77,Nominal_to_Real,'Input|Rate of change'!N$25:N$30),INDEX('Input|Rate of change'!$C$14:$O$21,MATCH('Input|Step changes'!$F15,'Input|Rate of change'!$C$14:$C$21,0),MATCH('Calc|Opex forecast'!$F77,'Input|Rate of change'!$C$14:$O$14,0)))*IF('Input|Step changes'!$E15="$millions",1000000,IF('Input|Step changes'!$E15="$000",1000,1))/IF($E77="$millions",1000000,IF($E77="$000",1000,1)) -> 0 | K77: ='Input|Step changes'!K15*IF('Input|Step changes'!$F15="nominal",LOOKUP($F77,Nominal_to_Real,'Input|Rate of change'!O$25:O$30),INDEX('Input|Rate of change'!$C$14:$O$21,MATCH('Input|Step changes'!$F15,'Input|Rate of change'!$C$14:$C$21,0),MATCH('Calc|Opex forecast'!$F77,'Input|Rate of change'!$C$14:$O$14,0)))*IF('Input|Step changes'!$E15="$millions",1000000,IF('Input|Step changes'!$E15="$000",1000,1))/IF($E77="$millions",1000000,IF($E77="$000",1000,1)) -> 0 | L77: ='Input|Step changes'!L15*IF('Input|Step changes'!$F15="nominal",LOOKUP($F77,Nominal_to_Real,'Input|Rate of change'!P$25:P$30),INDEX('Input|Rate of change'!$C$14:$O$21,MATCH('Input|Step changes'!$F15,'Input|Rate of change'!$C$14:$C$21,0),MATCH('Calc|Opex forecast'!$F77,'Input|Rate of change'!$C$14:$O$14,0)))*IF('Input|Step changes'!$E15="$millions",1000000,IF('Input|Step changes'!$E15="$000",1000,1))/IF($E77="$millions",1000000,IF($E77="$000",1000,1)) -> 0 | M77: ='Input|Step changes'!M15*IF('Input|Step changes'!$F15="nominal",LOOKUP($F77,Nominal_to_Real,'Input|Rate of change'!Q$25:Q$30),INDEX('Input|Rate of change'!$C$14:$O$21,MATCH('Input|Step changes'!$F15,'Input|Rate of change'!$C$14:$C$21,0),MATCH('Calc|Opex forecast'!$F77,'Input|Rate of change'!$C$14:$O$14,0)))*IF('Input|Step changes'!$E15="$millions",1000000,IF('Input|Step changes'!$E15="$000",1000,1))/IF($E77="$millions",1000000,IF($E77="$000",1000,1)) -> 0 | N77: ='Input|Step changes'!N15*IF('Input|Step changes'!$F15="nominal",LOOKUP($F77,Nominal_to_Real,'Input|Rate of change'!R$25:R$30),INDEX('Input|Rate of change'!$C$14:$O$21,MATCH('Input|Step changes'!$F15,'Input|Rate of change'!$C$14:$C$21,0),MATCH('Calc|Opex forecast'!$F77,'Input|Rate of change'!$C$14:$O$14,0)))*IF('Input|Step changes'!$E15="$millions",1000000,IF('Input|Step changes'!$E15="$000",1000,1))/IF($E77="$millions",1000000,IF($E77="$000",1000,1)) -> 0 | O77: ='Input|Step changes'!O15*IF('Input|Step changes'!$F15="nominal",LOOKUP($F77,Nominal_to_Real,'Input|Rate of change'!S$25:S$30),INDEX('Input|Rate of change'!$C$14:$O$21,MATCH('Input|Step changes'!$F15,'Input|Rate of change'!$C$14:$C$21,0),MATCH('Calc|Opex forecast'!$F77,'Input|Rate of change'!$C$14:$O$14,0)))*IF('Input|Step changes'!$E15="$millions",1000000,IF('Input|Step changes'!$E15="$000",1000,1))/IF($E77="$millions",1000000,IF($E77="$000",1000,1)) -> 6.046446145 | P77: ='Input|Step changes'!P15*IF('Input|Step changes'!$F15="nominal",LOOKUP($F77,Nominal_to_Real,'Input|Rate of change'!T$25:T$30),INDEX('Input|Rate of change'!$C$14:$O$21,MATCH('Input|Step changes'!$F15,'Input|Rate of change'!$C$14:$C$21,0),MATCH('Calc|Opex forecast'!$F77,'Input|Rate of change'!$C$14:$O$14,0)))*IF('Input|Step changes'!$E15="$millions",1000000,IF('Input|Step changes'!$E15="$000",1000,1))/IF($E77="$millions",1000000,IF($E77="$000",1000,1)) -> 6.046446145 | Q77: ='Input|Step changes'!Q15*IF('Input|Step changes'!$F15="nominal",LOOKUP($F77,Nominal_to_Real,'Input|Rate of change'!U$25:U$30),INDEX('Input|Rate of change'!$C$14:$O$21,MATCH('Input|Step changes'!$F15,'Input|Rate of change'!$C$14:$C$21,0),MATCH('Calc|Opex forecast'!$F77,'Input|Rate of change'!$C$14:$O$14,0)))*IF('Input|Step changes'!$E15="$millions",1000000,IF('Input|Step changes'!$E15="$000",1000,1))/IF($E77="$millions",1000000,IF($E77="$000",1000,1)) -> 6.046446145 | R77: ='Input|Step changes'!R15*IF('Input|Step changes'!$F15="nominal",LOOKUP($F77,Nominal_to_Real,'Input|Rate of change'!V$25:V$30),INDEX('Input|Rate of change'!$C$14:$O$21,MATCH('Input|Step changes'!$F15,'Input|Rate of change'!$C$14:$C$21,0),MATCH('Calc|Opex forecast'!$F77,'Input|Rate of change'!$C$14:$O$14,0)))*IF('Input|Step changes'!$E15="$millions",1000000,IF('Input|Step changes'!$E15="$000",1000,1))/IF($E77="$millions",1000000,IF($E77="$000",1000,1)) -> 6.046446145 | S77: ='Input|Step changes'!S15*IF('Input|Step changes'!$F15="nominal",LOOKUP($F77,Nominal_to_Real,'Input|Rate of change'!W$25:W$30),INDEX('Input|Rate of change'!$C$14:$O$21,MATCH('Input|Step changes'!$F15,'Input|Rate of change'!$C$14:$C$21,0),MATCH('Calc|Opex forecast'!$F77,'Input|Rate of change'!$C$14:$O$14,0)))*IF('Input|Step changes'!$E15="$millions",1000000,IF('Input|Step changes'!$E15="$000",1000,1))/IF($E77="$millions",1000000,IF($E77="$000",1000,1)) -> 6.046446145
C78: ='Input|Step changes'!C16 -> IFRS Implementation | D78: Calculated | E78: $millions | F78: 2023-06-01 | J78: ='Input|Step changes'!J16*IF('Input|Step changes'!$F16="nominal",LOOKUP($F78,Nominal_to_Real,'Input|Rate of change'!N$25:N$30),INDEX('Input|Rate of change'!$C$14:$O$21,MATCH('Input|Step changes'!$F16,'Input|Rate of change'!$C$14:$C$21,0),MATCH('Calc|Opex forecast'!$F78,'Input|Rate of change'!$C$14:$O$14,0)))*IF('Input|Step changes'!$E16="$millions",1000000,IF('Input|Step changes'!$E16="$000",1000,1))/IF($E78="$millions",1000000,IF($E78="$000",1000,1)) -> 0 | K78: ='Input|Step changes'!K16*IF('Input|Step changes'!$F16="nominal",LOOKUP($F78,Nominal_to_Real,'Input|Rate of change'!O$25:O$30),INDEX('Input|Rate of change'!$C$14:$O$21,MATCH('Input|Step changes'!$F16,'Input|Rate of change'!$C$14:$C$21,0),MATCH('Calc|Opex forecast'!$F78,'Input|Rate of change'!$C$14:$O$14,0)))*IF('Input|Step changes'!$E16="$millions",1000000,IF('Input|Step changes'!$E16="$000",1000,1))/IF($E78="$millions",1000000,IF($E78="$000",1000,1)) -> 0 | L78: ='Input|Step changes'!L16*IF('Input|Step changes'!$F16="nominal",LOOKUP($F78,Nominal_to_Real,'Input|Rate of change'!P$25:P$30),INDEX('Input|Rate of change'!$C$14:$O$21,MATCH('Input|Step changes'!$F16,'Input|Rate of change'!$C$14:$C$21,0),MATCH('Calc|Opex forecast'!$F78,'Input|Rate of change'!$C$14:$O$14,0)))*IF('Input|Step changes'!$E16="$millions",1000000,IF('Input|Step changes'!$E16="$000",1000,1))/IF($E78="$millions",1000000,IF($E78="$000",1000,1)) -> 0 | M78: ='Input|Step changes'!M16*IF('Input|Step changes'!$F16="nominal",LOOKUP($F78,Nominal_to_Real,'Input|Rate of change'!Q$25:Q$30),INDEX('Input|Rate of change'!$C$14:$O$21,MATCH('Input|Step changes'!$F16,'Input|Rate of change'!$C$14:$C$21,0),MATCH('Calc|Opex forecast'!$F78,'Input|Rate of change'!$C$14:$O$14,0)))*IF('Input|Step changes'!$E16="$millions",1000000,IF('Input|Step changes'!$E16="$000",1000,1))/IF($E78="$millions",1000000,IF($E78="$000",1000,1)) -> 0 | N78: ='Input|Step changes'!N16*IF('Input|Step changes'!$F16="nominal",LOOKUP($F78,Nominal_to_Real,'Input|Rate of change'!R$25:R$30),INDEX('Input|Rate of change'!$C$14:$O$21,MATCH('Input|Step changes'!$F16,'Input|Rate of change'!$C$14:$C$21,0),MATCH('Calc|Opex forecast'!$F78,'Input|Rate of change'!$C$14:$O$14,0)))*IF('Input|Step changes'!$E16="$millions",1000000,IF('Input|Step changes'!$E16="$000",1000,1))/IF($E78="$millions",1000000,IF($E78="$000",1000,1)) -> 0 | O78: ='Input|Step changes'!O16*IF('Input|Step changes'!$F16="nominal",LOOKUP($F78,Nominal_to_Real,'Input|Rate of change'!S$25:S$30),INDEX('Input|Rate of change'!$C$14:$O$21,MATCH('Input|Step changes'!$F16,'Input|Rate of change'!$C$14:$C$21,0),MATCH('Calc|Opex forecast'!$F78,'Input|Rate of change'!$C$14:$O$14,0)))*IF('Input|Step changes'!$E16="$millions",1000000,IF('Input|Step changes'!$E16="$000",1000,1))/IF($E78="$millions",1000000,IF($E78="$000",1000,1)) -> 9.350138719 | P78: ='Input|Step changes'!P16*IF('Input|Step changes'!$F16="nominal",LOOKUP($F78,Nominal_to_Real,'Input|Rate of change'!T$25:T$30),INDEX('Input|Rate of change'!$C$14:$O$21,MATCH('Input|Step changes'!$F16,'Input|Rate of change'!$C$14:$C$21,0),MATCH('Calc|Opex forecast'!$F78,'Input|Rate of change'!$C$14:$O$14,0)))*IF('Input|Step changes'!$E16="$millions",1000000,IF('Input|Step changes'!$E16="$000",1000,1))/IF($E78="$millions",1000000,IF($E78="$000",1000,1)) -> 9.350138719 | Q78: ='Input|Step changes'!Q16*IF('Input|Step changes'!$F16="nominal",LOOKUP($F78,Nominal_to_Real,'Input|Rate of change'!U$25:U$30),INDEX('Input|Rate of change'!$C$14:$O$21,MATCH('Input|Step changes'!$F16,'Input|Rate of change'!$C$14:$C$21,0),MATCH('Calc|Opex forecast'!$F78,'Input|Rate of change'!$C$14:$O$14,0)))*IF('Input|Step changes'!$E16="$millions",1000000,IF('Input|Step changes'!$E16="$000",1000,1))/IF($E78="$millions",1000000,IF($E78="$000",1000,1)) -> 9.350138719 | R78: ='Input|Step changes'!R16*IF('Input|Step changes'!$F16="nominal",LOOKUP($F78,Nominal_to_Real,'Input|Rate of change'!V$25:V$30),INDEX('Input|Rate of change'!$C$14:$O$21,MATCH('Input|Step changes'!$F16,'Input|Rate of change'!$C$14:$C$21,0),MATCH('Calc|Opex forecast'!$F78,'Input|Rate of change'!$C$14:$O$14,0)))*IF('Input|Step changes'!$E16="$millions",1000000,IF('Input|Step changes'!$E16="$000",1000,1))/IF($E78="$millions",1000000,IF($E78="$000",1000,1)) -> 9.350138719 | S78: ='Input|Step changes'!S16*IF('Input|Step changes'!$F16="nominal",LOOKUP($F78,Nominal_to_Real,'Input|Rate of change'!W$25:W$30),INDEX('Input|Rate of change'!$C$14:$O$21,MATCH('Input|Step changes'!$F16,'Input|Rate of change'!$C$14:$C$21,0),MATCH('Calc|Opex forecast'!$F78,'Input|Rate of change'!$C$14:$O$14,0)))*IF('Input|Step changes'!$E16="$millions",1000000,IF('Input|Step changes'!$E16="$000",1000,1))/IF($E78="$millions",1000000,IF($E78="$000",1000,1)) -> 9.350138719
C79: ='Input|Step changes'!C17 -> 0 | D79: Calculated | E79: $millions | F79: 2023-06-01 | J79: ='Input|Step changes'!J17*IF('Input|Step changes'!$F17="nominal",LOOKUP($F79,Nominal_to_Real,'Input|Rate of change'!N$25:N$30),INDEX('Input|Rate of change'!$C$14:$O$21,MATCH('Input|Step changes'!$F17,'Input|Rate of change'!$C$14:$C$21,0),MATCH('Calc|Opex forecast'!$F79,'Input|Rate of change'!$C$14:$O$14,0)))*IF('Input|Step changes'!$E17="$millions",1000000,IF('Input|Step changes'!$E17="$000",1000,1))/IF($E79="$millions",1000000,IF($E79="$000",1000,1)) -> 0 | K79: ='Input|Step changes'!K17*IF('Input|Step changes'!$F17="nominal",LOOKUP($F79,Nominal_to_Real,'Input|Rate of change'!O$25:O$30),INDEX('Input|Rate of change'!$C$14:$O$21,MATCH('Input|Step changes'!$F17,'Input|Rate of change'!$C$14:$C$21,0),MATCH('Calc|Opex forecast'!$F79,'Input|Rate of change'!$C$14:$O$14,0)))*IF('Input|Step changes'!$E17="$millions",1000000,IF('Input|Step changes'!$E17="$000",1000,1))/IF($E79="$millions",1000000,IF($E79="$000",1000,1)) -> 0 | L79: ='Input|Step changes'!L17*IF('Input|Step changes'!$F17="nominal",LOOKUP($F79,Nominal_to_Real,'Input|Rate of change'!P$25:P$30),INDEX('Input|Rate of change'!$C$14:$O$21,MATCH('Input|Step changes'!$F17,'Input|Rate of change'!$C$14:$C$21,0),MATCH('Calc|Opex forecast'!$F79,'Input|Rate of change'!$C$14:$O$14,0)))*IF('Input|Step changes'!$E17="$millions",1000000,IF('Input|Step changes'!$E17="$000",1000,1))/IF($E79="$millions",1000000,IF($E79="$000",1000,1)) -> 0 | M79: ='Input|Step changes'!M17*IF('Input|Step changes'!$F17="nominal",LOOKUP($F79,Nominal_to_Real,'Input|Rate of change'!Q$25:Q$30),INDEX('Input|Rate of change'!$C$14:$O$21,MATCH('Input|Step changes'!$F17,'Input|Rate of change'!$C$14:$C$21,0),MATCH('Calc|Opex forecast'!$F79,'Input|Rate of change'!$C$14:$O$14,0)))*IF('Input|Step changes'!$E17="$millions",1000000,IF('Input|Step changes'!$E17="$000",1000,1))/IF($E79="$millions",1000000,IF($E79="$000",1000,1)) -> 0 | N79: ='Input|Step changes'!N17*IF('Input|Step changes'!$F17="nominal",LOOKUP($F79,Nominal_to_Real,'Input|Rate of change'!R$25:R$30),INDEX('Input|Rate of change'!$C$14:$O$21,MATCH('Input|Step changes'!$F17,'Input|Rate of change'!$C$14:$C$21,0),MATCH('Calc|Opex forecast'!$F79,'Input|Rate of change'!$C$14:$O$14,0)))*IF('Input|Step changes'!$E17="$millions",1000000,IF('Input|Step changes'!$E17="$000",1000,1))/IF($E79="$millions",1000000,IF($E79="$000",1000,1)) -> 0 | O79: ='Input|Step changes'!O17*IF('Input|Step changes'!$F17="nominal",LOOKUP($F79,Nominal_to_Real,'Input|Rate of change'!S$25:S$30),INDEX('Input|Rate of change'!$C$14:$O$21,MATCH('Input|Step changes'!$F17,'Input|Rate of change'!$C$14:$C$21,0),MATCH('Calc|Opex forecast'!$F79,'Input|Rate of change'!$C$14:$O$14,0)))*IF('Input|Step changes'!$E17="$millions",1000000,IF('Input|Step changes'!$E17="$000",1000,1))/IF($E79="$millions",1000000,IF($E79="$000",1000,1)) -> 0 | P79: ='Input|Step changes'!P17*IF('Input|Step changes'!$F17="nominal",LOOKUP($F79,Nominal_to_Real,'Input|Rate of change'!T$25:T$30),INDEX('Input|Rate of change'!$C$14:$O$21,MATCH('Input|Step changes'!$F17,'Input|Rate of change'!$C$14:$C$21,0),MATCH('Calc|Opex forecast'!$F79,'Input|Rate of change'!$C$14:$O$14,0)))*IF('Input|Step changes'!$E17="$millions",1000000,IF('Input|Step changes'!$E17="$000",1000,1))/IF($E79="$millions",1000000,IF($E79="$000",1000,1)) -> 0 | Q79: ='Input|Step changes'!Q17*IF('Input|Step changes'!$F17="nominal",LOOKUP($F79,Nominal_to_Real,'Input|Rate of change'!U$25:U$30),INDEX('Input|Rate of change'!$C$14:$O$21,MATCH('Input|Step changes'!$F17,'Input|Rate of change'!$C$14:$C$21,0),MATCH('Calc|Opex forecast'!$F79,'Input|Rate of change'!$C$14:$O$14,0)))*IF('Input|Step changes'!$E17="$millions",1000000,IF('Input|Step changes'!$E17="$000",1000,1))/IF($E79="$millions",1000000,IF($E79="$000",1000,1)) -> 0 | R79: ='Input|Step changes'!R17*IF('Input|Step changes'!$F17="nominal",LOOKUP($F79,Nominal_to_Real,'Input|Rate of change'!V$25:V$30),INDEX('Input|Rate of change'!$C$14:$O$21,MATCH('Input|Step changes'!$F17,'Input|Rate of change'!$C$14:$C$21,0),MATCH('Calc|Opex forecast'!$F79,'Input|Rate of change'!$C$14:$O$14,0)))*IF('Input|Step changes'!$E17="$millions",1000000,IF('Input|Step changes'!$E17="$000",1000,1))/IF($E79="$millions",1000000,IF($E79="$000",1000,1)) -> 0 | S79: ='Input|Step changes'!S17*IF('Input|Step changes'!$F17="nominal",LOOKUP($F79,Nominal_to_Real,'Input|Rate of change'!W$25:W$30),INDEX('Input|Rate of change'!$C$14:$O$21,MATCH('Input|Step changes'!$F17,'Input|Rate of change'!$C$14:$C$21,0),MATCH('Calc|Opex forecast'!$F79,'Input|Rate of change'!$C$14:$O$14,0)))*IF('Input|Step changes'!$E17="$millions",1000000,IF('Input|Step changes'!$E17="$000",1000,1))/IF($E79="$millions",1000000,IF($E79="$000",1000,1)) -> 0
C80: ='Input|Step changes'!C18 -> 0 | D80: Calculated | E80: $millions | F80: 2023-06-01 | J80: ='Input|Step changes'!J18*IF('Input|Step changes'!$F18="nominal",LOOKUP($F80,Nominal_to_Real,'Input|Rate of change'!N$25:N$30),INDEX('Input|Rate of change'!$C$14:$O$21,MATCH('Input|Step changes'!$F18,'Input|Rate of change'!$C$14:$C$21,0),MATCH('Calc|Opex forecast'!$F80,'Input|Rate of change'!$C$14:$O$14,0)))*IF('Input|Step changes'!$E18="$millions",1000000,IF('Input|Step changes'!$E18="$000",1000,1))/IF($E80="$millions",1000000,IF($E80="$000",1000,1)) -> 0 | K80: ='Input|Step changes'!K18*IF('Input|Step changes'!$F18="nominal",LOOKUP($F80,Nominal_to_Real,'Input|Rate of change'!O$25:O$30),INDEX('Input|Rate of change'!$C$14:$O$21,MATCH('Input|Step changes'!$F18,'Input|Rate of change'!$C$14:$C$21,0),MATCH('Calc|Opex forecast'!$F80,'Input|Rate of change'!$C$14:$O$14,0)))*IF('Input|Step changes'!$E18="$millions",1000000,IF('Input|Step changes'!$E18="$000",1000,1))/IF($E80="$millions",1000000,IF($E80="$000",1000,1)) -> 0 | L80: ='Input|Step changes'!L18*IF('Input|Step changes'!$F18="nominal",LOOKUP($F80,Nominal_to_Real,'Input|Rate of change'!P$25:P$30),INDEX('Input|Rate of change'!$C$14:$O$21,MATCH('Input|Step changes'!$F18,'Input|Rate of change'!$C$14:$C$21,0),MATCH('Calc|Opex forecast'!$F80,'Input|Rate of change'!$C$14:$O$14,0)))*IF('Input|Step changes'!$E18="$millions",1000000,IF('Input|Step changes'!$E18="$000",1000,1))/IF($E80="$millions",1000000,IF($E80="$000",1000,1)) -> 0 | M80: ='Input|Step changes'!M18*IF('Input|Step changes'!$F18="nominal",LOOKUP($F80,Nominal_to_Real,'Input|Rate of change'!Q$25:Q$30),INDEX('Input|Rate of change'!$C$14:$O$21,MATCH('Input|Step changes'!$F18,'Input|Rate of change'!$C$14:$C$21,0),MATCH('Calc|Opex forecast'!$F80,'Input|Rate of change'!$C$14:$O$14,0)))*IF('Input|Step changes'!$E18="$millions",1000000,IF('Input|Step changes'!$E18="$000",1000,1))/IF($E80="$millions",1000000,IF($E80="$000",1000,1)) -> 0 | N80: ='Input|Step changes'!N18*IF('Input|Step changes'!$F18="nominal",LOOKUP($F80,Nominal_to_Real,'Input|Rate of change'!R$25:R$30),INDEX('Input|Rate of change'!$C$14:$O$21,MATCH('Input|Step changes'!$F18,'Input|Rate of change'!$C$14:$C$21,0),MATCH('Calc|Opex forecast'!$F80,'Input|Rate of change'!$C$14:$O$14,0)))*IF('Input|Step changes'!$E18="$millions",1000000,IF('Input|Step changes'!$E18="$000",1000,1))/IF($E80="$millions",1000000,IF($E80="$000",1000,1)) -> 0 | O80: ='Input|Step changes'!O18*IF('Input|Step changes'!$F18="nominal",LOOKUP($F80,Nominal_to_Real,'Input|Rate of change'!S$25:S$30),INDEX('Input|Rate of change'!$C$14:$O$21,MATCH('Input|Step changes'!$F18,'Input|Rate of change'!$C$14:$C$21,0),MATCH('Calc|Opex forecast'!$F80,'Input|Rate of change'!$C$14:$O$14,0)))*IF('Input|Step changes'!$E18="$millions",1000000,IF('Input|Step changes'!$E18="$000",1000,1))/IF($E80="$millions",1000000,IF($E80="$000",1000,1)) -> 0 | P80: ='Input|Step changes'!P18*IF('Input|Step changes'!$F18="nominal",LOOKUP($F80,Nominal_to_Real,'Input|Rate of change'!T$25:T$30),INDEX('Input|Rate of change'!$C$14:$O$21,MATCH('Input|Step changes'!$F18,'Input|Rate of change'!$C$14:$C$21,0),MATCH('Calc|Opex forecast'!$F80,'Input|Rate of change'!$C$14:$O$14,0)))*IF('Input|Step changes'!$E18="$millions",1000000,IF('Input|Step changes'!$E18="$000",1000,1))/IF($E80="$millions",1000000,IF($E80="$000",1000,1)) -> 0 | Q80: ='Input|Step changes'!Q18*IF('Input|Step changes'!$F18="nominal",LOOKUP($F80,Nominal_to_Real,'Input|Rate of change'!U$25:U$30),INDEX('Input|Rate of change'!$C$14:$O$21,MATCH('Input|Step changes'!$F18,'Input|Rate of change'!$C$14:$C$21,0),MATCH('Calc|Opex forecast'!$F80,'Input|Rate of change'!$C$14:$O$14,0)))*IF('Input|Step changes'!$E18="$millions",1000000,IF('Input|Step changes'!$E18="$000",1000,1))/IF($E80="$millions",1000000,IF($E80="$000",1000,1)) -> 0 | R80: ='Input|Step changes'!R18*IF('Input|Step changes'!$F18="nominal",LOOKUP($F80,Nominal_to_Real,'Input|Rate of change'!V$25:V$30),INDEX('Input|Rate of change'!$C$14:$O$21,MATCH('Input|Step changes'!$F18,'Input|Rate of change'!$C$14:$C$21,0),MATCH('Calc|Opex forecast'!$F80,'Input|Rate of change'!$C$14:$O$14,0)))*IF('Input|Step changes'!$E18="$millions",1000000,IF('Input|Step changes'!$E18="$000",1000,1))/IF($E80="$millions",1000000,IF($E80="$000",1000,1)) -> 0 | S80: ='Input|Step changes'!S18*IF('Input|Step changes'!$F18="nominal",LOOKUP($F80,Nominal_to_Real,'Input|Rate of change'!W$25:W$30),INDEX('Input|Rate of change'!$C$14:$O$21,MATCH('Input|Step changes'!$F18,'Input|Rate of change'!$C$14:$C$21,0),MATCH('Calc|Opex forecast'!$F80,'Input|Rate of change'!$C$14:$O$14,0)))*IF('Input|Step changes'!$E18="$millions",1000000,IF('Input|Step changes'!$E18="$000",1000,1))/IF($E80="$millions",1000000,IF($E80="$000",1000,1)) -> 0
C81: ='Input|Step changes'!C19 -> 0 | D81: Calculated | E81: $millions | F81: 2023-06-01 | J81: ='Input|Step changes'!J19*IF('Input|Step changes'!$F19="nominal",LOOKUP($F81,Nominal_to_Real,'Input|Rate of change'!N$25:N$30),INDEX('Input|Rate of change'!$C$14:$O$21,MATCH('Input|Step changes'!$F19,'Input|Rate of change'!$C$14:$C$21,0),MATCH('Calc|Opex forecast'!$F81,'Input|Rate of change'!$C$14:$O$14,0)))*IF('Input|Step changes'!$E19="$millions",1000000,IF('Input|Step changes'!$E19="$000",1000,1))/IF($E81="$millions",1000000,IF($E81="$000",1000,1)) -> 0 | K81: ='Input|Step changes'!K19*IF('Input|Step changes'!$F19="nominal",LOOKUP($F81,Nominal_to_Real,'Input|Rate of change'!O$25:O$30),INDEX('Input|Rate of change'!$C$14:$O$21,MATCH('Input|Step changes'!$F19,'Input|Rate of change'!$C$14:$C$21,0),MATCH('Calc|Opex forecast'!$F81,'Input|Rate of change'!$C$14:$O$14,0)))*IF('Input|Step changes'!$E19="$millions",1000000,IF('Input|Step changes'!$E19="$000",1000,1))/IF($E81="$millions",1000000,IF($E81="$000",1000,1)) -> 0 | L81: ='Input|Step changes'!L19*IF('Input|Step changes'!$F19="nominal",LOOKUP($F81,Nominal_to_Real,'Input|Rate of change'!P$25:P$30),INDEX('Input|Rate of change'!$C$14:$O$21,MATCH('Input|Step changes'!$F19,'Input|Rate of change'!$C$14:$C$21,0),MATCH('Calc|Opex forecast'!$F81,'Input|Rate of change'!$C$14:$O$14,0)))*IF('Input|Step changes'!$E19="$millions",1000000,IF('Input|Step changes'!$E19="$000",1000,1))/IF($E81="$millions",1000000,IF($E81="$000",1000,1)) -> 0 | M81: ='Input|Step changes'!M19*IF('Input|Step changes'!$F19="nominal",LOOKUP($F81,Nominal_to_Real,'Input|Rate of change'!Q$25:Q$30),INDEX('Input|Rate of change'!$C$14:$O$21,MATCH('Input|Step changes'!$F19,'Input|Rate of change'!$C$14:$C$21,0),MATCH('Calc|Opex forecast'!$F81,'Input|Rate of change'!$C$14:$O$14,0)))*IF('Input|Step changes'!$E19="$millions",1000000,IF('Input|Step changes'!$E19="$000",1000,1))/IF($E81="$millions",1000000,IF($E81="$000",1000,1)) -> 0 | N81: ='Input|Step changes'!N19*IF('Input|Step changes'!$F19="nominal",LOOKUP($F81,Nominal_to_Real,'Input|Rate of change'!R$25:R$30),INDEX('Input|Rate of change'!$C$14:$O$21,MATCH('Input|Step changes'!$F19,'Input|Rate of change'!$C$14:$C$21,0),MATCH('Calc|Opex forecast'!$F81,'Input|Rate of change'!$C$14:$O$14,0)))*IF('Input|Step changes'!$E19="$millions",1000000,IF('Input|Step changes'!$E19="$000",1000,1))/IF($E81="$millions",1000000,IF($E81="$000",1000,1)) -> 0 | O81: ='Input|Step changes'!O19*IF('Input|Step changes'!$F19="nominal",LOOKUP($F81,Nominal_to_Real,'Input|Rate of change'!S$25:S$30),INDEX('Input|Rate of change'!$C$14:$O$21,MATCH('Input|Step changes'!$F19,'Input|Rate of change'!$C$14:$C$21,0),MATCH('Calc|Opex forecast'!$F81,'Input|Rate of change'!$C$14:$O$14,0)))*IF('Input|Step changes'!$E19="$millions",1000000,IF('Input|Step changes'!$E19="$000",1000,1))/IF($E81="$millions",1000000,IF($E81="$000",1000,1)) -> 0 | P81: ='Input|Step changes'!P19*IF('Input|Step changes'!$F19="nominal",LOOKUP($F81,Nominal_to_Real,'Input|Rate of change'!T$25:T$30),INDEX('Input|Rate of change'!$C$14:$O$21,MATCH('Input|Step changes'!$F19,'Input|Rate of change'!$C$14:$C$21,0),MATCH('Calc|Opex forecast'!$F81,'Input|Rate of change'!$C$14:$O$14,0)))*IF('Input|Step changes'!$E19="$millions",1000000,IF('Input|Step changes'!$E19="$000",1000,1))/IF($E81="$millions",1000000,IF($E81="$000",1000,1)) -> 0 | Q81: ='Input|Step changes'!Q19*IF('Input|Step changes'!$F19="nominal",LOOKUP($F81,Nominal_to_Real,'Input|Rate of change'!U$25:U$30),INDEX('Input|Rate of change'!$C$14:$O$21,MATCH('Input|Step changes'!$F19,'Input|Rate of change'!$C$14:$C$21,0),MATCH('Calc|Opex forecast'!$F81,'Input|Rate of change'!$C$14:$O$14,0)))*IF('Input|Step changes'!$E19="$millions",1000000,IF('Input|Step changes'!$E19="$000",1000,1))/IF($E81="$millions",1000000,IF($E81="$000",1000,1)) -> 0 | R81: ='Input|Step changes'!R19*IF('Input|Step changes'!$F19="nominal",LOOKUP($F81,Nominal_to_Real,'Input|Rate of change'!V$25:V$30),INDEX('Input|Rate of change'!$C$14:$O$21,MATCH('Input|Step changes'!$F19,'Input|Rate of change'!$C$14:$C$21,0),MATCH('Calc|Opex forecast'!$F81,'Input|Rate of change'!$C$14:$O$14,0)))*IF('Input|Step changes'!$E19="$millions",1000000,IF('Input|Step changes'!$E19="$000",1000,1))/IF($E81="$millions",1000000,IF($E81="$000",1000,1)) -> 0 | S81: ='Input|Step changes'!S19*IF('Input|Step changes'!$F19="nominal",LOOKUP($F81,Nominal_to_Real,'Input|Rate of change'!W$25:W$30),INDEX('Input|Rate of change'!$C$14:$O$21,MATCH('Input|Step changes'!$F19,'Input|Rate of change'!$C$14:$C$21,0),MATCH('Calc|Opex forecast'!$F81,'Input|Rate of change'!$C$14:$O$14,0)))*IF('Input|Step changes'!$E19="$millions",1000000,IF('Input|Step changes'!$E19="$000",1000,1))/IF($E81="$millions",1000000,IF($E81="$000",1000,1)) -> 0
C82: ='Input|Step changes'!C20 -> 0 | D82: Calculated | E82: $millions | F82: 2023-06-01 | J82: ='Input|Step changes'!J20*IF('Input|Step changes'!$F20="nominal",LOOKUP($F82,Nominal_to_Real,'Input|Rate of change'!N$25:N$30),INDEX('Input|Rate of change'!$C$14:$O$21,MATCH('Input|Step changes'!$F20,'Input|Rate of change'!$C$14:$C$21,0),MATCH('Calc|Opex forecast'!$F82,'Input|Rate of change'!$C$14:$O$14,0)))*IF('Input|Step changes'!$E20="$millions",1000000,IF('Input|Step changes'!$E20="$000",1000,1))/IF($E82="$millions",1000000,IF($E82="$000",1000,1)) -> 0 | K82: ='Input|Step changes'!K20*IF('Input|Step changes'!$F20="nominal",LOOKUP($F82,Nominal_to_Real,'Input|Rate of change'!O$25:O$30),INDEX('Input|Rate of change'!$C$14:$O$21,MATCH('Input|Step changes'!$F20,'Input|Rate of change'!$C$14:$C$21,0),MATCH('Calc|Opex forecast'!$F82,'Input|Rate of change'!$C$14:$O$14,0)))*IF('Input|Step changes'!$E20="$millions",1000000,IF('Input|Step changes'!$E20="$000",1000,1))/IF($E82="$millions",1000000,IF($E82="$000",1000,1)) -> 0 | L82: ='Input|Step changes'!L20*IF('Input|Step changes'!$F20="nominal",LOOKUP($F82,Nominal_to_Real,'Input|Rate of change'!P$25:P$30),INDEX('Input|Rate of change'!$C$14:$O$21,MATCH('Input|Step changes'!$F20,'Input|Rate of change'!$C$14:$C$21,0),MATCH('Calc|Opex forecast'!$F82,'Input|Rate of change'!$C$14:$O$14,0)))*IF('Input|Step changes'!$E20="$millions",1000000,IF('Input|Step changes'!$E20="$000",1000,1))/IF($E82="$millions",1000000,IF($E82="$000",1000,1)) -> 0 | M82: ='Input|Step changes'!M20*IF('Input|Step changes'!$F20="nominal",LOOKUP($F82,Nominal_to_Real,'Input|Rate of change'!Q$25:Q$30),INDEX('Input|Rate of change'!$C$14:$O$21,MATCH('Input|Step changes'!$F20,'Input|Rate of change'!$C$14:$C$21,0),MATCH('Calc|Opex forecast'!$F82,'Input|Rate of change'!$C$14:$O$14,0)))*IF('Input|Step changes'!$E20="$millions",1000000,IF('Input|Step changes'!$E20="$000",1000,1))/IF($E82="$millions",1000000,IF($E82="$000",1000,1)) -> 0 | N82: ='Input|Step changes'!N20*IF('Input|Step changes'!$F20="nominal",LOOKUP($F82,Nominal_to_Real,'Input|Rate of change'!R$25:R$30),INDEX('Input|Rate of change'!$C$14:$O$21,MATCH('Input|Step changes'!$F20,'Input|Rate of change'!$C$14:$C$21,0),MATCH('Calc|Opex forecast'!$F82,'Input|Rate of change'!$C$14:$O$14,0)))*IF('Input|Step changes'!$E20="$millions",1000000,IF('Input|Step changes'!$E20="$000",1000,1))/IF($E82="$millions",1000000,IF($E82="$000",1000,1)) -> 0 | O82: ='Input|Step changes'!O20*IF('Input|Step changes'!$F20="nominal",LOOKUP($F82,Nominal_to_Real,'Input|Rate of change'!S$25:S$30),INDEX('Input|Rate of change'!$C$14:$O$21,MATCH('Input|Step changes'!$F20,'Input|Rate of change'!$C$14:$C$21,0),MATCH('Calc|Opex forecast'!$F82,'Input|Rate of change'!$C$14:$O$14,0)))*IF('Input|Step changes'!$E20="$millions",1000000,IF('Input|Step changes'!$E20="$000",1000,1))/IF($E82="$millions",1000000,IF($E82="$000",1000,1)) -> 0 | P82: ='Input|Step changes'!P20*IF('Input|Step changes'!$F20="nominal",LOOKUP($F82,Nominal_to_Real,'Input|Rate of change'!T$25:T$30),INDEX('Input|Rate of change'!$C$14:$O$21,MATCH('Input|Step changes'!$F20,'Input|Rate of change'!$C$14:$C$21,0),MATCH('Calc|Opex forecast'!$F82,'Input|Rate of change'!$C$14:$O$14,0)))*IF('Input|Step changes'!$E20="$millions",1000000,IF('Input|Step changes'!$E20="$000",1000,1))/IF($E82="$millions",1000000,IF($E82="$000",1000,1)) -> 0 | Q82: ='Input|Step changes'!Q20*IF('Input|Step changes'!$F20="nominal",LOOKUP($F82,Nominal_to_Real,'Input|Rate of change'!U$25:U$30),INDEX('Input|Rate of change'!$C$14:$O$21,MATCH('Input|Step changes'!$F20,'Input|Rate of change'!$C$14:$C$21,0),MATCH('Calc|Opex forecast'!$F82,'Input|Rate of change'!$C$14:$O$14,0)))*IF('Input|Step changes'!$E20="$millions",1000000,IF('Input|Step changes'!$E20="$000",1000,1))/IF($E82="$millions",1000000,IF($E82="$000",1000,1)) -> 0 | R82: ='Input|Step changes'!R20*IF('Input|Step changes'!$F20="nominal",LOOKUP($F82,Nominal_to_Real,'Input|Rate of change'!V$25:V$30),INDEX('Input|Rate of change'!$C$14:$O$21,MATCH('Input|Step changes'!$F20,'Input|Rate of change'!$C$14:$C$21,0),MATCH('Calc|Opex forecast'!$F82,'Input|Rate of change'!$C$14:$O$14,0)))*IF('Input|Step changes'!$E20="$millions",1000000,IF('Input|Step changes'!$E20="$000",1000,1))/IF($E82="$millions",1000000,IF($E82="$000",1000,1)) -> 0 | S82: ='Input|Step changes'!S20*IF('Input|Step changes'!$F20="nominal",LOOKUP($F82,Nominal_to_Real,'Input|Rate of change'!W$25:W$30),INDEX('Input|Rate of change'!$C$14:$O$21,MATCH('Input|Step changes'!$F20,'Input|Rate of change'!$C$14:$C$21,0),MATCH('Calc|Opex forecast'!$F82,'Input|Rate of change'!$C$14:$O$14,0)))*IF('Input|Step changes'!$E20="$millions",1000000,IF('Input|Step changes'!$E20="$000",1000,1))/IF($E82="$millions",1000000,IF($E82="$000",1000,1)) -> 0
C84: Total step changes | D84: Calculated | E84: =$E$8 -> $millions | F84: 2023-06-01 | J84: =SUM(J73:J83) -> 0 | K84: =SUM(K73:K83) -> 0 | L84: 0 | M84: 0 | N84: 0 | O84: 23.16482457 | P84: 23.16482457 | Q84: 23.16482457 | R84: 23.16482457 | S84: 23.16482457
B86: Calc | Category specific forecasts
C88: Category specific forecasts | D88: Source | E88: Unit | F88: Basis | J88: =IF(YEAR(J$4)>='Input|General'!$G$13,IF(YEAR(J$4)<='Input|General'!$G$14,J$4,""),"") ->  | K88: =IF(YEAR(K$4)>='Input|General'!$G$13,IF(YEAR(K$4)<='Input|General'!$G$14,K$4,""),"") ->  | L88: =IF(YEAR(L$4)>='Input|General'!$G$13,IF(YEAR(L$4)<='Input|General'!$G$14,L$4,""),"") ->  | M88: =IF(YEAR(M$4)>='Input|General'!$G$13,IF(YEAR(M$4)<='Input|General'!$G$14,M$4,""),"") ->  | N88: =IF(YEAR(N$4)>='Input|General'!$G$13,IF(YEAR(N$4)<='Input|General'!$G$14,N$4,""),"") ->  | O88: =IF(YEAR(O$4)>='Input|General'!$G$13,IF(YEAR(O$4)<='Input|General'!$G$14,O$4,""),"") -> 2024-06-01 | P88: =IF(YEAR(P$4)>='Input|General'!$G$13,IF(YEAR(P$4)<='Input|General'!$G$14,P$4,""),"") -> 2025-06-01 | Q88: =IF(YEAR(Q$4)>='Input|General'!$G$13,IF(YEAR(Q$4)<='Input|General'!$G$14,Q$4,""),"") -> 2026-06-01 | R88: =IF(YEAR(R$4)>='Input|General'!$G$13,IF(YEAR(R$4)<='Input|General'!$G$14,R$4,""),"") -> 2027-06-01 | S88: =IF(YEAR(S$4)>='Input|General'!$G$13,IF(YEAR(S$4)<='Input|General'!$G$14,S$4,""),"") -> 2028-06-01
C90: ='Input|Step changes'!C28 -> 0 | D90: Calculated | E90: $millions | F90: =$F$8 -> 2023-06-01 | J90: ='Input|Step changes'!J28*IF('Input|Step changes'!$F28="nominal",LOOKUP($F90,Nominal_to_Real,'Input|Rate of change'!N$25:N$30),INDEX('Input|Rate of change'!$C$14:$O$21,MATCH('Input|Step changes'!$F28,'Input|Rate of change'!$C$14:$C$21,0),MATCH('Calc|Opex forecast'!$F90,'Input|Rate of change'!$C$14:$O$14,0)))*IF('Input|Step changes'!$E28="$millions",1000000,IF('Input|Step changes'!$E28="$000",1000,1))/IF($E90="$millions",1000000,IF($E90="$000",1000,1)) -> 0 | K90: ='Input|Step changes'!K28*IF('Input|Step changes'!$F28="nominal",LOOKUP($F90,Nominal_to_Real,'Input|Rate of change'!O$25:O$30),INDEX('Input|Rate of change'!$C$14:$O$21,MATCH('Input|Step changes'!$F28,'Input|Rate of change'!$C$14:$C$21,0),MATCH('Calc|Opex forecast'!$F90,'Input|Rate of change'!$C$14:$O$14,0)))*IF('Input|Step changes'!$E28="$millions",1000000,IF('Input|Step changes'!$E28="$000",1000,1))/IF($E90="$millions",1000000,IF($E90="$000",1000,1)) -> 0 | L90: ='Input|Step changes'!L28*IF('Input|Step changes'!$F28="nominal",LOOKUP($F90,Nominal_to_Real,'Input|Rate of change'!P$25:P$30),INDEX('Input|Rate of change'!$C$14:$O$21,MATCH('Input|Step changes'!$F28,'Input|Rate of change'!$C$14:$C$21,0),MATCH('Calc|Opex forecast'!$F90,'Input|Rate of change'!$C$14:$O$14,0)))*IF('Input|Step changes'!$E28="$millions",1000000,IF('Input|Step changes'!$E28="$000",1000,1))/IF($E90="$millions",1000000,IF($E90="$000",1000,1)) -> 0 | M90: ='Input|Step changes'!M28*IF('Input|Step changes'!$F28="nominal",LOOKUP($F90,Nominal_to_Real,'Input|Rate of change'!Q$25:Q$30),INDEX('Input|Rate of change'!$C$14:$O$21,MATCH('Input|Step changes'!$F28,'Input|Rate of change'!$C$14:$C$21,0),MATCH('Calc|Opex forecast'!$F90,'Input|Rate of change'!$C$14:$O$14,0)))*IF('Input|Step changes'!$E28="$millions",1000000,IF('Input|Step changes'!$E28="$000",1000,1))/IF($E90="$millions",1000000,IF($E90="$000",1000,1)) -> 0 | N90: ='Input|Step changes'!N28*IF('Input|Step changes'!$F28="nominal",LOOKUP($F90,Nominal_to_Real,'Input|Rate of change'!R$25:R$30),INDEX('Input|Rate of change'!$C$14:$O$21,MATCH('Input|Step changes'!$F28,'Input|Rate of change'!$C$14:$C$21,0),MATCH('Calc|Opex forecast'!$F90,'Input|Rate of change'!$C$14:$O$14,0)))*IF('Input|Step changes'!$E28="$millions",1000000,IF('Input|Step changes'!$E28="$000",1000,1))/IF($E90="$millions",1000000,IF($E90="$000",1000,1)) -> 0 | O90: ='Input|Step changes'!O28*IF('Input|Step changes'!$F28="nominal",LOOKUP($F90,Nominal_to_Real,'Input|Rate of change'!S$25:S$30),INDEX('Input|Rate of change'!$C$14:$O$21,MATCH('Input|Step changes'!$F28,'Input|Rate of change'!$C$14:$C$21,0),MATCH('Calc|Opex forecast'!$F90,'Input|Rate of change'!$C$14:$O$14,0)))*IF('Input|Step changes'!$E28="$millions",1000000,IF('Input|Step changes'!$E28="$000",1000,1))/IF($E90="$millions",1000000,IF($E90="$000",1000,1)) -> 0 | P90: ='Input|Step changes'!P28*IF('Input|Step changes'!$F28="nominal",LOOKUP($F90,Nominal_to_Real,'Input|Rate of change'!T$25:T$30),INDEX('Input|Rate of change'!$C$14:$O$21,MATCH('Input|Step changes'!$F28,'Input|Rate of change'!$C$14:$C$21,0),MATCH('Calc|Opex forecast'!$F90,'Input|Rate of change'!$C$14:$O$14,0)))*IF('Input|Step changes'!$E28="$millions",1000000,IF('Input|Step changes'!$E28="$000",1000,1))/IF($E90="$millions",1000000,IF($E90="$000",1000,1)) -> 0 | Q90: ='Input|Step changes'!Q28*IF('Input|Step changes'!$F28="nominal",LOOKUP($F90,Nominal_to_Real,'Input|Rate of change'!U$25:U$30),INDEX('Input|Rate of change'!$C$14:$O$21,MATCH('Input|Step changes'!$F28,'Input|Rate of change'!$C$14:$C$21,0),MATCH('Calc|Opex forecast'!$F90,'Input|Rate of change'!$C$14:$O$14,0)))*IF('Input|Step changes'!$E28="$millions",1000000,IF('Input|Step changes'!$E28="$000",1000,1))/IF($E90="$millions",1000000,IF($E90="$000",1000,1)) -> 0 | R90: ='Input|Step changes'!R28*IF('Input|Step changes'!$F28="nominal",LOOKUP($F90,Nominal_to_Real,'Input|Rate of change'!V$25:V$30),INDEX('Input|Rate of change'!$C$14:$O$21,MATCH('Input|Step changes'!$F28,'Input|Rate of change'!$C$14:$C$21,0),MATCH('Calc|Opex forecast'!$F90,'Input|Rate of change'!$C$14:$O$14,0)))*IF('Input|Step changes'!$E28="$millions",1000000,IF('Input|Step changes'!$E28="$000",1000,1))/IF($E90="$millions",1000000,IF($E90="$000",1000,1)) -> 0 | S90: ='Input|Step changes'!S28*IF('Input|Step changes'!$F28="nominal",LOOKUP($F90,Nominal_to_Real,'Input|Rate of change'!W$25:W$30),INDEX('Input|Rate of change'!$C$14:$O$21,MATCH('Input|Step changes'!$F28,'Input|Rate of change'!$C$14:$C$21,0),MATCH('Calc|Opex forecast'!$F90,'Input|Rate of change'!$C$14:$O$14,0)))*IF('Input|Step changes'!$E28="$millions",1000000,IF('Input|Step changes'!$E28="$000",1000,1))/IF($E90="$millions",1000000,IF($E90="$000",1000,1)) -> 0
C91: ='Input|Step changes'!C29 -> 0 | D91: Calculated | E91: $millions | F91: 2023-06-01 | J91: ='Input|Step changes'!J29*IF('Input|Step changes'!$F29="nominal",LOOKUP($F91,Nominal_to_Real,'Input|Rate of change'!N$25:N$30),INDEX('Input|Rate of change'!$C$14:$O$21,MATCH('Input|Step changes'!$F29,'Input|Rate of change'!$C$14:$C$21,0),MATCH('Calc|Opex forecast'!$F91,'Input|Rate of change'!$C$14:$O$14,0)))*IF('Input|Step changes'!$E29="$millions",1000000,IF('Input|Step changes'!$E29="$000",1000,1))/IF($E91="$millions",1000000,IF($E91="$000",1000,1)) -> 0 | K91: ='Input|Step changes'!K29*IF('Input|Step changes'!$F29="nominal",LOOKUP($F91,Nominal_to_Real,'Input|Rate of change'!O$25:O$30),INDEX('Input|Rate of change'!$C$14:$O$21,MATCH('Input|Step changes'!$F29,'Input|Rate of change'!$C$14:$C$21,0),MATCH('Calc|Opex forecast'!$F91,'Input|Rate of change'!$C$14:$O$14,0)))*IF('Input|Step changes'!$E29="$millions",1000000,IF('Input|Step changes'!$E29="$000",1000,1))/IF($E91="$millions",1000000,IF($E91="$000",1000,1)) -> 0 | L91: ='Input|Step changes'!L29*IF('Input|Step changes'!$F29="nominal",LOOKUP($F91,Nominal_to_Real,'Input|Rate of change'!P$25:P$30),INDEX('Input|Rate of change'!$C$14:$O$21,MATCH('Input|Step changes'!$F29,'Input|Rate of change'!$C$14:$C$21,0),MATCH('Calc|Opex forecast'!$F91,'Input|Rate of change'!$C$14:$O$14,0)))*IF('Input|Step changes'!$E29="$millions",1000000,IF('Input|Step changes'!$E29="$000",1000,1))/IF($E91="$millions",1000000,IF($E91="$000",1000,1)) -> 0 | M91: ='Input|Step changes'!M29*IF('Input|Step changes'!$F29="nominal",LOOKUP($F91,Nominal_to_Real,'Input|Rate of change'!Q$25:Q$30),INDEX('Input|Rate of change'!$C$14:$O$21,MATCH('Input|Step changes'!$F29,'Input|Rate of change'!$C$14:$C$21,0),MATCH('Calc|Opex forecast'!$F91,'Input|Rate of change'!$C$14:$O$14,0)))*IF('Input|Step changes'!$E29="$millions",1000000,IF('Input|Step changes'!$E29="$000",1000,1))/IF($E91="$millions",1000000,IF($E91="$000",1000,1)) -> 0 | N91: ='Input|Step changes'!N29*IF('Input|Step changes'!$F29="nominal",LOOKUP($F91,Nominal_to_Real,'Input|Rate of change'!R$25:R$30),INDEX('Input|Rate of change'!$C$14:$O$21,MATCH('Input|Step changes'!$F29,'Input|Rate of change'!$C$14:$C$21,0),MATCH('Calc|Opex forecast'!$F91,'Input|Rate of change'!$C$14:$O$14,0)))*IF('Input|Step changes'!$E29="$millions",1000000,IF('Input|Step changes'!$E29="$000",1000,1))/IF($E91="$millions",1000000,IF($E91="$000",1000,1)) -> 0 | O91: ='Input|Step changes'!O29*IF('Input|Step changes'!$F29="nominal",LOOKUP($F91,Nominal_to_Real,'Input|Rate of change'!S$25:S$30),INDEX('Input|Rate of change'!$C$14:$O$21,MATCH('Input|Step changes'!$F29,'Input|Rate of change'!$C$14:$C$21,0),MATCH('Calc|Opex forecast'!$F91,'Input|Rate of change'!$C$14:$O$14,0)))*IF('Input|Step changes'!$E29="$millions",1000000,IF('Input|Step changes'!$E29="$000",1000,1))/IF($E91="$millions",1000000,IF($E91="$000",1000,1)) -> 0 | P91: ='Input|Step changes'!P29*IF('Input|Step changes'!$F29="nominal",LOOKUP($F91,Nominal_to_Real,'Input|Rate of change'!T$25:T$30),INDEX('Input|Rate of change'!$C$14:$O$21,MATCH('Input|Step changes'!$F29,'Input|Rate of change'!$C$14:$C$21,0),MATCH('Calc|Opex forecast'!$F91,'Input|Rate of change'!$C$14:$O$14,0)))*IF('Input|Step changes'!$E29="$millions",1000000,IF('Input|Step changes'!$E29="$000",1000,1))/IF($E91="$millions",1000000,IF($E91="$000",1000,1)) -> 0 | Q91: ='Input|Step changes'!Q29*IF('Input|Step changes'!$F29="nominal",LOOKUP($F91,Nominal_to_Real,'Input|Rate of change'!U$25:U$30),INDEX('Input|Rate of change'!$C$14:$O$21,MATCH('Input|Step changes'!$F29,'Input|Rate of change'!$C$14:$C$21,0),MATCH('Calc|Opex forecast'!$F91,'Input|Rate of change'!$C$14:$O$14,0)))*IF('Input|Step changes'!$E29="$millions",1000000,IF('Input|Step changes'!$E29="$000",1000,1))/IF($E91="$millions",1000000,IF($E91="$000",1000,1)) -> 0 | R91: ='Input|Step changes'!R29*IF('Input|Step changes'!$F29="nominal",LOOKUP($F91,Nominal_to_Real,'Input|Rate of change'!V$25:V$30),INDEX('Input|Rate of change'!$C$14:$O$21,MATCH('Input|Step changes'!$F29,'Input|Rate of change'!$C$14:$C$21,0),MATCH('Calc|Opex forecast'!$F91,'Input|Rate of change'!$C$14:$O$14,0)))*IF('Input|Step changes'!$E29="$millions",1000000,IF('Input|Step changes'!$E29="$000",1000,1))/IF($E91="$millions",1000000,IF($E91="$000",1000,1)) -> 0 | S91: ='Input|Step changes'!S29*IF('Input|Step changes'!$F29="nominal",LOOKUP($F91,Nominal_to_Real,'Input|Rate of change'!W$25:W$30),INDEX('Input|Rate of change'!$C$14:$O$21,MATCH('Input|Step changes'!$F29,'Input|Rate of change'!$C$14:$C$21,0),MATCH('Calc|Opex forecast'!$F91,'Input|Rate of change'!$C$14:$O$14,0)))*IF('Input|Step changes'!$E29="$millions",1000000,IF('Input|Step changes'!$E29="$000",1000,1))/IF($E91="$millions",1000000,IF($E91="$000",1000,1)) -> 0
C92: ='Input|Step changes'!C30 -> 0 | D92: Calculated | E92: $millions | F92: 2023-06-01 | J92: ='Input|Step changes'!J30*IF('Input|Step changes'!$F30="nominal",LOOKUP($F92,Nominal_to_Real,'Input|Rate of change'!N$25:N$30),INDEX('Input|Rate of change'!$C$14:$O$21,MATCH('Input|Step changes'!$F30,'Input|Rate of change'!$C$14:$C$21,0),MATCH('Calc|Opex forecast'!$F92,'Input|Rate of change'!$C$14:$O$14,0)))*IF('Input|Step changes'!$E30="$millions",1000000,IF('Input|Step changes'!$E30="$000",1000,1))/IF($E92="$millions",1000000,IF($E92="$000",1000,1)) -> 0 | K92: ='Input|Step changes'!K30*IF('Input|Step changes'!$F30="nominal",LOOKUP($F92,Nominal_to_Real,'Input|Rate of change'!O$25:O$30),INDEX('Input|Rate of change'!$C$14:$O$21,MATCH('Input|Step changes'!$F30,'Input|Rate of change'!$C$14:$C$21,0),MATCH('Calc|Opex forecast'!$F92,'Input|Rate of change'!$C$14:$O$14,0)))*IF('Input|Step changes'!$E30="$millions",1000000,IF('Input|Step changes'!$E30="$000",1000,1))/IF($E92="$millions",1000000,IF($E92="$000",1000,1)) -> 0 | L92: ='Input|Step changes'!L30*IF('Input|Step changes'!$F30="nominal",LOOKUP($F92,Nominal_to_Real,'Input|Rate of change'!P$25:P$30),INDEX('Input|Rate of change'!$C$14:$O$21,MATCH('Input|Step changes'!$F30,'Input|Rate of change'!$C$14:$C$21,0),MATCH('Calc|Opex forecast'!$F92,'Input|Rate of change'!$C$14:$O$14,0)))*IF('Input|Step changes'!$E30="$millions",1000000,IF('Input|Step changes'!$E30="$000",1000,1))/IF($E92="$millions",1000000,IF($E92="$000",1000,1)) -> 0 | M92: ='Input|Step changes'!M30*IF('Input|Step changes'!$F30="nominal",LOOKUP($F92,Nominal_to_Real,'Input|Rate of change'!Q$25:Q$30),INDEX('Input|Rate of change'!$C$14:$O$21,MATCH('Input|Step changes'!$F30,'Input|Rate of change'!$C$14:$C$21,0),MATCH('Calc|Opex forecast'!$F92,'Input|Rate of change'!$C$14:$O$14,0)))*IF('Input|Step changes'!$E30="$millions",1000000,IF('Input|Step changes'!$E30="$000",1000,1))/IF($E92="$millions",1000000,IF($E92="$000",1000,1)) -> 0 | N92: ='Input|Step changes'!N30*IF('Input|Step changes'!$F30="nominal",LOOKUP($F92,Nominal_to_Real,'Input|Rate of change'!R$25:R$30),INDEX('Input|Rate of change'!$C$14:$O$21,MATCH('Input|Step changes'!$F30,'Input|Rate of change'!$C$14:$C$21,0),MATCH('Calc|Opex forecast'!$F92,'Input|Rate of change'!$C$14:$O$14,0)))*IF('Input|Step changes'!$E30="$millions",1000000,IF('Input|Step changes'!$E30="$000",1000,1))/IF($E92="$millions",1000000,IF($E92="$000",1000,1)) -> 0 | O92: ='Input|Step changes'!O30*IF('Input|Step changes'!$F30="nominal",LOOKUP($F92,Nominal_to_Real,'Input|Rate of change'!S$25:S$30),INDEX('Input|Rate of change'!$C$14:$O$21,MATCH('Input|Step changes'!$F30,'Input|Rate of change'!$C$14:$C$21,0),MATCH('Calc|Opex forecast'!$F92,'Input|Rate of change'!$C$14:$O$14,0)))*IF('Input|Step changes'!$E30="$millions",1000000,IF('Input|Step changes'!$E30="$000",1000,1))/IF($E92="$millions",1000000,IF($E92="$000",1000,1)) -> 0 | P92: ='Input|Step changes'!P30*IF('Input|Step changes'!$F30="nominal",LOOKUP($F92,Nominal_to_Real,'Input|Rate of change'!T$25:T$30),INDEX('Input|Rate of change'!$C$14:$O$21,MATCH('Input|Step changes'!$F30,'Input|Rate of change'!$C$14:$C$21,0),MATCH('Calc|Opex forecast'!$F92,'Input|Rate of change'!$C$14:$O$14,0)))*IF('Input|Step changes'!$E30="$millions",1000000,IF('Input|Step changes'!$E30="$000",1000,1))/IF($E92="$millions",1000000,IF($E92="$000",1000,1)) -> 0 | Q92: ='Input|Step changes'!Q30*IF('Input|Step changes'!$F30="nominal",LOOKUP($F92,Nominal_to_Real,'Input|Rate of change'!U$25:U$30),INDEX('Input|Rate of change'!$C$14:$O$21,MATCH('Input|Step changes'!$F30,'Input|Rate of change'!$C$14:$C$21,0),MATCH('Calc|Opex forecast'!$F92,'Input|Rate of change'!$C$14:$O$14,0)))*IF('Input|Step changes'!$E30="$millions",1000000,IF('Input|Step changes'!$E30="$000",1000,1))/IF($E92="$millions",1000000,IF($E92="$000",1000,1)) -> 0 | R92: ='Input|Step changes'!R30*IF('Input|Step changes'!$F30="nominal",LOOKUP($F92,Nominal_to_Real,'Input|Rate of change'!V$25:V$30),INDEX('Input|Rate of change'!$C$14:$O$21,MATCH('Input|Step changes'!$F30,'Input|Rate of change'!$C$14:$C$21,0),MATCH('Calc|Opex forecast'!$F92,'Input|Rate of change'!$C$14:$O$14,0)))*IF('Input|Step changes'!$E30="$millions",1000000,IF('Input|Step changes'!$E30="$000",1000,1))/IF($E92="$millions",1000000,IF($E92="$000",1000,1)) -> 0 | S92: ='Input|Step changes'!S30*IF('Input|Step changes'!$F30="nominal",LOOKUP($F92,Nominal_to_Real,'Input|Rate of change'!W$25:W$30),INDEX('Input|Rate of change'!$C$14:$O$21,MATCH('Input|Step changes'!$F30,'Input|Rate of change'!$C$14:$C$21,0),MATCH('Calc|Opex forecast'!$F92,'Input|Rate of change'!$C$14:$O$14,0)))*IF('Input|Step changes'!$E30="$millions",1000000,IF('Input|Step changes'!$E30="$000",1000,1))/IF($E92="$millions",1000000,IF($E92="$000",1000,1)) -> 0
C94: Total category specific forecasts | D94: Calculated | E94: =$E$8 -> $millions | F94: =$F$8 -> 2023-06-01 | J94: =SUM(J89:J93) -> 0 | K94: =SUM(K89:K93) -> 0 | L94: 0 | M94: 0 | N94: 0 | O94: 0 | P94: 0 | Q94: 0 | R94: 0 | S94: 0
B96: Calc | Total forecast operating expenditure
J98: =IF(YEAR(J$4)>='Input|General'!$G$13,IF(YEAR(J$4)<='Input|General'!$G$14,J$4,""),"") ->  | K98: =IF(YEAR(K$4)>='Input|General'!$G$13,IF(YEAR(K$4)<='Input|General'!$G$14,K$4,""),"") ->  | L98: =IF(YEAR(L$4)>='Input|General'!$G$13,IF(YEAR(L$4)<='Input|General'!$G$14,L$4,""),"") ->  | M98: =IF(YEAR(M$4)>='Input|General'!$G$13,IF(YEAR(M$4)<='Input|General'!$G$14,M$4,""),"") ->  | N98: =IF(YEAR(N$4)>='Input|General'!$G$13,IF(YEAR(N$4)<='Input|General'!$G$14,N$4,""),"") ->  | O98: =IF(YEAR(O$4)>='Input|General'!$G$13,IF(YEAR(O$4)<='Input|General'!$G$14,O$4,""),"") -> 2024-06-01 | P98: =IF(YEAR(P$4)>='Input|General'!$G$13,IF(YEAR(P$4)<='Input|General'!$G$14,P$4,""),"") -> 2025-06-01 | Q98: =IF(YEAR(Q$4)>='Input|General'!$G$13,IF(YEAR(Q$4)<='Input|General'!$G$14,Q$4,""),"") -> 2026-06-01 | R98: =IF(YEAR(R$4)>='Input|General'!$G$13,IF(YEAR(R$4)<='Input|General'!$G$14,R$4,""),"") -> 2027-06-01 | S98: =IF(YEAR(S$4)>='Input|General'!$G$13,IF(YEAR(S$4)<='Input|General'!$G$14,S$4,""),"") -> 2028-06-01
C100: Total forecast opex, excluding category specific forecasts | D100: Calculated | E100: =$E$8 -> $millions | F100: =$F$8 -> 2023-06-01 | J100: =IF(YEAR(J$4)>=FPFirstYear,IF(YEAR(J$4)<=FPLastYear,IF(ISBLANK(J98),"",(1+J68)*SUM($J54:$S54)+J84),""),"") ->  | O100: 120.8203622 | P100: 124.1033858 | Q100: 124.2913282 | R100: 124.3181061 | S100: 124.2836985
C101: Total forecast opex, excluding debt raising costs | D101: Calculated | E101: =$E$8 -> $millions | F101: 2023-06-01 | J101: =IF(YEAR(J$4)>=FPFirstYear,IF(YEAR(J$4)<=FPLastYear,IF(ISBLANK(J98),"",(1+J68)*SUM($J54:$S54)+J84+J94),""),"") ->  | O101: 120.8203622 | P101: 124.1033858 | Q101: 124.2913282 | R101: 124.3181061 | S101: 124.2836985
C102: Total forecast opex, including debt raising costs | D102: Calculated | E102: =$E$8 -> $millions | F102: 2023-06-01 | J102: =IF(YEAR(J$4)>=FPFirstYear,IF(YEAR(J$4)<=FPLastYear,J101+'Input|Step changes'!J38,""),"") ->  | K102: =IF(YEAR(K$4)>=FPFirstYear,IF(YEAR(K$4)<=FPLastYear,K101+'Input|Step changes'!K38,""),"") ->  | L102: =IF(YEAR(L$4)>=FPFirstYear,IF(YEAR(L$4)<=FPLastYear,L101+'Input|Step changes'!L38,""),"") ->  | M102: =IF(YEAR(M$4)>=FPFirstYear,IF(YEAR(M$4)<=FPLastYear,M101+'Input|Step changes'!M38,""),"") ->  | N102: =IF(YEAR(N$4)>=FPFirstYear,IF(YEAR(N$4)<=FPLastYear,N101+'Input|Step changes'!N38,""),"") ->  | O102: =IF(YEAR(O$4)>=FPFirstYear,IF(YEAR(O$4)<=FPLastYear,O101+'Input|Step changes'!O38,""),"") -> 120.8203622 | P102: =IF(YEAR(P$4)>=FPFirstYear,IF(YEAR(P$4)<=FPLastYear,P101+'Input|Step changes'!P38,""),"") -> 124.1033858 | Q102: =IF(YEAR(Q$4)>=FPFirstYear,IF(YEAR(Q$4)<=FPLastYear,Q101+'Input|Step changes'!Q38,""),"") -> 124.2913282 | R102: =IF(YEAR(R$4)>=FPFirstYear,IF(YEAR(R$4)<=FPLastYear,R101+'Input|Step changes'!R38,""),"") -> 124.3181061 | S102: =IF(YEAR(S$4)>=FPFirstYear,IF(YEAR(S$4)<=FPLastYear,S101+'Input|Step changes'!S38,""),"") -> 124.2836985
B104: End

Sheet Output|Models
B1: =Index!$B$1 -> AER opex model | J1: Back to Index | L1: Key: | M1: Input | N1: External Link | O1: Internal Link | R1: Worksheet check: | S1: n/a | U1: Overall Check: | V1: ='Check|List'!$S$1 -> Ok
B2: =Index!$C$14 -> Output | Models
J3: Year ending
D4: Source | E4: Unit | F4: Basis | J4: =DATE(PPFirstYear,MONTH('Input|General'!$G$9),1) -> 2019-06-01 | K4: =DATE(PPFirstYear+1,MONTH('Input|General'!$G$9),1) -> 2020-06-01 | L4: =DATE(PPFirstYear+2,MONTH('Input|General'!$G$9),1) -> 2021-06-01 | M4: =DATE(PPFirstYear+3,MONTH('Input|General'!$G$9),1) -> 2022-06-01 | N4: =DATE(PPFirstYear+4,MONTH('Input|General'!$G$9),1) -> 2023-06-01 | O4: =DATE(PPFirstYear+5,MONTH('Input|General'!$G$9),1) -> 2024-06-01 | P4: =DATE(PPFirstYear+6,MONTH('Input|General'!$G$9),1) -> 2025-06-01 | Q4: =DATE(PPFirstYear+7,MONTH('Input|General'!$G$9),1) -> 2026-06-01 | R4: =DATE(PPFirstYear+8,MONTH('Input|General'!$G$9),1) -> 2027-06-01 | S4: =DATE(PPFirstYear+9,MONTH('Input|General'!$G$9),1) -> 2028-06-01
B8: Inputs for Post Tax Revenue Model | E8: $millions | F8: =DATE(PPLastYear,MONTH('Input|General'!$G$9),1) -> 2023-06-01 | J8: Note. The dollar base should be consistent with the post tax revenue model
C11: Operating expenditure | D11: Source | E11: Unit | F11: Basis | J11: =IF(YEAR(J$4)>='Input|General'!$G$13,IF(YEAR(J$4)<='Input|General'!$G$14,J$4,""),"") ->  | K11: =IF(YEAR(K$4)>='Input|General'!$G$13,IF(YEAR(K$4)<='Input|General'!$G$14,K$4,""),"") ->  | L11: =IF(YEAR(L$4)>='Input|General'!$G$13,IF(YEAR(L$4)<='Input|General'!$G$14,L$4,""),"") ->  | M11: =IF(YEAR(M$4)>='Input|General'!$G$13,IF(YEAR(M$4)<='Input|General'!$G$14,M$4,""),"") ->  | N11: =IF(YEAR(N$4)>='Input|General'!$G$13,IF(YEAR(N$4)<='Input|General'!$G$14,N$4,""),"") ->  | O11: =IF(YEAR(O$4)>='Input|General'!$G$13,IF(YEAR(O$4)<='Input|General'!$G$14,O$4,""),"") -> 2024-06-01 | P11: =IF(YEAR(P$4)>='Input|General'!$G$13,IF(YEAR(P$4)<='Input|General'!$G$14,P$4,""),"") -> 2025-06-01 | Q11: =IF(YEAR(Q$4)>='Input|General'!$G$13,IF(YEAR(Q$4)<='Input|General'!$G$14,Q$4,""),"") -> 2026-06-01 | R11: =IF(YEAR(R$4)>='Input|General'!$G$13,IF(YEAR(R$4)<='Input|General'!$G$14,R$4,""),"") -> 2027-06-01 | S11: =IF(YEAR(S$4)>='Input|General'!$G$13,IF(YEAR(S$4)<='Input|General'!$G$14,S$4,""),"") -> 2028-06-01 | U11: Notes
C13: ='Calc|Opex forecast'!C100 -> Total forecast opex, excluding category specific forecasts | D13: Calc | Opex forecast | E13: =$E$8 -> $millions | F13: =$F$8 -> 2023-06-01 | J13: =IF(J11="",0,'Calc|Opex forecast'!J100*IF('Calc|Opex forecast'!$F$100="nominal",LOOKUP($F13,Nominal_to_Real,'Input|Rate of change'!P$25:P$30),INDEX('Input|Rate of change'!$C$14:$O$21,MATCH('Calc|Opex forecast'!$F$100,'Input|Rate of change'!$C$14:$C$21,0),MATCH('Output|Models'!$F13,'Input|Rate of change'!$C$14:$O$14,0)))*IF('Calc|Opex forecast'!$E$100="$millions",1000000,IF('Calc|Opex forecast'!$E$100="$000",1000,1))/IF($E13="$millions",1000000,IF($E13="$000",1000,1))) -> 0 | K13: =IF(K11="",0,'Calc|Opex forecast'!K100*IF('Calc|Opex forecast'!$F$100="nominal",LOOKUP($F13,Nominal_to_Real,'Input|Rate of change'!Q$25:Q$30),INDEX('Input|Rate of change'!$C$14:$O$21,MATCH('Calc|Opex forecast'!$F$100,'Input|Rate of change'!$C$14:$C$21,0),MATCH('Output|Models'!$F13,'Input|Rate of change'!$C$14:$O$14,0)))*IF('Calc|Opex forecast'!$E$100="$millions",1000000,IF('Calc|Opex forecast'!$E$100="$000",1000,1))/IF($E13="$millions",1000000,IF($E13="$000",1000,1))) -> 0 | L13: =IF(L11="",0,'Calc|Opex forecast'!L100*IF('Calc|Opex forecast'!$F$100="nominal",LOOKUP($F13,Nominal_to_Real,'Input|Rate of change'!R$25:R$30),INDEX('Input|Rate of change'!$C$14:$O$21,MATCH('Calc|Opex forecast'!$F$100,'Input|Rate of change'!$C$14:$C$21,0),MATCH('Output|Models'!$F13,'Input|Rate of change'!$C$14:$O$14,0)))*IF('Calc|Opex forecast'!$E$100="$millions",1000000,IF('Calc|Opex forecast'!$E$100="$000",1000,1))/IF($E13="$millions",1000000,IF($E13="$000",1000,1))) -> 0 | M13: =IF(M11="",0,'Calc|Opex forecast'!M100*IF('Calc|Opex forecast'!$F$100="nominal",LOOKUP($F13,Nominal_to_Real,'Input|Rate of change'!S$25:S$30),INDEX('Input|Rate of change'!$C$14:$O$21,MATCH('Calc|Opex forecast'!$F$100,'Input|Rate of change'!$C$14:$C$21,0),MATCH('Output|Models'!$F13,'Input|Rate of change'!$C$14:$O$14,0)))*IF('Calc|Opex forecast'!$E$100="$millions",1000000,IF('Calc|Opex forecast'!$E$100="$000",1000,1))/IF($E13="$millions",1000000,IF($E13="$000",1000,1))) -> 0 | N13: =IF(N11="",0,'Calc|Opex forecast'!N100*IF('Calc|Opex forecast'!$F$100="nominal",LOOKUP($F13,Nominal_to_Real,'Input|Rate of change'!T$25:T$30),INDEX('Input|Rate of change'!$C$14:$O$21,MATCH('Calc|Opex forecast'!$F$100,'Input|Rate of change'!$C$14:$C$21,0),MATCH('Output|Models'!$F13,'Input|Rate of change'!$C$14:$O$14,0)))*IF('Calc|Opex forecast'!$E$100="$millions",1000000,IF('Calc|Opex forecast'!$E$100="$000",1000,1))/IF($E13="$millions",1000000,IF($E13="$000",1000,1))) -> 0 | O13: =IF(O11="",0,'Calc|Opex forecast'!O100*IF('Calc|Opex forecast'!$F$100="nominal",LOOKUP($F13,Nominal_to_Real,'Input|Rate of change'!U$25:U$30),INDEX('Input|Rate of change'!$C$14:$O$21,MATCH('Calc|Opex forecast'!$F$100,'Input|Rate of change'!$C$14:$C$21,0),MATCH('Output|Models'!$F13,'Input|Rate of change'!$C$14:$O$14,0)))*IF('Calc|Opex forecast'!$E$100="$millions",1000000,IF('Calc|Opex forecast'!$E$100="$000",1000,1))/IF($E13="$millions",1000000,IF($E13="$000",1000,1))) -> 120.8203622 | P13: =IF(P11="",0,'Calc|Opex forecast'!P100*IF('Calc|Opex forecast'!$F$100="nominal",LOOKUP($F13,Nominal_to_Real,'Input|Rate of change'!V$25:V$30),INDEX('Input|Rate of change'!$C$14:$O$21,MATCH('Calc|Opex forecast'!$F$100,'Input|Rate of change'!$C$14:$C$21,0),MATCH('Output|Models'!$F13,'Input|Rate of change'!$C$14:$O$14,0)))*IF('Calc|Opex forecast'!$E$100="$millions",1000000,IF('Calc|Opex forecast'!$E$100="$000",1000,1))/IF($E13="$millions",1000000,IF($E13="$000",1000,1))) -> 124.1033858 | Q13: =IF(Q11="",0,'Calc|Opex forecast'!Q100*IF('Calc|Opex forecast'!$F$100="nominal",LOOKUP($F13,Nominal_to_Real,'Input|Rate of change'!W$25:W$30),INDEX('Input|Rate of change'!$C$14:$O$21,MATCH('Calc|Opex forecast'!$F$100,'Input|Rate of change'!$C$14:$C$21,0),MATCH('Output|Models'!$F13,'Input|Rate of change'!$C$14:$O$14,0)))*IF('Calc|Opex forecast'!$E$100="$millions",1000000,IF('Calc|Opex forecast'!$E$100="$000",1000,1))/IF($E13="$millions",1000000,IF($E13="$000",1000,1))) -> 124.2913282 | R13: =IF(R11="",0,'Calc|Opex forecast'!R100*IF('Calc|Opex forecast'!$F$100="nominal",LOOKUP($F13,Nominal_to_Real,'Input|Rate of change'!X$25:X$30),INDEX('Input|Rate of change'!$C$14:$O$21,MATCH('Calc|Opex forecast'!$F$100,'Input|Rate of change'!$C$14:$C$21,0),MATCH('Output|Models'!$F13,'Input|Rate of change'!$C$14:$O$14,0)))*IF('Calc|Opex forecast'!$E$100="$millions",1000000,IF('Calc|Opex forecast'!$E$100="$000",1000,1))/IF($E13="$millions",1000000,IF($E13="$000",1000,1))) -> 124.3181061 | S13: =IF(S11="",0,'Calc|Opex forecast'!S100*IF('Calc|Opex forecast'!$F$100="nominal",LOOKUP($F13,Nominal_to_Real,'Input|Rate of change'!Y$25:Y$30),INDEX('Input|Rate of change'!$C$14:$O$21,MATCH('Calc|Opex forecast'!$F$100,'Input|Rate of change'!$C$14:$C$21,0),MATCH('Output|Models'!$F13,'Input|Rate of change'!$C$14:$O$14,0)))*IF('Calc|Opex forecast'!$E$100="$millions",1000000,IF('Calc|Opex forecast'!$E$100="$000",1000,1))/IF($E13="$millions",1000000,IF($E13="$000",1000,1))) -> 124.2836985
C14: ='Input|Step changes'!C28 -> 0 | D14: Calc | Opex forecast | E14: =$E$8 -> $millions | F14: =$F$8 -> 2023-06-01 | J14: =IF(J$11="",0,'Calc|Opex forecast'!J90*IF('Calc|Opex forecast'!$F90="nominal",LOOKUP($F14,Nominal_to_Real,'Input|Rate of change'!P$25:P$30),INDEX('Input|Rate of change'!$C$14:$O$21,MATCH('Calc|Opex forecast'!$F90,'Input|Rate of change'!$C$14:$C$21,0),MATCH('Output|Models'!$F14,'Input|Rate of change'!$C$14:$O$14,0)))*IF('Calc|Opex forecast'!$E90="$millions",1000000,IF('Calc|Opex forecast'!$E90="$000",1000,1))/IF($E14="$millions",1000000,IF($E14="$000",1000,1))) -> 0 | K14: =IF(K$11="",0,'Calc|Opex forecast'!K90*IF('Calc|Opex forecast'!$F90="nominal",LOOKUP($F14,Nominal_to_Real,'Input|Rate of change'!Q$25:Q$30),INDEX('Input|Rate of change'!$C$14:$O$21,MATCH('Calc|Opex forecast'!$F90,'Input|Rate of change'!$C$14:$C$21,0),MATCH('Output|Models'!$F14,'Input|Rate of change'!$C$14:$O$14,0)))*IF('Calc|Opex forecast'!$E90="$millions",1000000,IF('Calc|Opex forecast'!$E90="$000",1000,1))/IF($E14="$millions",1000000,IF($E14="$000",1000,1))) -> 0 | L14: =IF(L$11="",0,'Calc|Opex forecast'!L90*IF('Calc|Opex forecast'!$F90="nominal",LOOKUP($F14,Nominal_to_Real,'Input|Rate of change'!R$25:R$30),INDEX('Input|Rate of change'!$C$14:$O$21,MATCH('Calc|Opex forecast'!$F90,'Input|Rate of change'!$C$14:$C$21,0),MATCH('Output|Models'!$F14,'Input|Rate of change'!$C$14:$O$14,0)))*IF('Calc|Opex forecast'!$E90="$millions",1000000,IF('Calc|Opex forecast'!$E90="$000",1000,1))/IF($E14="$millions",1000000,IF($E14="$000",1000,1))) -> 0 | M14: =IF(M$11="",0,'Calc|Opex forecast'!M90*IF('Calc|Opex forecast'!$F90="nominal",LOOKUP($F14,Nominal_to_Real,'Input|Rate of change'!S$25:S$30),INDEX('Input|Rate of change'!$C$14:$O$21,MATCH('Calc|Opex forecast'!$F90,'Input|Rate of change'!$C$14:$C$21,0),MATCH('Output|Models'!$F14,'Input|Rate of change'!$C$14:$O$14,0)))*IF('Calc|Opex forecast'!$E90="$millions",1000000,IF('Calc|Opex forecast'!$E90="$000",1000,1))/IF($E14="$millions",1000000,IF($E14="$000",1000,1))) -> 0 | N14: =IF(N$11="",0,'Calc|Opex forecast'!N90*IF('Calc|Opex forecast'!$F90="nominal",LOOKUP($F14,Nominal_to_Real,'Input|Rate of change'!T$25:T$30),INDEX('Input|Rate of change'!$C$14:$O$21,MATCH('Calc|Opex forecast'!$F90,'Input|Rate of change'!$C$14:$C$21,0),MATCH('Output|Models'!$F14,'Input|Rate of change'!$C$14:$O$14,0)))*IF('Calc|Opex forecast'!$E90="$millions",1000000,IF('Calc|Opex forecast'!$E90="$000",1000,1))/IF($E14="$millions",1000000,IF($E14="$000",1000,1))) -> 0 | O14: =IF(O$11="",0,'Calc|Opex forecast'!O90*IF('Calc|Opex forecast'!$F90="nominal",LOOKUP($F14,Nominal_to_Real,'Input|Rate of change'!U$25:U$30),INDEX('Input|Rate of change'!$C$14:$O$21,MATCH('Calc|Opex forecast'!$F90,'Input|Rate of change'!$C$14:$C$21,0),MATCH('Output|Models'!$F14,'Input|Rate of change'!$C$14:$O$14,0)))*IF('Calc|Opex forecast'!$E90="$millions",1000000,IF('Calc|Opex forecast'!$E90="$000",1000,1))/IF($E14="$millions",1000000,IF($E14="$000",1000,1))) -> 0 | P14: =IF(P$11="",0,'Calc|Opex forecast'!P90*IF('Calc|Opex forecast'!$F90="nominal",LOOKUP($F14,Nominal_to_Real,'Input|Rate of change'!V$25:V$30),INDEX('Input|Rate of change'!$C$14:$O$21,MATCH('Calc|Opex forecast'!$F90,'Input|Rate of change'!$C$14:$C$21,0),MATCH('Output|Models'!$F14,'Input|Rate of change'!$C$14:$O$14,0)))*IF('Calc|Opex forecast'!$E90="$millions",1000000,IF('Calc|Opex forecast'!$E90="$000",1000,1))/IF($E14="$millions",1000000,IF($E14="$000",1000,1))) -> 0 | Q14: =IF(Q$11="",0,'Calc|Opex forecast'!Q90*IF('Calc|Opex forecast'!$F90="nominal",LOOKUP($F14,Nominal_to_Real,'Input|Rate of change'!W$25:W$30),INDEX('Input|Rate of change'!$C$14:$O$21,MATCH('Calc|Opex forecast'!$F90,'Input|Rate of change'!$C$14:$C$21,0),MATCH('Output|Models'!$F14,'Input|Rate of change'!$C$14:$O$14,0)))*IF('Calc|Opex forecast'!$E90="$millions",1000000,IF('Calc|Opex forecast'!$E90="$000",1000,1))/IF($E14="$millions",1000000,IF($E14="$000",1000,1))) -> 0 | R14: =IF(R$11="",0,'Calc|Opex forecast'!R90*IF('Calc|Opex forecast'!$F90="nominal",LOOKUP($F14,Nominal_to_Real,'Input|Rate of change'!X$25:X$30),INDEX('Input|Rate of change'!$C$14:$O$21,MATCH('Calc|Opex forecast'!$F90,'Input|Rate of change'!$C$14:$C$21,0),MATCH('Output|Models'!$F14,'Input|Rate of change'!$C$14:$O$14,0)))*IF('Calc|Opex forecast'!$E90="$millions",1000000,IF('Calc|Opex forecast'!$E90="$000",1000,1))/IF($E14="$millions",1000000,IF($E14="$000",1000,1))) -> 0 | S14: =IF(S$11="",0,'Calc|Opex forecast'!S90*IF('Calc|Opex forecast'!$F90="nominal",LOOKUP($F14,Nominal_to_Real,'Input|Rate of change'!Y$25:Y$30),INDEX('Input|Rate of change'!$C$14:$O$21,MATCH('Calc|Opex forecast'!$F90,'Input|Rate of change'!$C$14:$C$21,0),MATCH('Output|Models'!$F14,'Input|Rate of change'!$C$14:$O$14,0)))*IF('Calc|Opex forecast'!$E90="$millions",1000000,IF('Calc|Opex forecast'!$E90="$000",1000,1))/IF($E14="$millions",1000000,IF($E14="$000",1000,1))) -> 0
C15: ='Input|Step changes'!C29 -> 0 | D15: Calc | Opex forecast | E15: $millions | F15: 2023-06-01 | J15: =IF(J$11="",0,'Calc|Opex forecast'!J91*IF('Calc|Opex forecast'!$F91="nominal",LOOKUP($F15,Nominal_to_Real,'Input|Rate of change'!P$25:P$30),INDEX('Input|Rate of change'!$C$14:$O$21,MATCH('Calc|Opex forecast'!$F91,'Input|Rate of change'!$C$14:$C$21,0),MATCH('Output|Models'!$F15,'Input|Rate of change'!$C$14:$O$14,0)))*IF('Calc|Opex forecast'!$E91="$millions",1000000,IF('Calc|Opex forecast'!$E91="$000",1000,1))/IF($E15="$millions",1000000,IF($E15="$000",1000,1))) -> 0 | K15: =IF(K$11="",0,'Calc|Opex forecast'!K91*IF('Calc|Opex forecast'!$F91="nominal",LOOKUP($F15,Nominal_to_Real,'Input|Rate of change'!Q$25:Q$30),INDEX('Input|Rate of change'!$C$14:$O$21,MATCH('Calc|Opex forecast'!$F91,'Input|Rate of change'!$C$14:$C$21,0),MATCH('Output|Models'!$F15,'Input|Rate of change'!$C$14:$O$14,0)))*IF('Calc|Opex forecast'!$E91="$millions",1000000,IF('Calc|Opex forecast'!$E91="$000",1000,1))/IF($E15="$millions",1000000,IF($E15="$000",1000,1))) -> 0 | L15: =IF(L$11="",0,'Calc|Opex forecast'!L91*IF('Calc|Opex forecast'!$F91="nominal",LOOKUP($F15,Nominal_to_Real,'Input|Rate of change'!R$25:R$30),INDEX('Input|Rate of change'!$C$14:$O$21,MATCH('Calc|Opex forecast'!$F91,'Input|Rate of change'!$C$14:$C$21,0),MATCH('Output|Models'!$F15,'Input|Rate of change'!$C$14:$O$14,0)))*IF('Calc|Opex forecast'!$E91="$millions",1000000,IF('Calc|Opex forecast'!$E91="$000",1000,1))/IF($E15="$millions",1000000,IF($E15="$000",1000,1))) -> 0 | M15: =8/5 -> 1.6 | N15: =IF(N$11="",0,'Calc|Opex forecast'!N91*IF('Calc|Opex forecast'!$F91="nominal",LOOKUP($F15,Nominal_to_Real,'Input|Rate of change'!T$25:T$30),INDEX('Input|Rate of change'!$C$14:$O$21,MATCH('Calc|Opex forecast'!$F91,'Input|Rate of change'!$C$14:$C$21,0),MATCH('Output|Models'!$F15,'Input|Rate of change'!$C$14:$O$14,0)))*IF('Calc|Opex forecast'!$E91="$millions",1000000,IF('Calc|Opex forecast'!$E91="$000",1000,1))/IF($E15="$millions",1000000,IF($E15="$000",1000,1))) -> 0 | O15: =IF(O$11="",0,'Calc|Opex forecast'!O91*IF('Calc|Opex forecast'!$F91="nominal",LOOKUP($F15,Nominal_to_Real,'Input|Rate of change'!U$25:U$30),INDEX('Input|Rate of change'!$C$14:$O$21,MATCH('Calc|Opex forecast'!$F91,'Input|Rate of change'!$C$14:$C$21,0),MATCH('Output|Models'!$F15,'Input|Rate of change'!$C$14:$O$14,0)))*IF('Calc|Opex forecast'!$E91="$millions",1000000,IF('Calc|Opex forecast'!$E91="$000",1000,1))/IF($E15="$millions",1000000,IF($E15="$000",1000,1))) -> 0 | P15: =IF(P$11="",0,'Calc|Opex forecast'!P91*IF('Calc|Opex forecast'!$F91="nominal",LOOKUP($F15,Nominal_to_Real,'Input|Rate of change'!V$25:V$30),INDEX('Input|Rate of change'!$C$14:$O$21,MATCH('Calc|Opex forecast'!$F91,'Input|Rate of change'!$C$14:$C$21,0),MATCH('Output|Models'!$F15,'Input|Rate of change'!$C$14:$O$14,0)))*IF('Calc|Opex forecast'!$E91="$millions",1000000,IF('Calc|Opex forecast'!$E91="$000",1000,1))/IF($E15="$millions",1000000,IF($E15="$000",1000,1))) -> 0 | Q15: =IF(Q$11="",0,'Calc|Opex forecast'!Q91*IF('Calc|Opex forecast'!$F91="nominal",LOOKUP($F15,Nominal_to_Real,'Input|Rate of change'!W$25:W$30),INDEX('Input|Rate of change'!$C$14:$O$21,MATCH('Calc|Opex forecast'!$F91,'Input|Rate of change'!$C$14:$C$21,0),MATCH('Output|Models'!$F15,'Input|Rate of change'!$C$14:$O$14,0)))*IF('Calc|Opex forecast'!$E91="$millions",1000000,IF('Calc|Opex forecast'!$E91="$000",1000,1))/IF($E15="$millions",1000000,IF($E15="$000",1000,1))) -> 0 | R15: =IF(R$11="",0,'Calc|Opex forecast'!R91*IF('Calc|Opex forecast'!$F91="nominal",LOOKUP($F15,Nominal_to_Real,'Input|Rate of change'!X$25:X$30),INDEX('Input|Rate of change'!$C$14:$O$21,MATCH('Calc|Opex forecast'!$F91,'Input|Rate of change'!$C$14:$C$21,0),MATCH('Output|Models'!$F15,'Input|Rate of change'!$C$14:$O$14,0)))*IF('Calc|Opex forecast'!$E91="$millions",1000000,IF('Calc|Opex forecast'!$E91="$000",1000,1))/IF($E15="$millions",1000000,IF($E15="$000",1000,1))) -> 0 | S15: =IF(S$11="",0,'Calc|Opex forecast'!S91*IF('Calc|Opex forecast'!$F91="nominal",LOOKUP($F15,Nominal_to_Real,'Input|Rate of change'!Y$25:Y$30),INDEX('Input|Rate of change'!$C$14:$O$21,MATCH('Calc|Opex forecast'!$F91,'Input|Rate of change'!$C$14:$C$21,0),MATCH('Output|Models'!$F15,'Input|Rate of change'!$C$14:$O$14,0)))*IF('Calc|Opex forecast'!$E91="$millions",1000000,IF('Calc|Opex forecast'!$E91="$000",1000,1))/IF($E15="$millions",1000000,IF($E15="$000",1000,1))) -> 0
C16: ='Input|Step changes'!C30 -> 0 | D16: Calc | Opex forecast | E16: $millions | F16: 2023-06-01 | J16: =IF(J$11="",0,'Calc|Opex forecast'!J92*IF('Calc|Opex forecast'!$F92="nominal",LOOKUP($F16,Nominal_to_Real,'Input|Rate of change'!P$25:P$30),INDEX('Input|Rate of change'!$C$14:$O$21,MATCH('Calc|Opex forecast'!$F92,'Input|Rate of change'!$C$14:$C$21,0),MATCH('Output|Models'!$F16,'Input|Rate of change'!$C$14:$O$14,0)))*IF('Calc|Opex forecast'!$E92="$millions",1000000,IF('Calc|Opex forecast'!$E92="$000",1000,1))/IF($E16="$millions",1000000,IF($E16="$000",1000,1))) -> 0 | K16: =IF(K$11="",0,'Calc|Opex forecast'!K92*IF('Calc|Opex forecast'!$F92="nominal",LOOKUP($F16,Nominal_to_Real,'Input|Rate of change'!Q$25:Q$30),INDEX('Input|Rate of change'!$C$14:$O$21,MATCH('Calc|Opex forecast'!$F92,'Input|Rate of change'!$C$14:$C$21,0),MATCH('Output|Models'!$F16,'Input|Rate of change'!$C$14:$O$14,0)))*IF('Calc|Opex forecast'!$E92="$millions",1000000,IF('Calc|Opex forecast'!$E92="$000",1000,1))/IF($E16="$millions",1000000,IF($E16="$000",1000,1))) -> 0 | L16: =IF(L$11="",0,'Calc|Opex forecast'!L92*IF('Calc|Opex forecast'!$F92="nominal",LOOKUP($F16,Nominal_to_Real,'Input|Rate of change'!R$25:R$30),INDEX('Input|Rate of change'!$C$14:$O$21,MATCH('Calc|Opex forecast'!$F92,'Input|Rate of change'!$C$14:$C$21,0),MATCH('Output|Models'!$F16,'Input|Rate of change'!$C$14:$O$14,0)))*IF('Calc|Opex forecast'!$E92="$millions",1000000,IF('Calc|Opex forecast'!$E92="$000",1000,1))/IF($E16="$millions",1000000,IF($E16="$000",1000,1))) -> 0 | M16: =IF(M$11="",0,'Calc|Opex forecast'!M92*IF('Calc|Opex forecast'!$F92="nominal",LOOKUP($F16,Nominal_to_Real,'Input|Rate of change'!S$25:S$30),INDEX('Input|Rate of change'!$C$14:$O$21,MATCH('Calc|Opex forecast'!$F92,'Input|Rate of change'!$C$14:$C$21,0),MATCH('Output|Models'!$F16,'Input|Rate of change'!$C$14:$O$14,0)))*IF('Calc|Opex forecast'!$E92="$millions",1000000,IF('Calc|Opex forecast'!$E92="$000",1000,1))/IF($E16="$millions",1000000,IF($E16="$000",1000,1))) -> 0 | N16: =IF(N$11="",0,'Calc|Opex forecast'!N92*IF('Calc|Opex forecast'!$F92="nominal",LOOKUP($F16,Nominal_to_Real,'Input|Rate of change'!T$25:T$30),INDEX('Input|Rate of change'!$C$14:$O$21,MATCH('Calc|Opex forecast'!$F92,'Input|Rate of change'!$C$14:$C$21,0),MATCH('Output|Models'!$F16,'Input|Rate of change'!$C$14:$O$14,0)))*IF('Calc|Opex forecast'!$E92="$millions",1000000,IF('Calc|Opex forecast'!$E92="$000",1000,1))/IF($E16="$millions",1000000,IF($E16="$000",1000,1))) -> 0 | O16: =IF(O$11="",0,'Calc|Opex forecast'!O92*IF('Calc|Opex forecast'!$F92="nominal",LOOKUP($F16,Nominal_to_Real,'Input|Rate of change'!U$25:U$30),INDEX('Input|Rate of change'!$C$14:$O$21,MATCH('Calc|Opex forecast'!$F92,'Input|Rate of change'!$C$14:$C$21,0),MATCH('Output|Models'!$F16,'Input|Rate of change'!$C$14:$O$14,0)))*IF('Calc|Opex forecast'!$E92="$millions",1000000,IF('Calc|Opex forecast'!$E92="$000",1000,1))/IF($E16="$millions",1000000,IF($E16="$000",1000,1))) -> 0 | P16: =IF(P$11="",0,'Calc|Opex forecast'!P92*IF('Calc|Opex forecast'!$F92="nominal",LOOKUP($F16,Nominal_to_Real,'Input|Rate of change'!V$25:V$30),INDEX('Input|Rate of change'!$C$14:$O$21,MATCH('Calc|Opex forecast'!$F92,'Input|Rate of change'!$C$14:$C$21,0),MATCH('Output|Models'!$F16,'Input|Rate of change'!$C$14:$O$14,0)))*IF('Calc|Opex forecast'!$E92="$millions",1000000,IF('Calc|Opex forecast'!$E92="$000",1000,1))/IF($E16="$millions",1000000,IF($E16="$000",1000,1))) -> 0 | Q16: =IF(Q$11="",0,'Calc|Opex forecast'!Q92*IF('Calc|Opex forecast'!$F92="nominal",LOOKUP($F16,Nominal_to_Real,'Input|Rate of change'!W$25:W$30),INDEX('Input|Rate of change'!$C$14:$O$21,MATCH('Calc|Opex forecast'!$F92,'Input|Rate of change'!$C$14:$C$21,0),MATCH('Output|Models'!$F16,'Input|Rate of change'!$C$14:$O$14,0)))*IF('Calc|Opex forecast'!$E92="$millions",1000000,IF('Calc|Opex forecast'!$E92="$000",1000,1))/IF($E16="$millions",1000000,IF($E16="$000",1000,1))) -> 0 | R16: =IF(R$11="",0,'Calc|Opex forecast'!R92*IF('Calc|Opex forecast'!$F92="nominal",LOOKUP($F16,Nominal_to_Real,'Input|Rate of change'!X$25:X$30),INDEX('Input|Rate of change'!$C$14:$O$21,MATCH('Calc|Opex forecast'!$F92,'Input|Rate of change'!$C$14:$C$21,0),MATCH('Output|Models'!$F16,'Input|Rate of change'!$C$14:$O$14,0)))*IF('Calc|Opex forecast'!$E92="$millions",1000000,IF('Calc|Opex forecast'!$E92="$000",1000,1))/IF($E16="$millions",1000000,IF($E16="$000",1000,1))) -> 0 | S16: =IF(S$11="",0,'Calc|Opex forecast'!S92*IF('Calc|Opex forecast'!$F92="nominal",LOOKUP($F16,Nominal_to_Real,'Input|Rate of change'!Y$25:Y$30),INDEX('Input|Rate of change'!$C$14:$O$21,MATCH('Calc|Opex forecast'!$F92,'Input|Rate of change'!$C$14:$C$21,0),MATCH('Output|Models'!$F16,'Input|Rate of change'!$C$14:$O$14,0)))*IF('Calc|Opex forecast'!$E92="$millions",1000000,IF('Calc|Opex forecast'!$E92="$000",1000,1))/IF($E16="$millions",1000000,IF($E16="$000",1000,1))) -> 0
B18: End

Sheet Lookup|Tables
B1: =Index!$B$1 -> AER opex model | J1: Back to Index | L1: Key: | M1: Input | N1: External Link | O1: Internal Link | U1: Overall Check: | V1: ='Check|List'!$S$1 -> Ok
B2: =Index!$C$15 -> Lookup | Tables
B7: Unit Denominations
C9: =B7 -> Unit Denominations | D9: Source | G9: Ref
C10: Dollars | D10: AER | G10: $dollars
C11: Thousands | D11: AER | G11: $000
C12: Millions | D12: AER | G12: $millions
C14: Percent | D14: AER | G14: Per cent
C15: Unit | D15: AER | G15: unit
C16: Number | D16: AER | G16: number
C17: Factor | D17: AER | G17: factor
C19: Actual | D19: AER | G19: Actual
C20: Estimate | D20: AER | G20: Estimate
B22: Months
C24: =B22 -> Months | D24: Source | G24: Ref
C25: month 1 | D25: AER | G25: 2000-01-01
C26: month 2 | D26: AER | G26: 2000-02-01
C27: month 3 | D27: AER | G27: 2000-03-01
C28: month 4 | D28: AER | G28: 2000-04-01
C29: month 5 | D29: AER | G29: 2000-05-01
C30: month 6 | D30: AER | G30: 2000-06-01
C31: month 7 | D31: AER | G31: 2000-07-01
C32: month 8 | D32: AER | G32: 2000-08-01
C33: month 9 | D33: AER | G33: 2000-09-01
C34: month 10 | D34: AER | G34: 2000-10-01
C35: month 11 | D35: AER | G35: 2000-11-01
C36: month 12 | D36: AER | G36: 2000-12-01
B38: Years
C40: =B38 -> Years | D40: Source | G40: Calendar Year | H40: Year Ending | I40: Financial Year
C41: 2011-06-01 | D41: AER | G41: 2011 | H41: =DATE(G41,MONTH('Input|General'!$G$9),1) -> 2011-06-01 | I41: =G41-1&"–"&RIGHT(G41,2) -> 2010–11
C42: 2012-06-01 | D42: AER | G42: 2012 | H42: =DATE(G42,MONTH('Input|General'!$G$9),1) -> 2012-06-01 | I42: =G42-1&"–"&RIGHT(G42,2) -> 2011–12
C43: 2013-06-01 | D43: AER | G43: 2013 | H43: =DATE(G43,MONTH('Input|General'!$G$9),1) -> 2013-06-01 | I43: 2012–13
C44: 2014-06-01 | D44: AER | G44: 2014 | H44: =DATE(G44,MONTH('Input|General'!$G$9),1) -> 2014-06-01 | I44: 2013–14
C45: 2015-06-01 | D45: AER | G45: 2015 | H45: =DATE(G45,MONTH('Input|General'!$G$9),1) -> 2015-06-01 | I45: 2014–15
C46: 2016-06-01 | D46: AER | G46: 2016 | H46: =DATE(G46,MONTH('Input|General'!$G$9),1) -> 2016-06-01 | I46: 2015–16
C47: 2017-06-01 | D47: AER | G47: 2017 | H47: =DATE(G47,MONTH('Input|General'!$G$9),1) -> 2017-06-01 | I47: 2016–17
C48: 2018-06-01 | D48: AER | G48: 2018 | H48: =DATE(G48,MONTH('Input|General'!$G$9),1) -> 2018-06-01 | I48: 2017–18
C49: 2019-06-01 | D49: AER | G49: 2019 | H49: =DATE(G49,MONTH('Input|General'!$G$9),1) -> 2019-06-01 | I49: 2018–19
C50: 2020-06-01 | D50: AER | G50: 2020 | H50: =DATE(G50,MONTH('Input|General'!$G$9),1) -> 2020-06-01 | I50: 2019–20
C51: 2021-06-01 | D51: AER | G51: 2021 | H51: =DATE(G51,MONTH('Input|General'!$G$9),1) -> 2021-06-01 | I51: 2020–21
C52: 2022-06-01 | D52: AER | G52: 2022 | H52: =DATE(G52,MONTH('Input|General'!$G$9),1) -> 2022-06-01 | I52: 2021–22
C53: 2023-06-01 | D53: AER | G53: 2023 | H53: =DATE(G53,MONTH('Input|General'!$G$9),1) -> 2023-06-01 | I53: 2022–23
C54: 2024-06-01 | D54: AER | G54: 2024 | H54: =DATE(G54,MONTH('Input|General'!$G$9),1) -> 2024-06-01 | I54: 2023–24
C55: 2025-06-01 | D55: AER | G55: 2025 | H55: =DATE(G55,MONTH('Input|General'!$G$9),1) -> 2025-06-01 | I55: 2024–25
C56: 2026-06-01 | D56: AER | G56: 2026 | H56: =DATE(G56,MONTH('Input|General'!$G$9),1) -> 2026-06-01 | I56: 2025–26
C57: 2027-06-01 | D57: AER | G57: 2027 | H57: =DATE(G57,MONTH('Input|General'!$G$9),1) -> 2027-06-01 | I57: 2026–27
C58: 2028-06-01 | D58: AER | G58: 2028 | H58: =DATE(G58,MONTH('Input|General'!$G$9),1) -> 2028-06-01 | I58: 2027–28
C59: 2029-06-01 | D59: AER | G59: 2029 | H59: =DATE(G59,MONTH('Input|General'!$G$9),1) -> 2029-06-01 | I59: 2028–29
C60: 2030-06-01 | D60: AER | G60: 2030 | H60: =DATE(G60,MONTH('Input|General'!$G$9),1) -> 2030-06-01 | I60: 2029–30
B62: Regulatory years
C64: =B62 -> Regulatory years | D64: Source | G64: Year | H64: Year ending
C65: Previous period year 1 | D65: calculated | G65: =IF(MONTH('Input|General'!$G$9)=12,PPFirstYear,PPFirstYear-1&"–"&RIGHT(PPFirstYear,2)) -> 2018–19 | H65: =DATE(PPFirstYear,MONTH('Input|General'!$G$9),1) -> 2019-06-01
C66: Previous period year 2 | D66: calculated | G66: =IF(PPLastYear-PPFirstYear<1,"",LEFT(G65,4)+1&"–"&RIGHT(G65,2)+1) -> 2019–20 | H66: =IF(PPLastYear-PPFirstYear<1,"",DATE(PPFirstYear+1,MONTH('Input|General'!$G$9),1)) -> 2020-06-01
C67: Previous period year 3 | D67: calculated | G67: =IF(PPLastYear-PPFirstYear<2,"",LEFT(G66,4)+1&"–"&RIGHT(G66,2)+1) -> 2020–21 | H67: =IF(PPLastYear-PPFirstYear<2,"",DATE(PPFirstYear+2,MONTH('Input|General'!$G$9),1)) -> 2021-06-01
C68: Previous period year 4 | D68: calculated | G68: =IF(PPLastYear-PPFirstYear<3,"",LEFT(G67,4)+1&"–"&RIGHT(G67,2)+1) -> 2021–22 | H68: =IF(PPLastYear-PPFirstYear<3,"",DATE(PPFirstYear+3,MONTH('Input|General'!$G$9),1)) -> 2022-06-01
C69: Previous period year 5 | D69: calculated | G69: =IF(PPLastYear-PPFirstYear<4,"",LEFT(G68,4)+1&"–"&RIGHT(G68,2)+1) -> 2022–23 | H69: =IF(PPLastYear-PPFirstYear<4,"",DATE(PPFirstYear+4,MONTH('Input|General'!$G$9),1)) -> 2023-06-01
C70: Forecast period year 1 | D70: calculated | G70: =IF(MONTH('Input|General'!$G$9)=12,FPFirstYear,FPFirstYear-1&"–"&RIGHT(FPFirstYear,2)) -> 2023–24 | H70: =DATE(FPFirstYear,MONTH('Input|General'!$G$9),1) -> 2024-06-01
C71: Forecast period year 2 | D71: calculated | G71: =IF(FPLastYear-FPFirstYear<1,"",LEFT(G70,4)+1&"–"&RIGHT(G70,2)+1) -> 2024–25 | H71: =IF(FPLastYear-FPFirstYear<1,"",DATE(FPFirstYear+1,MONTH('Input|General'!$G$9),1)) -> 2025-06-01
C72: Forecast period year 3 | D72: calculated | G72: =IF(FPLastYear-FPFirstYear<2,"",LEFT(G71,4)+1&"–"&RIGHT(G71,2)+1) -> 2025–26 | H72: =IF(FPLastYear-FPFirstYear<2,"",DATE(FPFirstYear+2,MONTH('Input|General'!$G$9),1)) -> 2026-06-01
C73: Forecast period year 4 | D73: calculated | G73: =IF(FPLastYear-FPFirstYear<3,"",LEFT(G72,4)+1&"–"&RIGHT(G72,2)+1) -> 2026–27 | H73: =IF(FPLastYear-FPFirstYear<3,"",DATE(FPFirstYear+3,MONTH('Input|General'!$G$9),1)) -> 2027-06-01
C74: Forecast period year 5 | D74: calculated | G74: =IF(FPLastYear-FPFirstYear<4,"",LEFT(G73,4)+1&"–"&RIGHT(G73,2)+1) -> 2027–28 | H74: =IF(FPLastYear-FPFirstYear<4,"",DATE(FPFirstYear+4,MONTH('Input|General'!$G$9),1)) -> 2028-06-01
B76: End

Sheet Check|List
B1: =Index!$B$1 -> AER opex model | J1: Back to Index | L1: Key: | M1: Input | N1: External Link | O1: Internal Link | R1: Overall Check: | S1: =IF(COUNTIF(G10:G16,"Check")=0,"Ok","Check") -> Ok
B2: =Index!$C$16 -> Check | List
B7: Check List
C9: Sheet | D9: Source | E9: Unit | G9: Status
C10: =Index!C7 -> Input | General | D10: =C10 -> Input | General | E10: Ok/Check | G10: ='Input|General'!S1 -> OK
C11: =Index!C8 -> Input | Inflation | D11: =C11 -> Input | Inflation | E11: Ok/Check | G11: ='Input|Inflation'!T1 -> OK
C12: =Index!C9 -> Input | Reported opex | D12: =C12 -> Input | Reported opex | E12: Ok/Check | G12: ='Input|Reported opex'!S1 -> OK
C13: =Index!C10 -> Input | Rate of change | D13: Input | Rate of change | E13: Ok/Check | G13: ='Input|Rate of change'!T1 -> Ok
C14: =Index!C11 -> Input | Step changes | D14: Input | Step changes | E14: Ok/Check | G14: ='Input|Step changes'!S1 -> OK
C15: =Index!C13 -> Calc | Opex Forecast | D15: Calc | Opex Forecast | E15: Ok/Check | G15: ='Calc|Opex forecast'!S1 -> n/a
C16: =Index!C14 -> Output | Models | D16: Output | Models | E16: Ok/Check | G16: ='Output|Models'!S1 -> n/a
B18: End
